{"text_format":"1","workbook":"xlsx","n_sheets":9,"sheets":["Titelblatt","Blatt 0 Verodnungen","Anleitung","Scheine","Stammdaten","Blatt 1 Maßnahme und Erfassung","Blatt 2 Gemische und Erfassung","Abfall","Table 0"],"not_rendered":{"charts":0,"images":9,"macros":1,"external_links":0,"defined_names":7,"comments":2,"pivot_tables":0},"unopened":[],"bounds":{"document_bytes":16777216,"sheet_cells":100000,"rows_first":2000,"rows_last":500,"rows_between":2000,"halvings":0,"cell_chars":16384,"cell_head_chars":4096},"cells_cut":0,"cells_raw":0,"read":"whole","date_system":"1900"}

{"sheet":"Titelblatt","index":0,"n_rows":55,"n_cols":2,"rows_kept":55,"cut":false,"hidden":false,"merged":[[29,1,42,8]]}
[]
[]
[]
[]
[]
[]
[]
[]
[]
[]
[]
[]
[]
[]
[]
[]
[]
[]
[]
[null,"Dokumentation "]
[null,"der Erfassung und Entsorgung "]
[null,"von Bau- und Abbruchabfällen"]
[null,"nach Gewerbeabfallverordnung"]
[null,"(§ 8 Abs. 3 GewAbfV)"]
[]
[]
[]
[]
[]
[null,"Erzeuger und Besitzer von Bau- und Abbruchabfällen sind verpflichtet, diese nach einzelnen Abfallarten getrennt zu sammeln und auch getrennt zu befördern, um sie anschließend vorrangig der Vorbereitung zur Wiederverwendung oder dem Recycling zuzuführen (§ 8 Abs. 1  GewAbfV). \nDie getrennte Abfallsammlung, Beförderung  und die weitere Entsorgung der jeweiligen Abfallarten sind zu dokumentieren (§ 8 Abs. 3 GewAbfV). \n\nZur einfachen Umsetzung der Vorgaben sollte diese Dokumentation angewendet werden. Sie enthält alle erforderlichen Angaben."]
[]
[]
[]
[]
[]
[]
[]
[]
[]
[]
[]
[]
[]
[]
[]
[]
[]
[]
[]
[]
[]
[]
[]
[]
[null,"Formularstand 20.07.2020"]

{"sheet":"Blatt 0 Verodnungen","index":1,"n_rows":39,"n_cols":2,"rows_kept":39,"cut":false,"hidden":false,"merged":[]}
[null,"Hinweise zur Dokumentation der Entsorgung von Bauabfällen nach Gewerbeabfallverordnung "]
[]
["1.","Allgemeine Hinweise zur Dokumentation"]
[null,"Es wird empfohlen, die Dokumentation elektronisch auszufüllen. Diese Datei enthält automatische Berechnungen und Verknüpfungen, um Ihnen das Ausfüllen zu erleichtern. Ausführliche Informationen zu den sich aus der "]
[null,"GewAbfV ergebenen Pflichten erhalten Sie in der  LAGA Mitteilung 34."]
[null,"Für jede Bau- und Abbruchmaßnahme bzw. jede Baustelle ist eine Dokumentation zu erstellen und auf Verlangen der zuständigen Behörde vorzulegen."]
[null," Dies kann elektronisch oder in Papierform erfolgen."]
[null,"Der Verbleib ALLER getrennt erfassten Fraktionen und Gemische muss nachgewiesen werden. Die Belege müssen den Namen und die Anschrift desjenigen enthalten, der die Abfälle übernimmt, sowie die Masse und den beabsichtigten Verbleib des Abfalls (z.B. Recycling). "]
[null,"Die Dokumentationspflichten richten sich gleichermaßen an Abfallerzeuger und -besitzer. Vorrangig sind sie durch den frühesten Verursacher der Abfallentstehung zu erfüllen. Dies ist in der Regel der Bauherr. Dieser kann das bauausführende Unternehmen damit beauftragen. Die vollständige Dokumentation sollte dem Bauherren mit Stellung der Abschlussrechnung des Bauvorhabens vorliegen."]
[null,"Die Unterlagen sind 3 Jahre nach Bauabschluss für eine etwaige Prüfung aufzubewahren. "]
[null,"Geringe Mengen nichtmineralische Restabfälle, die nicht unmittelbar durch die Bautätigkeit auf der Baustelle entstehen, wie z.B. Butterbrotpapier, Getränkeflaschen, Lebensmittelreste, müssen nicht getrennt erfasst und dokumentiert werden. "]
[]
["2.","Ausnahmenregelung für Baustellen mit weniger als 10 m³ Abfallanfall"]
[null,"Wenn das Volumen der insgesamt anfallenden Abfälle je Bau- oder Abbruchmaßnahme 10 m³ nicht überschreitet, entfällt die Pflicht zur Dokumentation. Die Pflichten zur getrennten Sammlung und Zuführung zur Vorbereitung zur Wiederverwendung und zum Recycling bleiben aber bestehen. "]
[null,"Bei einer Baumaßnahme ist jedes Gewerk als Einzelmaßnahme zu bezeichnen, es sei denn, ein Unternehmen erbringt und koordiniert federführend mehrere Gewerke. Wenn das Volumen der bei allen Gewerken anfallenden Abfälle 10 m³ überschreitet, muss dokumentiert werden. Gleiches gilt für den Fall, dass ein Generalunternehmer die Entsorgung für seine Subunternehmer durchführt oder im Falle der Entsorgung durch den Bauherren selbst. "]
["3.","Getrenntsammlung und Recycling bzw. Vorbereitung zur Wiederverwendung sowie \nAusnahmen von der Getrenntsammlung"]
[null,"Die in Blatt 2 gelisteten Abfallfraktionen sind getrennt zu erfassen und vorrangig der Vorbereitung zur Wiederverwendung oder dem Recycling zuzuführen. Die Liste ist abschließend. Weitere Fraktionen sind nicht zu dokumentieren."]
[null,"Nur falls in seltenen Fällen, z.B. aufgrund einer Schadstoffbelastung, keine Wiederverwendung und kein Recycling  einer getrennt gesammelten Fraktion möglich ist, ist diese Fraktionen der sonstigen (energetischen) Verwertung oder der Beseitigung zuzuführen. Der Verbleib aller getrennt erfassten Fraktionen ist zu dokumentieren und über Praxisbelege nachzuweisen. "]
[null,"Innerhalb der getrennt erfassten Abfallfraktionen kann eine weitergehende getrennte Sammlung vorgenommen werden."]
[null,"Von der Grundpflicht zur getrennten Erfassung darf nur in begründeten Einzelfällen abgewichen werden. Für jede Abfallfraktion ist einzeln nachvollziehbar darzulegen, aus welchem Grund die getrennte Sammlung nicht durchführbar ist (Blatt 3 \"Ausnahme Getrennthaltung\")."]
[null,"Nur wenn die getrennte Sammlung nachweislich technisch nicht möglich oder wirtschaftlich unzumutbar ist, sind Abfälle ausnahmsweise als Gemisch zu sammeln."]
[null,"Technisch nicht möglich ist die getrennte Sammlung insbesondere dann, wenn für eine Aufstellung der Abfallbehälter für die getrennte Sammlung nicht genug Platz zur Verfügung steht."]
[null,"Technisch nicht möglich ist die getrennte Sammlung auch, wenn sie aus rückbaustatischen oder rückbautechnischen Gründen ausscheidet."]
[null,"Für die getrennte Sammlung sind ein Drittel höhere Kosten – im Vergleich zur gemischten Sammlung – wirtschaftlich zumutbar. Bei höhere Kosten ist eine Entscheidung im Einzelfall zu treffen. "]
[null,"Eine wirtschaftliche Unzumutbarkeit der Getrenntsammlung kann insbesondere bei einer hohen Verschmutzung oder einer sehr geringen Menge der jeweiligen Abfallfraktion (Orientierungswert: < 1 m³) gegeben sein. Im Vorfeld sind Maßnahmen zu ergreifen, um Verschmutzungen zu vermeiden."]
[null,"Kosten einer nachträglichen Trennung der Abfallfraktionen müssen unberücksichtigt bleiben, wenn sie durch mögliche und zumutbare Maßnahmen des selektiven Rückbaus vermeidbar gewesen wären (z.B. Sortierkosten eines unterlassenen Ausbaus von Holzfußböden).  "]
[]
["4.","Sammlung von Gemischen und Vorbehandlung sowie Ausnahmen aus der Vorbehandlung"]
[null,"Werden Abfälle ausnahmsweise als Gemisch gesammelt, so sind Gemische, die überwiegend Kunststoffe, Metalle, einschließlich Legierungen oder Holz enthalten, einer Vorbehandlungsanlage zuzuführen. In diesen Gemischen dürfen Glas, Dämmmaterial, Bitumengemische, Baustoffe auf Gipsbasis, Beton, Ziegel, Fliesen und Keramik nur enthalten sein, soweit sie die Vorbehandlung nicht beeinträchtigen oder verhindern. "]
[null,"Vorbehandlungsanlagen im Land Berlin, die die technische Mindestausstattung gem. GewAbfV erfüllen, sind "]
[null,"hier abrufbar."]
[null,"Gemische, die überwiegend Beton, Ziegel, Fliesen oder Keramik enthalten, sind einer Aufbereitungsanlage zuzuführen. In diesen Gemischen dürfen Glas, Dämmmaterial, Bitumengemische, Baustoffe auf Gipsbasis nur enthalten sein, soweit sie die Aufbereitung nicht beeinträchtigen oder verhindern."]
[null,"Von der Grundpflicht zur Vorbehandlung bzw. Aufbereitung darf nur in begründeten Einzelfällen abgewichen werden. "]
[null,"Wenn die Vorbehandlung bzw. Aufbereitung des Gemisches nachweislich technisch nicht möglich oder wirtschaftlich unzumutbar ist, sind Abfälle ausnahmsweise einer hochwertigen sonstigen Verwertung zuzuführen."]
[null,"Für die Zuführung von Gemischen in eine Aufbereitungs- oder Vorbehandlungsanlage sind Mehrkosten von 50 % – im Vergleich zu einer Entsorgung außerhalb einer Behandlungsanlage – wirtschaftlich zumutbar. Bei höheren Kosten ist eine Entscheidung im Einzelfall zu treffen. "]
[null,"Entfällt die Pflicht zur Behandlung, sind die Gemische von anderen Abfällen getrennt zu halten und vorrangig einer hochwertigen sonstigen Verwertung zuzuführen (§ 9 Abs. 5 GewAbfV)."]
[]
["5.","Verpackungsabfälle"]
[null,"Bei Bauarbeiten anfallende Verpackungen (Gruppe 1501 der Anlage zur AVV) gelten, soweit sie nicht dem Verpackungsgesetz unterliegen und über Rücknahmesysteme entsorgt werden, als gewerblicher Siedlungsabfall nach § 3 Absatz 1 GewAbfV. Damit unterliegen sie den gleichen Anforderungen wie die Bau- und Abbruchabfälle. Die Dokumentation kann zusammen mit den Bau- und Abbruchabfällen in diesem Dokument erfolgen. "]

{"sheet":"Anleitung","index":2,"n_rows":31,"n_cols":1,"rows_kept":31,"cut":false,"hidden":false,"merged":[]}
[]
["Tragen Sie alle Container etc. in das Register \"Scheine\" ein."]
["Bodenaushub, Sand & Steine werden nicht erfasst! Sie fallen nicht unter die GewAbfV."]
["Gefährliche Abfälle werden über ZEDAL erfasst und ebenfalls nicht hier."]
["Die farbigen Zellen sind für Ihre Eingaben gedacht."]
["Weist der Schein nur eine Volumenangabe auf, so werden die Kubikmeter in Tonnen umgerechnet."]
["Stehen auf dem Schein Angaben zum Recycling, Wiederverwendung oder sonstiger Verwertung so vermerken Sie das Bitte hinten im \"blauen\" Bereich."]
[]
["Was bedeutet \"gestempelt\"."]
["Werden die Scheine über Formulare abgerechnet, und die Firma unterschreibt die Formulare so können Sie bei \"gestempelt\" ein \"ja\" eintragen."]
["Sie können das \"ja\" auch ruhig dem Programm überlassen. Füllen sie die Scheine automatisiert aus, erledigt das das Programm für Sie."]
[]
["Brauche ich einen Taschenrecher?"]
["Definitiv: Nein."]
[]
["Ich möchte die Formulare für die Firma erzeugen."]
["Wählen Sie \"Blatt 1 Maßnahme und Erfassung\" aus und anschließend wählen sie rechts neben dem Formular in den zwei blauen Feldern zunächst die Firma aus."]
["Jetzt werden die Entsorger der Firma zusammengestellt."]
["Wählen Sie jetzt einen Entsorger aus."]
["Fertig, alle Scheine der Firma und des Entsorgers werden in die beiden Blätter eingetragen."]
["Kleiner Hinweis am Rande: Jedes Mal, wenn Sie \"Blatt 1 Maßnahme und Erfassung\" auswählen, werden alle noch nicht gestempelten Firmen in den Auswahlfeldern neu zusammengestellt. Die beiden Auswahlfelder werden gelöscht. Aber durch zwei Klicks in den blauen Feldern werden alle Daten wieder aus den \"Scheinen\" zusammengesucht."]
["Drücken Sie jetzt auf \"Drucken\" werden die Scheine gedruckt oder  ein PDF erzeugt, das kommt auf Ihren Standarddrucker an."]
["Im Anschluss werden Sie gefragt, ob die Scheine jetzt gestempelt werden sollen. Hier können Sie auf \"ja\" klicken. Der Entsorger wird als abgerechnet markiert. Haben Sie alle Entsorger der Firma gedruckt und als \"gestempelt\" markiert, taucht auch die Firma nicht mehr im Auswahldialog auf."]
["Falls Sie die Firmen lieber ohne den eingebauten Druckdialog als \"gestempelt\" markieren wollen gibt es zwei Möglichkeiten:"]
[" 1. per Hand in der Liste."]
[" 2. Wählen Sie Firma und Entsorger in \"Blatt 1 Maßnahmen...\" aus und betätigen Sie die Schalftfläche \"Als 'gestempelt' markieren aus."]
[]
["Stellen Sie die Datei mit aktuellen Bearbeitungsstand  bitte monatlich in den Projektraum ein. Somit können wir die Anfragen der Senatsverwaltungen beantworten."]
[]
["Haben Sie Fragen? Wollen Sie die Handhabung einmal durchspielen?"]
["Ihr Ansprechpartner: GESOBAU AG Herr Höpfner, T. +49 30 4073 1321."]

{"sheet":"Scheine","index":3,"n_rows":800,"n_cols":15,"rows_kept":800,"cut":false,"hidden":false,"merged":[]}
["*Mindestangaben",null,null,null,null,null,null,null,null,null,null,"davon"]
["Abfall-schlüssel-nummer","Abfallart*","Erzeuger (Firma)*","Beförderer*","Belegnummer","Beförderungs-datum","Entsorger*","Menge*","Einheit*","gestempelt","Gewicht [t]","Wiederver-wendung\n[t]","Recycling\n[t]","Verwertung\n[t]","Fehlerhinweis"]
[{"$f":"_xlfn.XLOOKUP(B3,Stammdaten!$C$3:$C$14,Stammdaten!$A$3:$A$14,\"\",0,1)","v":""},null,null,null,null,null,null,null,null,"nein",{"$f":"IFERROR(IF(I3=\"t\",H3,H3*VLOOKUP(A3,Stammdaten!$A$3:$C$14,2,FALSE)),\"\")","v":""},null,null,null,{"$f":"IF(SUM(L3:N3)>K3,\"'davon' ist größer als Gesamtgewicht.\",\"\")","v":""}]
[{"$f":"_xlfn.XLOOKUP(B4,Stammdaten!$C$3:$C$14,Stammdaten!$A$3:$A$14,\"\",0,1)","v":""},null,null,null,null,null,null,null,null,"nein",{"$f":"IFERROR(IF(I4=\"t\",H4,H4*VLOOKUP(A4,Stammdaten!$A$3:$C$14,2,FALSE)),\"\")","v":""},null,null,null,{"$f":"IF(SUM(L4:N4)>K4,\"'davon' ist größer als Gesamtgewicht.\",\"\")","v":""}]
[{"$f":"_xlfn.XLOOKUP(B5,Stammdaten!$C$3:$C$14,Stammdaten!$A$3:$A$14,\"\",0,1)","v":""},null,null,null,null,null,null,null,null,"nein",{"$f":"IFERROR(IF(I5=\"t\",H5,H5*VLOOKUP(A5,Stammdaten!$A$3:$C$14,2,FALSE)),\"\")","v":""},null,null,null,""]
[{"$f":"_xlfn.XLOOKUP(B6,Stammdaten!$C$3:$C$14,Stammdaten!$A$3:$A$14,\"\",0,1)","v":""},null,null,null,null,null,null,null,null,"nein",{"$f":"IFERROR(IF(I6=\"t\",H6,H6*VLOOKUP(A6,Stammdaten!$A$3:$C$14,2,FALSE)),\"\")","v":""},null,null,null,""]
[{"$f":"_xlfn.XLOOKUP(B7,Stammdaten!$C$3:$C$14,Stammdaten!$A$3:$A$14,\"\",0,1)","v":""},null,null,null,null,null,null,null,null,"nein",{"$f":"IFERROR(IF(I7=\"t\",H7,H7*VLOOKUP(A7,Stammdaten!$A$3:$C$14,2,FALSE)),\"\")","v":""},null,null,null,""]
[null,null,null,null,null,null,null,null,null,"nein"]
[null,null,null,null,null,null,null,null,null,"nein"]
[null,null,null,null,null,null,null,null,null,"nein"]
[null,null,null,null,null,null,null,null,null,"nein"]
[null,null,null,null,null,null,null,null,null,"nein"]
[null,null,null,null,null,null,null,null,null,"nein"]
[null,null,null,null,null,null,null,null,null,"nein"]
[null,null,null,null,null,null,null,null,null,"nein"]
[null,null,null,null,null,null,null,null,null,"nein"]
[null,null,null,null,null,null,null,null,null,"nein"]
[null,null,null,null,null,null,null,null,null,"nein"]
[null,null,null,null,null,null,null,null,null,"nein"]
[null,null,null,null,null,null,null,null,null,"nein"]
[null,null,null,null,null,null,null,null,null,"nein"]
[null,null,null,null,null,null,null,null,null,"nein"]
[null,null,null,null,null,null,null,null,null,"nein"]
[null,null,null,null,null,null,null,null,null,"nein"]
[null,null,null,null,null,null,null,null,null,"nein"]
[null,null,null,null,null,null,null,null,null,"nein"]
[null,null,null,null,null,null,null,null,null,"nein"]
[null,null,null,null,null,null,null,null,null,"nein"]
[null,null,null,null,null,null,null,null,null,"nein"]
[null,null,null,null,null,null,null,null,null,"nein"]
[null,null,null,null,null,null,null,null,null,"nein"]
[null,null,null,null,null,null,null,null,null,"nein"]
[null,null,null,null,null,null,null,null,null,"nein"]
[null,null,null,null,null,null,null,null,null,"nein"]
[null,null,null,null,null,null,null,null,null,"nein"]
[null,null,null,null,null,null,null,null,null,"nein"]
[null,null,null,null,null,null,null,null,null,"nein"]
[null,null,null,null,null,null,null,null,null,"nein"]
[null,null,null,null,null,null,null,null,null,"nein"]
[null,null,null,null,null,null,null,null,null,"nein"]
[null,null,null,null,null,null,null,null,null,"nein"]
[null,null,null,null,null,null,null,null,null,"nein"]
[null,null,null,null,null,null,null,null,null,"nein"]
[null,null,null,null,null,null,null,null,null,"nein"]
[null,null,null,null,null,null,null,null,null,"nein"]
[null,null,null,null,null,null,null,null,null,"nein"]
[null,null,null,null,null,null,null,null,null,"nein"]
[null,null,null,null,null,null,null,null,null,"nein"]
[null,null,null,null,null,null,null,null,null,"nein"]
[null,null,null,null,null,null,null,null,null,"nein"]
[null,null,null,null,null,null,null,null,null,"nein"]
[null,null,null,null,null,null,null,null,null,"nein"]
[null,null,null,null,null,null,null,null,null,"nein"]
[null,null,null,null,null,null,null,null,null,"nein"]
[null,null,null,null,null,null,null,null,null,"nein"]
[null,null,null,null,null,null,null,null,null,"nein"]
[null,null,null,null,null,null,null,null,null,"nein"]
[null,null,null,null,null,null,null,null,null,"nein"]
[null,null,null,null,null,null,null,null,null,"nein"]
[null,null,null,null,null,null,null,null,null,"nein"]
[null,null,null,null,null,null,null,null,null,"nein"]
[null,null,null,null,null,null,null,null,null,"nein"]
[null,null,null,null,null,null,null,null,null,"nein"]
[null,null,null,null,null,null,null,null,null,"nein"]
[null,null,null,null,null,null,null,null,null,"nein"]
[null,null,null,null,null,null,null,null,null,"nein"]
[null,null,null,null,null,null,null,null,null,"nein"]
[null,null,null,null,null,null,null,null,null,"nein"]
[null,null,null,null,null,null,null,null,null,"nein"]
[null,null,null,null,null,null,null,null,null,"nein"]
[null,null,null,null,null,null,null,null,null,"nein"]
[null,null,null,null,null,null,null,null,null,"nein"]
[null,null,null,null,null,null,null,null,null,"nein"]
[null,null,null,null,null,null,null,null,null,"nein"]
[null,null,null,null,null,null,null,null,null,"nein"]
[null,null,null,null,null,null,null,null,null,"nein"]
[null,null,null,null,null,null,null,null,null,"nein"]
[null,null,null,null,null,null,null,null,null,"nein"]
[null,null,null,null,null,null,null,null,null,"nein"]
[null,null,null,null,null,null,null,null,null,"nein"]
[null,null,null,null,null,null,null,null,null,"nein"]
[null,null,null,null,null,null,null,null,null,"nein"]
[null,null,null,null,null,null,null,null,null,"nein"]
[null,null,null,null,null,null,null,null,null,"nein"]
[null,null,null,null,null,null,null,null,null,"nein"]
[null,null,null,null,null,null,null,null,null,"nein"]
[null,null,null,null,null,null,null,null,null,"nein"]
[null,null,null,null,null,null,null,null,null,"nein"]
[null,null,null,null,null,null,null,null,null,"nein"]
[null,null,null,null,null,null,null,null,null,"nein"]
[null,null,null,null,null,null,null,null,null,"nein"]
[null,null,null,null,null,null,null,null,null,"nein"]
[null,null,null,null,null,null,null,null,null,"nein"]
[null,null,null,null,null,null,null,null,null,"nein"]
[null,null,null,null,null,null,null,null,null,"nein"]
[null,null,null,null,null,null,null,null,null,"nein"]
[null,null,null,null,null,null,null,null,null,"nein"]
[null,null,null,null,null,null,null,null,null,"nein"]
[null,null,null,null,null,null,null,null,null,"nein"]
[null,null,null,null,null,null,null,null,null,"nein"]
[null,null,null,null,null,null,null,null,null,"nein"]
[null,null,null,null,null,null,null,null,null,"nein"]
[null,null,null,null,null,null,null,null,null,"nein"]
[null,null,null,null,null,null,null,null,null,"nein"]
[null,null,null,null,null,null,null,null,null,"nein"]
[null,null,null,null,null,null,null,null,null,"nein"]
[null,null,null,null,null,null,null,null,null,"nein"]
[null,null,null,null,null,null,null,null,null,"nein"]
[null,null,null,null,null,null,null,null,null,"nein"]
[null,null,null,null,null,null,null,null,null,"nein"]
[null,null,null,null,null,null,null,null,null,"nein"]
[null,null,null,null,null,null,null,null,null,"nein"]
[null,null,null,null,null,null,null,null,null,"nein"]
[null,null,null,null,null,null,null,null,null,"nein"]
[null,null,null,null,null,null,null,null,null,"nein"]
[null,null,null,null,null,null,null,null,null,"nein"]
[null,null,null,null,null,null,null,null,null,"nein"]
[null,null,null,null,null,null,null,null,null,"nein"]
[null,null,null,null,null,null,null,null,null,"nein"]
[null,null,null,null,null,null,null,null,null,"nein"]
[null,null,null,null,null,null,null,null,null,"nein"]
[null,null,null,null,null,null,null,null,null,"nein"]
[null,null,null,null,null,null,null,null,null,"nein"]
[null,null,null,null,null,null,null,null,null,"nein"]
[null,null,null,null,null,null,null,null,null,"nein"]
[null,null,null,null,null,null,null,null,null,"nein"]
[null,null,null,null,null,null,null,null,null,"nein"]
[null,null,null,null,null,null,null,null,null,"nein"]
[null,null,null,null,null,null,null,null,null,"nein"]
[null,null,null,null,null,null,null,null,null,"nein"]
[null,null,null,null,null,null,null,null,null,"nein"]
[null,null,null,null,null,null,null,null,null,"nein"]
[null,null,null,null,null,null,null,null,null,"nein"]
[null,null,null,null,null,null,null,null,null,"nein"]
[null,null,null,null,null,null,null,null,null,"nein"]
[null,null,null,null,null,null,null,null,null,"nein"]
[null,null,null,null,null,null,null,null,null,"nein"]
[null,null,null,null,null,null,null,null,null,"nein"]
[null,null,null,null,null,null,null,null,null,"nein"]
[null,null,null,null,null,null,null,null,null,"nein"]
[null,null,null,null,null,null,null,null,null,"nein"]
[null,null,null,null,null,null,null,null,null,"nein"]
[null,null,null,null,null,null,null,null,null,"nein"]
[null,null,null,null,null,null,null,null,null,"nein"]
[null,null,null,null,null,null,null,null,null,"nein"]
[null,null,null,null,null,null,null,null,null,"nein"]
[null,null,null,null,null,null,null,null,null,"nein"]
[null,null,null,null,null,null,null,null,null,"nein"]
[null,null,null,null,null,null,null,null,null,"nein"]
[null,null,null,null,null,null,null,null,null,"nein"]
[null,null,null,null,null,null,null,null,null,"nein"]
[null,null,null,null,null,null,null,null,null,"nein"]
[null,null,null,null,null,null,null,null,null,"nein"]
[null,null,null,null,null,null,null,null,null,"nein"]
[null,null,null,null,null,null,null,null,null,"nein"]
[null,null,null,null,null,null,null,null,null,"nein"]
[null,null,null,null,null,null,null,null,null,"nein"]
[null,null,null,null,null,null,null,null,null,"nein"]
[null,null,null,null,null,null,null,null,null,"nein"]
[null,null,null,null,null,null,null,null,null,"nein"]
[null,null,null,null,null,null,null,null,null,"nein"]
[null,null,null,null,null,null,null,null,null,"nein"]
[null,null,null,null,null,null,null,null,null,"nein"]
[null,null,null,null,null,null,null,null,null,"nein"]
[null,null,null,null,null,null,null,null,null,"nein"]
[null,null,null,null,null,null,null,null,null,"nein"]
[null,null,null,null,null,null,null,null,null,"nein"]
[null,null,null,null,null,null,null,null,null,"nein"]
[null,null,null,null,null,null,null,null,null,"nein"]
[null,null,null,null,null,null,null,null,null,"nein"]
[null,null,null,null,null,null,null,null,null,"nein"]
[null,null,null,null,null,null,null,null,null,"nein"]
[null,null,null,null,null,null,null,null,null,"nein"]
[null,null,null,null,null,null,null,null,null,"nein"]
[null,null,null,null,null,null,null,null,null,"nein"]
[null,null,null,null,null,null,null,null,null,"nein"]
[null,null,null,null,null,null,null,null,null,"nein"]
[null,null,null,null,null,null,null,null,null,"nein"]
[null,null,null,null,null,null,null,null,null,"nein"]
[null,null,null,null,null,null,null,null,null,"nein"]
[null,null,null,null,null,null,null,null,null,"nein"]
[null,null,null,null,null,null,null,null,null,"nein"]
[null,null,null,null,null,null,null,null,null,"nein"]
[null,null,null,null,null,null,null,null,null,"nein"]
[null,null,null,null,null,null,null,null,null,"nein"]
[null,null,null,null,null,null,null,null,null,"nein"]
[null,null,null,null,null,null,null,null,null,"nein"]
[null,null,null,null,null,null,null,null,null,"nein"]
[null,null,null,null,null,null,null,null,null,"nein"]
[null,null,null,null,null,null,null,null,null,"nein"]
[null,null,null,null,null,null,null,null,null,"nein"]
[null,null,null,null,null,null,null,null,null,"nein"]
[null,null,null,null,null,null,null,null,null,"nein"]
[null,null,null,null,null,null,null,null,null,"nein"]
[null,null,null,null,null,null,null,null,null,"nein"]
[null,null,null,null,null,null,null,null,null,"nein"]
[null,null,null,null,null,null,null,null,null,"nein"]
[null,null,null,null,null,null,null,null,null,"nein"]
[null,null,null,null,null,null,null,null,null,"nein"]
[null,null,null,null,null,null,null,null,null,"nein"]
[null,null,null,null,null,null,null,null,null,"nein"]
[null,null,null,null,null,null,null,null,null,"nein"]
[null,null,null,null,null,null,null,null,null,"nein"]
[null,null,null,null,null,null,null,null,null,"nein"]
[null,null,null,null,null,null,null,null,null,"nein"]
[null,null,null,null,null,null,null,null,null,"nein"]
[null,null,null,null,null,null,null,null,null,"nein"]
[null,null,null,null,null,null,null,null,null,"nein"]
[null,null,null,null,null,null,null,null,null,"nein"]
[null,null,null,null,null,null,null,null,null,"nein"]
[null,null,null,null,null,null,null,null,null,"nein"]
[null,null,null,null,null,null,null,null,null,"nein"]
[null,null,null,null,null,null,null,null,null,"nein"]
[null,null,null,null,null,null,null,null,null,"nein"]
[null,null,null,null,null,null,null,null,null,"nein"]
[null,null,null,null,null,null,null,null,null,"nein"]
[null,null,null,null,null,null,null,null,null,"nein"]
[null,null,null,null,null,null,null,null,null,"nein"]
[null,null,null,null,null,null,null,null,null,"nein"]
[null,null,null,null,null,null,null,null,null,"nein"]
[null,null,null,null,null,null,null,null,null,"nein"]
[null,null,null,null,null,null,null,null,null,"nein"]
[null,null,null,null,null,null,null,null,null,"nein"]
[null,null,null,null,null,null,null,null,null,"nein"]
[null,null,null,null,null,null,null,null,null,"nein"]
[null,null,null,null,null,null,null,null,null,"nein"]
[null,null,null,null,null,null,null,null,null,"nein"]
[null,null,null,null,null,null,null,null,null,"nein"]
[null,null,null,null,null,null,null,null,null,"nein"]
[null,null,null,null,null,null,null,null,null,"nein"]
[null,null,null,null,null,null,null,null,null,"nein"]
[null,null,null,null,null,null,null,null,null,"nein"]
[null,null,null,null,null,null,null,null,null,"nein"]
[null,null,null,null,null,null,null,null,null,"nein"]
[null,null,null,null,null,null,null,null,null,"nein"]
[null,null,null,null,null,null,null,null,null,"nein"]
[null,null,null,null,null,null,null,null,null,"nein"]
[null,null,null,null,null,null,null,null,null,"nein"]
[null,null,null,null,null,null,null,null,null,"nein"]
[null,null,null,null,null,null,null,null,null,"nein"]
[null,null,null,null,null,null,null,null,null,"nein"]
[null,null,null,null,null,null,null,null,null,"nein"]
[null,null,null,null,null,null,null,null,null,"nein"]
[null,null,null,null,null,null,null,null,null,"nein"]
[null,null,null,null,null,null,null,null,null,"nein"]
[null,null,null,null,null,null,null,null,null,"nein"]
[null,null,null,null,null,null,null,null,null,"nein"]
[null,null,null,null,null,null,null,null,null,"nein"]
[null,null,null,null,null,null,null,null,null,"nein"]
[null,null,null,null,null,null,null,null,null,"nein"]
[null,null,null,null,null,null,null,null,null,"nein"]
[null,null,null,null,null,null,null,null,null,"nein"]
[null,null,null,null,null,null,null,null,null,"nein"]
[null,null,null,null,null,null,null,null,null,"nein"]
[null,null,null,null,null,null,null,null,null,"nein"]
[null,null,null,null,null,null,null,null,null,"nein"]
[null,null,null,null,null,null,null,null,null,"nein"]
[null,null,null,null,null,null,null,null,null,"nein"]
[null,null,null,null,null,null,null,null,null,"nein"]
[null,null,null,null,null,null,null,null,null,"nein"]
[null,null,null,null,null,null,null,null,null,"nein"]
[null,null,null,null,null,null,null,null,null,"nein"]
[null,null,null,null,null,null,null,null,null,"nein"]
[null,null,null,null,null,null,null,null,null,"nein"]
[null,null,null,null,null,null,null,null,null,"nein"]
[null,null,null,null,null,null,null,null,null,"nein"]
[null,null,null,null,null,null,null,null,null,"nein"]
[null,null,null,null,null,null,null,null,null,"nein"]
[null,null,null,null,null,null,null,null,null,"nein"]
[null,null,null,null,null,null,null,null,null,"nein"]
[null,null,null,null,null,null,null,null,null,"nein"]
[null,null,null,null,null,null,null,null,null,"nein"]
[null,null,null,null,null,null,null,null,null,"nein"]
[null,null,null,null,null,null,null,null,null,"nein"]
[null,null,null,null,null,null,null,null,null,"nein"]
[null,null,null,null,null,null,null,null,null,"nein"]
[null,null,null,null,null,null,null,null,null,"nein"]
[null,null,null,null,null,null,null,null,null,"nein"]
[null,null,null,null,null,null,null,null,null,"nein"]
[null,null,null,null,null,null,null,null,null,"nein"]
[null,null,null,null,null,null,null,null,null,"nein"]
[null,null,null,null,null,null,null,null,null,"nein"]
[null,null,null,null,null,null,null,null,null,"nein"]
[null,null,null,null,null,null,null,null,null,"nein"]
[null,null,null,null,null,null,null,null,null,"nein"]
[null,null,null,null,null,null,null,null,null,"nein"]
[null,null,null,null,null,null,null,null,null,"nein"]
[null,null,null,null,null,null,null,null,null,"nein"]
[null,null,null,null,null,null,null,null,null,"nein"]
[null,null,null,null,null,null,null,null,null,"nein"]
[null,null,null,null,null,null,null,null,null,"nein"]
[null,null,null,null,null,null,null,null,null,"nein"]
[null,null,null,null,null,null,null,null,null,"nein"]
[null,null,null,null,null,null,null,null,null,"nein"]
[null,null,null,null,null,null,null,null,null,"nein"]
[null,null,null,null,null,null,null,null,null,"nein"]
[null,null,null,null,null,null,null,null,null,"nein"]
[null,null,null,null,null,null,null,null,null,"nein"]
[null,null,null,null,null,null,null,null,null,"nein"]
[null,null,null,null,null,null,null,null,null,"nein"]
[{"$f":"_xlfn.XLOOKUP(B301,Stammdaten!$C$3:$C$14,Stammdaten!$A$3:$A$14,\"\",0,1)","v":""},null,null,null,null,null,null,null,null,"nein",{"$f":"IFERROR(IF(I301=\"t\",H301,H301*VLOOKUP(A301,Stammdaten!$A$3:$C$14,2,FALSE)),\"\")","v":""},null,null,null,""]
[{"$f":"_xlfn.XLOOKUP(B302,Stammdaten!$C$3:$C$14,Stammdaten!$A$3:$A$14,\"\",0,1)","v":""},null,null,null,null,null,null,null,null,"nein",{"$f":"IFERROR(IF(I302=\"t\",H302,H302*VLOOKUP(A302,Stammdaten!$A$3:$C$14,2,FALSE)),\"\")","v":""},null,null,null,""]
[{"$f":"_xlfn.XLOOKUP(B303,Stammdaten!$C$3:$C$14,Stammdaten!$A$3:$A$14,\"\",0,1)","v":""},null,null,null,null,null,null,null,null,"nein",{"$f":"IFERROR(IF(I303=\"t\",H303,H303*VLOOKUP(A303,Stammdaten!$A$3:$C$14,2,FALSE)),\"\")","v":""},null,null,null,""]
[{"$f":"_xlfn.XLOOKUP(B304,Stammdaten!$C$3:$C$14,Stammdaten!$A$3:$A$14,\"\",0,1)","v":""},null,null,null,null,null,null,null,null,"nein",{"$f":"IFERROR(IF(I304=\"t\",H304,H304*VLOOKUP(A304,Stammdaten!$A$3:$C$14,2,FALSE)),\"\")","v":""},null,null,null,""]
[{"$f":"_xlfn.XLOOKUP(B305,Stammdaten!$C$3:$C$14,Stammdaten!$A$3:$A$14,\"\",0,1)","v":""},null,null,null,null,null,null,null,null,"nein",{"$f":"IFERROR(IF(I305=\"t\",H305,H305*VLOOKUP(A305,Stammdaten!$A$3:$C$14,2,FALSE)),\"\")","v":""},null,null,null,""]
[{"$f":"_xlfn.XLOOKUP(B306,Stammdaten!$C$3:$C$14,Stammdaten!$A$3:$A$14,\"\",0,1)","v":""},null,null,null,null,null,null,null,null,"nein",{"$f":"IFERROR(IF(I306=\"t\",H306,H306*VLOOKUP(A306,Stammdaten!$A$3:$C$14,2,FALSE)),\"\")","v":""},null,null,null,""]
[{"$f":"_xlfn.XLOOKUP(B307,Stammdaten!$C$3:$C$14,Stammdaten!$A$3:$A$14,\"\",0,1)","v":""},null,null,null,null,null,null,null,null,"nein",{"$f":"IFERROR(IF(I307=\"t\",H307,H307*VLOOKUP(A307,Stammdaten!$A$3:$C$14,2,FALSE)),\"\")","v":""},null,null,null,""]
[{"$f":"_xlfn.XLOOKUP(B308,Stammdaten!$C$3:$C$14,Stammdaten!$A$3:$A$14,\"\",0,1)","v":""},null,null,null,null,null,null,null,null,"nein",{"$f":"IFERROR(IF(I308=\"t\",H308,H308*VLOOKUP(A308,Stammdaten!$A$3:$C$14,2,FALSE)),\"\")","v":""},null,null,null,""]
[{"$f":"_xlfn.XLOOKUP(B309,Stammdaten!$C$3:$C$14,Stammdaten!$A$3:$A$14,\"\",0,1)","v":""},null,null,null,null,null,null,null,null,"nein",{"$f":"IFERROR(IF(I309=\"t\",H309,H309*VLOOKUP(A309,Stammdaten!$A$3:$C$14,2,FALSE)),\"\")","v":""},null,null,null,""]
[{"$f":"_xlfn.XLOOKUP(B310,Stammdaten!$C$3:$C$14,Stammdaten!$A$3:$A$14,\"\",0,1)","v":""},null,null,null,null,null,null,null,null,"nein",{"$f":"IFERROR(IF(I310=\"t\",H310,H310*VLOOKUP(A310,Stammdaten!$A$3:$C$14,2,FALSE)),\"\")","v":""},null,null,null,""]
[{"$f":"_xlfn.XLOOKUP(B311,Stammdaten!$C$3:$C$14,Stammdaten!$A$3:$A$14,\"\",0,1)","v":""},null,null,null,null,null,null,null,null,"nein",{"$f":"IFERROR(IF(I311=\"t\",H311,H311*VLOOKUP(A311,Stammdaten!$A$3:$C$14,2,FALSE)),\"\")","v":""},null,null,null,""]
[{"$f":"_xlfn.XLOOKUP(B312,Stammdaten!$C$3:$C$14,Stammdaten!$A$3:$A$14,\"\",0,1)","v":""},null,null,null,null,null,null,null,null,"nein",{"$f":"IFERROR(IF(I312=\"t\",H312,H312*VLOOKUP(A312,Stammdaten!$A$3:$C$14,2,FALSE)),\"\")","v":""},null,null,null,""]
[{"$f":"_xlfn.XLOOKUP(B313,Stammdaten!$C$3:$C$14,Stammdaten!$A$3:$A$14,\"\",0,1)","v":""},null,null,null,null,null,null,null,null,"nein",{"$f":"IFERROR(IF(I313=\"t\",H313,H313*VLOOKUP(A313,Stammdaten!$A$3:$C$14,2,FALSE)),\"\")","v":""},null,null,null,""]
[{"$f":"_xlfn.XLOOKUP(B314,Stammdaten!$C$3:$C$14,Stammdaten!$A$3:$A$14,\"\",0,1)","v":""},null,null,null,null,null,null,null,null,"nein",{"$f":"IFERROR(IF(I314=\"t\",H314,H314*VLOOKUP(A314,Stammdaten!$A$3:$C$14,2,FALSE)),\"\")","v":""},null,null,null,""]
[{"$f":"_xlfn.XLOOKUP(B315,Stammdaten!$C$3:$C$14,Stammdaten!$A$3:$A$14,\"\",0,1)","v":""},null,null,null,null,null,null,null,null,"nein",{"$f":"IFERROR(IF(I315=\"t\",H315,H315*VLOOKUP(A315,Stammdaten!$A$3:$C$14,2,FALSE)),\"\")","v":""},null,null,null,""]
[{"$f":"_xlfn.XLOOKUP(B316,Stammdaten!$C$3:$C$14,Stammdaten!$A$3:$A$14,\"\",0,1)","v":""},null,null,null,null,null,null,null,null,"nein",{"$f":"IFERROR(IF(I316=\"t\",H316,H316*VLOOKUP(A316,Stammdaten!$A$3:$C$14,2,FALSE)),\"\")","v":""},null,null,null,""]
[{"$f":"_xlfn.XLOOKUP(B317,Stammdaten!$C$3:$C$14,Stammdaten!$A$3:$A$14,\"\",0,1)","v":""},null,null,null,null,null,null,null,null,"nein",{"$f":"IFERROR(IF(I317=\"t\",H317,H317*VLOOKUP(A317,Stammdaten!$A$3:$C$14,2,FALSE)),\"\")","v":""},null,null,null,""]
[{"$f":"_xlfn.XLOOKUP(B318,Stammdaten!$C$3:$C$14,Stammdaten!$A$3:$A$14,\"\",0,1)","v":""},null,null,null,null,null,null,null,null,"nein",{"$f":"IFERROR(IF(I318=\"t\",H318,H318*VLOOKUP(A318,Stammdaten!$A$3:$C$14,2,FALSE)),\"\")","v":""},null,null,null,""]
[{"$f":"_xlfn.XLOOKUP(B319,Stammdaten!$C$3:$C$14,Stammdaten!$A$3:$A$14,\"\",0,1)","v":""},null,null,null,null,null,null,null,null,"nein",{"$f":"IFERROR(IF(I319=\"t\",H319,H319*VLOOKUP(A319,Stammdaten!$A$3:$C$14,2,FALSE)),\"\")","v":""},null,null,null,""]
[{"$f":"_xlfn.XLOOKUP(B320,Stammdaten!$C$3:$C$14,Stammdaten!$A$3:$A$14,\"\",0,1)","v":""},null,null,null,null,null,null,null,null,"nein",{"$f":"IFERROR(IF(I320=\"t\",H320,H320*VLOOKUP(A320,Stammdaten!$A$3:$C$14,2,FALSE)),\"\")","v":""},null,null,null,""]
[{"$f":"_xlfn.XLOOKUP(B321,Stammdaten!$C$3:$C$14,Stammdaten!$A$3:$A$14,\"\",0,1)","v":""},null,null,null,null,null,null,null,null,"nein",{"$f":"IFERROR(IF(I321=\"t\",H321,H321*VLOOKUP(A321,Stammdaten!$A$3:$C$14,2,FALSE)),\"\")","v":""},null,null,null,""]
[{"$f":"_xlfn.XLOOKUP(B322,Stammdaten!$C$3:$C$14,Stammdaten!$A$3:$A$14,\"\",0,1)","v":""},null,null,null,null,null,null,null,null,"nein",{"$f":"IFERROR(IF(I322=\"t\",H322,H322*VLOOKUP(A322,Stammdaten!$A$3:$C$14,2,FALSE)),\"\")","v":""},null,null,null,""]
[{"$f":"_xlfn.XLOOKUP(B323,Stammdaten!$C$3:$C$14,Stammdaten!$A$3:$A$14,\"\",0,1)","v":""},null,null,null,null,null,null,null,null,"nein",{"$f":"IFERROR(IF(I323=\"t\",H323,H323*VLOOKUP(A323,Stammdaten!$A$3:$C$14,2,FALSE)),\"\")","v":""},null,null,null,""]
[{"$f":"_xlfn.XLOOKUP(B324,Stammdaten!$C$3:$C$14,Stammdaten!$A$3:$A$14,\"\",0,1)","v":""},null,null,null,null,null,null,null,null,"nein",{"$f":"IFERROR(IF(I324=\"t\",H324,H324*VLOOKUP(A324,Stammdaten!$A$3:$C$14,2,FALSE)),\"\")","v":""},null,null,null,""]
[{"$f":"_xlfn.XLOOKUP(B325,Stammdaten!$C$3:$C$14,Stammdaten!$A$3:$A$14,\"\",0,1)","v":""},null,null,null,null,null,null,null,null,"nein",{"$f":"IFERROR(IF(I325=\"t\",H325,H325*VLOOKUP(A325,Stammdaten!$A$3:$C$14,2,FALSE)),\"\")","v":""},null,null,null,""]
[{"$f":"_xlfn.XLOOKUP(B326,Stammdaten!$C$3:$C$14,Stammdaten!$A$3:$A$14,\"\",0,1)","v":""},null,null,null,null,null,null,null,null,"nein",{"$f":"IFERROR(IF(I326=\"t\",H326,H326*VLOOKUP(A326,Stammdaten!$A$3:$C$14,2,FALSE)),\"\")","v":""},null,null,null,""]
[{"$f":"_xlfn.XLOOKUP(B327,Stammdaten!$C$3:$C$14,Stammdaten!$A$3:$A$14,\"\",0,1)","v":""},null,null,null,null,null,null,null,null,"nein",{"$f":"IFERROR(IF(I327=\"t\",H327,H327*VLOOKUP(A327,Stammdaten!$A$3:$C$14,2,FALSE)),\"\")","v":""},null,null,null,""]
[{"$f":"_xlfn.XLOOKUP(B328,Stammdaten!$C$3:$C$14,Stammdaten!$A$3:$A$14,\"\",0,1)","v":""},null,null,null,null,null,null,null,null,"nein",{"$f":"IFERROR(IF(I328=\"t\",H328,H328*VLOOKUP(A328,Stammdaten!$A$3:$C$14,2,FALSE)),\"\")","v":""},null,null,null,""]
[{"$f":"_xlfn.XLOOKUP(B329,Stammdaten!$C$3:$C$14,Stammdaten!$A$3:$A$14,\"\",0,1)","v":""},null,null,null,null,null,null,null,null,"nein",{"$f":"IFERROR(IF(I329=\"t\",H329,H329*VLOOKUP(A329,Stammdaten!$A$3:$C$14,2,FALSE)),\"\")","v":""},null,null,null,""]
[{"$f":"_xlfn.XLOOKUP(B330,Stammdaten!$C$3:$C$14,Stammdaten!$A$3:$A$14,\"\",0,1)","v":""},null,null,null,null,null,null,null,null,"nein",{"$f":"IFERROR(IF(I330=\"t\",H330,H330*VLOOKUP(A330,Stammdaten!$A$3:$C$14,2,FALSE)),\"\")","v":""},null,null,null,""]
[{"$f":"_xlfn.XLOOKUP(B331,Stammdaten!$C$3:$C$14,Stammdaten!$A$3:$A$14,\"\",0,1)","v":""},null,null,null,null,null,null,null,null,"nein",{"$f":"IFERROR(IF(I331=\"t\",H331,H331*VLOOKUP(A331,Stammdaten!$A$3:$C$14,2,FALSE)),\"\")","v":""},null,null,null,""]
[{"$f":"_xlfn.XLOOKUP(B332,Stammdaten!$C$3:$C$14,Stammdaten!$A$3:$A$14,\"\",0,1)","v":""},null,null,null,null,null,null,null,null,"nein",{"$f":"IFERROR(IF(I332=\"t\",H332,H332*VLOOKUP(A332,Stammdaten!$A$3:$C$14,2,FALSE)),\"\")","v":""},null,null,null,""]
[{"$f":"_xlfn.XLOOKUP(B333,Stammdaten!$C$3:$C$14,Stammdaten!$A$3:$A$14,\"\",0,1)","v":""},null,null,null,null,null,null,null,null,"nein",{"$f":"IFERROR(IF(I333=\"t\",H333,H333*VLOOKUP(A333,Stammdaten!$A$3:$C$14,2,FALSE)),\"\")","v":""},null,null,null,""]
[{"$f":"_xlfn.XLOOKUP(B334,Stammdaten!$C$3:$C$14,Stammdaten!$A$3:$A$14,\"\",0,1)","v":""},null,null,null,null,null,null,null,null,"nein",{"$f":"IFERROR(IF(I334=\"t\",H334,H334*VLOOKUP(A334,Stammdaten!$A$3:$C$14,2,FALSE)),\"\")","v":""},null,null,null,""]
[{"$f":"_xlfn.XLOOKUP(B335,Stammdaten!$C$3:$C$14,Stammdaten!$A$3:$A$14,\"\",0,1)","v":""},null,null,null,null,null,null,null,null,"nein",{"$f":"IFERROR(IF(I335=\"t\",H335,H335*VLOOKUP(A335,Stammdaten!$A$3:$C$14,2,FALSE)),\"\")","v":""},null,null,null,""]
[{"$f":"_xlfn.XLOOKUP(B336,Stammdaten!$C$3:$C$14,Stammdaten!$A$3:$A$14,\"\",0,1)","v":""},null,null,null,null,null,null,null,null,"nein",{"$f":"IFERROR(IF(I336=\"t\",H336,H336*VLOOKUP(A336,Stammdaten!$A$3:$C$14,2,FALSE)),\"\")","v":""},null,null,null,""]
[{"$f":"_xlfn.XLOOKUP(B337,Stammdaten!$C$3:$C$14,Stammdaten!$A$3:$A$14,\"\",0,1)","v":""},null,null,null,null,null,null,null,null,"nein",{"$f":"IFERROR(IF(I337=\"t\",H337,H337*VLOOKUP(A337,Stammdaten!$A$3:$C$14,2,FALSE)),\"\")","v":""},null,null,null,""]
[{"$f":"_xlfn.XLOOKUP(B338,Stammdaten!$C$3:$C$14,Stammdaten!$A$3:$A$14,\"\",0,1)","v":""},null,null,null,null,null,null,null,null,"nein",{"$f":"IFERROR(IF(I338=\"t\",H338,H338*VLOOKUP(A338,Stammdaten!$A$3:$C$14,2,FALSE)),\"\")","v":""},null,null,null,""]
[{"$f":"_xlfn.XLOOKUP(B339,Stammdaten!$C$3:$C$14,Stammdaten!$A$3:$A$14,\"\",0,1)","v":""},null,null,null,null,null,null,null,null,"nein",{"$f":"IFERROR(IF(I339=\"t\",H339,H339*VLOOKUP(A339,Stammdaten!$A$3:$C$14,2,FALSE)),\"\")","v":""},null,null,null,""]
[{"$f":"_xlfn.XLOOKUP(B340,Stammdaten!$C$3:$C$14,Stammdaten!$A$3:$A$14,\"\",0,1)","v":""},null,null,null,null,null,null,null,null,"nein",{"$f":"IFERROR(IF(I340=\"t\",H340,H340*VLOOKUP(A340,Stammdaten!$A$3:$C$14,2,FALSE)),\"\")","v":""},null,null,null,""]
[{"$f":"_xlfn.XLOOKUP(B341,Stammdaten!$C$3:$C$14,Stammdaten!$A$3:$A$14,\"\",0,1)","v":""},null,null,null,null,null,null,null,null,"nein",{"$f":"IFERROR(IF(I341=\"t\",H341,H341*VLOOKUP(A341,Stammdaten!$A$3:$C$14,2,FALSE)),\"\")","v":""},null,null,null,""]
[{"$f":"_xlfn.XLOOKUP(B342,Stammdaten!$C$3:$C$14,Stammdaten!$A$3:$A$14,\"\",0,1)","v":""},null,null,null,null,null,null,null,null,"nein",{"$f":"IFERROR(IF(I342=\"t\",H342,H342*VLOOKUP(A342,Stammdaten!$A$3:$C$14,2,FALSE)),\"\")","v":""},null,null,null,""]
[{"$f":"_xlfn.XLOOKUP(B343,Stammdaten!$C$3:$C$14,Stammdaten!$A$3:$A$14,\"\",0,1)","v":""},null,null,null,null,null,null,null,null,"nein",{"$f":"IFERROR(IF(I343=\"t\",H343,H343*VLOOKUP(A343,Stammdaten!$A$3:$C$14,2,FALSE)),\"\")","v":""},null,null,null,""]
[{"$f":"_xlfn.XLOOKUP(B344,Stammdaten!$C$3:$C$14,Stammdaten!$A$3:$A$14,\"\",0,1)","v":""},null,null,null,null,null,null,null,null,"nein",{"$f":"IFERROR(IF(I344=\"t\",H344,H344*VLOOKUP(A344,Stammdaten!$A$3:$C$14,2,FALSE)),\"\")","v":""},null,null,null,""]
[{"$f":"_xlfn.XLOOKUP(B345,Stammdaten!$C$3:$C$14,Stammdaten!$A$3:$A$14,\"\",0,1)","v":""},null,null,null,null,null,null,null,null,"nein",{"$f":"IFERROR(IF(I345=\"t\",H345,H345*VLOOKUP(A345,Stammdaten!$A$3:$C$14,2,FALSE)),\"\")","v":""},null,null,null,""]
[{"$f":"_xlfn.XLOOKUP(B346,Stammdaten!$C$3:$C$14,Stammdaten!$A$3:$A$14,\"\",0,1)","v":""},null,null,null,null,null,null,null,null,"nein",{"$f":"IFERROR(IF(I346=\"t\",H346,H346*VLOOKUP(A346,Stammdaten!$A$3:$C$14,2,FALSE)),\"\")","v":""},null,null,null,""]
[{"$f":"_xlfn.XLOOKUP(B347,Stammdaten!$C$3:$C$14,Stammdaten!$A$3:$A$14,\"\",0,1)","v":""},null,null,null,null,null,null,null,null,"nein",{"$f":"IFERROR(IF(I347=\"t\",H347,H347*VLOOKUP(A347,Stammdaten!$A$3:$C$14,2,FALSE)),\"\")","v":""},null,null,null,""]
[{"$f":"_xlfn.XLOOKUP(B348,Stammdaten!$C$3:$C$14,Stammdaten!$A$3:$A$14,\"\",0,1)","v":""},null,null,null,null,null,null,null,null,"nein",{"$f":"IFERROR(IF(I348=\"t\",H348,H348*VLOOKUP(A348,Stammdaten!$A$3:$C$14,2,FALSE)),\"\")","v":""},null,null,null,""]
[{"$f":"_xlfn.XLOOKUP(B349,Stammdaten!$C$3:$C$14,Stammdaten!$A$3:$A$14,\"\",0,1)","v":""},null,null,null,null,null,null,null,null,"nein",{"$f":"IFERROR(IF(I349=\"t\",H349,H349*VLOOKUP(A349,Stammdaten!$A$3:$C$14,2,FALSE)),\"\")","v":""},null,null,null,""]
[{"$f":"_xlfn.XLOOKUP(B350,Stammdaten!$C$3:$C$14,Stammdaten!$A$3:$A$14,\"\",0,1)","v":""},null,null,null,null,null,null,null,null,"nein",{"$f":"IFERROR(IF(I350=\"t\",H350,H350*VLOOKUP(A350,Stammdaten!$A$3:$C$14,2,FALSE)),\"\")","v":""},null,null,null,""]
[{"$f":"_xlfn.XLOOKUP(B351,Stammdaten!$C$3:$C$14,Stammdaten!$A$3:$A$14,\"\",0,1)","v":""},null,null,null,null,null,null,null,null,"nein",{"$f":"IFERROR(IF(I351=\"t\",H351,H351*VLOOKUP(A351,Stammdaten!$A$3:$C$14,2,FALSE)),\"\")","v":""},null,null,null,""]
[{"$f":"_xlfn.XLOOKUP(B352,Stammdaten!$C$3:$C$14,Stammdaten!$A$3:$A$14,\"\",0,1)","v":""},null,null,null,null,null,null,null,null,"nein",{"$f":"IFERROR(IF(I352=\"t\",H352,H352*VLOOKUP(A352,Stammdaten!$A$3:$C$14,2,FALSE)),\"\")","v":""},null,null,null,""]
[{"$f":"_xlfn.XLOOKUP(B353,Stammdaten!$C$3:$C$14,Stammdaten!$A$3:$A$14,\"\",0,1)","v":""},null,null,null,null,null,null,null,null,"nein",{"$f":"IFERROR(IF(I353=\"t\",H353,H353*VLOOKUP(A353,Stammdaten!$A$3:$C$14,2,FALSE)),\"\")","v":""},null,null,null,""]
[{"$f":"_xlfn.XLOOKUP(B354,Stammdaten!$C$3:$C$14,Stammdaten!$A$3:$A$14,\"\",0,1)","v":""},null,null,null,null,null,null,null,null,"nein",{"$f":"IFERROR(IF(I354=\"t\",H354,H354*VLOOKUP(A354,Stammdaten!$A$3:$C$14,2,FALSE)),\"\")","v":""},null,null,null,""]
[{"$f":"_xlfn.XLOOKUP(B355,Stammdaten!$C$3:$C$14,Stammdaten!$A$3:$A$14,\"\",0,1)","v":""},null,null,null,null,null,null,null,null,"nein",{"$f":"IFERROR(IF(I355=\"t\",H355,H355*VLOOKUP(A355,Stammdaten!$A$3:$C$14,2,FALSE)),\"\")","v":""},null,null,null,""]
[{"$f":"_xlfn.XLOOKUP(B356,Stammdaten!$C$3:$C$14,Stammdaten!$A$3:$A$14,\"\",0,1)","v":""},null,null,null,null,null,null,null,null,"nein",{"$f":"IFERROR(IF(I356=\"t\",H356,H356*VLOOKUP(A356,Stammdaten!$A$3:$C$14,2,FALSE)),\"\")","v":""},null,null,null,""]
[{"$f":"_xlfn.XLOOKUP(B357,Stammdaten!$C$3:$C$14,Stammdaten!$A$3:$A$14,\"\",0,1)","v":""},null,null,null,null,null,null,null,null,"nein",{"$f":"IFERROR(IF(I357=\"t\",H357,H357*VLOOKUP(A357,Stammdaten!$A$3:$C$14,2,FALSE)),\"\")","v":""},null,null,null,""]
[{"$f":"_xlfn.XLOOKUP(B358,Stammdaten!$C$3:$C$14,Stammdaten!$A$3:$A$14,\"\",0,1)","v":""},null,null,null,null,null,null,null,null,"nein",{"$f":"IFERROR(IF(I358=\"t\",H358,H358*VLOOKUP(A358,Stammdaten!$A$3:$C$14,2,FALSE)),\"\")","v":""},null,null,null,""]
[{"$f":"_xlfn.XLOOKUP(B359,Stammdaten!$C$3:$C$14,Stammdaten!$A$3:$A$14,\"\",0,1)","v":""},null,null,null,null,null,null,null,null,"nein",{"$f":"IFERROR(IF(I359=\"t\",H359,H359*VLOOKUP(A359,Stammdaten!$A$3:$C$14,2,FALSE)),\"\")","v":""},null,null,null,""]
[{"$f":"_xlfn.XLOOKUP(B360,Stammdaten!$C$3:$C$14,Stammdaten!$A$3:$A$14,\"\",0,1)","v":""},null,null,null,null,null,null,null,null,"nein",{"$f":"IFERROR(IF(I360=\"t\",H360,H360*VLOOKUP(A360,Stammdaten!$A$3:$C$14,2,FALSE)),\"\")","v":""},null,null,null,""]
[{"$f":"_xlfn.XLOOKUP(B361,Stammdaten!$C$3:$C$14,Stammdaten!$A$3:$A$14,\"\",0,1)","v":""},null,null,null,null,null,null,null,null,"nein",{"$f":"IFERROR(IF(I361=\"t\",H361,H361*VLOOKUP(A361,Stammdaten!$A$3:$C$14,2,FALSE)),\"\")","v":""},null,null,null,{"$f":"IF(SUM(L361:N361)>K361,\"'davon' ist größer als Gesamtgewicht.\",\"\")","v":""}]
[{"$f":"_xlfn.XLOOKUP(B362,Stammdaten!$C$3:$C$14,Stammdaten!$A$3:$A$14,\"\",0,1)","v":""},null,null,null,null,null,null,null,null,"nein",{"$f":"IFERROR(IF(I362=\"t\",H362,H362*VLOOKUP(A362,Stammdaten!$A$3:$C$14,2,FALSE)),\"\")","v":""},null,null,null,""]
[{"$f":"_xlfn.XLOOKUP(B363,Stammdaten!$C$3:$C$14,Stammdaten!$A$3:$A$14,\"\",0,1)","v":""},null,null,null,null,null,null,null,null,"nein",{"$f":"IFERROR(IF(I363=\"t\",H363,H363*VLOOKUP(A363,Stammdaten!$A$3:$C$14,2,FALSE)),\"\")","v":""},null,null,null,""]
[{"$f":"_xlfn.XLOOKUP(B364,Stammdaten!$C$3:$C$14,Stammdaten!$A$3:$A$14,\"\",0,1)","v":""},null,null,null,null,null,null,null,null,"nein",{"$f":"IFERROR(IF(I364=\"t\",H364,H364*VLOOKUP(A364,Stammdaten!$A$3:$C$14,2,FALSE)),\"\")","v":""},null,null,null,""]
[{"$f":"_xlfn.XLOOKUP(B365,Stammdaten!$C$3:$C$14,Stammdaten!$A$3:$A$14,\"\",0,1)","v":""},null,null,null,null,null,null,null,null,"nein",{"$f":"IFERROR(IF(I365=\"t\",H365,H365*VLOOKUP(A365,Stammdaten!$A$3:$C$14,2,FALSE)),\"\")","v":""},null,null,null,""]
[{"$f":"_xlfn.XLOOKUP(B366,Stammdaten!$C$3:$C$14,Stammdaten!$A$3:$A$14,\"\",0,1)","v":""},null,null,null,null,null,null,null,null,"nein",{"$f":"IFERROR(IF(I366=\"t\",H366,H366*VLOOKUP(A366,Stammdaten!$A$3:$C$14,2,FALSE)),\"\")","v":""},null,null,null,""]
[{"$f":"_xlfn.XLOOKUP(B367,Stammdaten!$C$3:$C$14,Stammdaten!$A$3:$A$14,\"\",0,1)","v":""},null,null,null,null,null,null,null,null,"nein",{"$f":"IFERROR(IF(I367=\"t\",H367,H367*VLOOKUP(A367,Stammdaten!$A$3:$C$14,2,FALSE)),\"\")","v":""},null,null,null,""]
[{"$f":"_xlfn.XLOOKUP(B368,Stammdaten!$C$3:$C$14,Stammdaten!$A$3:$A$14,\"\",0,1)","v":""},null,null,null,null,null,null,null,null,"nein",{"$f":"IFERROR(IF(I368=\"t\",H368,H368*VLOOKUP(A368,Stammdaten!$A$3:$C$14,2,FALSE)),\"\")","v":""},null,null,null,""]
[{"$f":"_xlfn.XLOOKUP(B369,Stammdaten!$C$3:$C$14,Stammdaten!$A$3:$A$14,\"\",0,1)","v":""},null,null,null,null,null,null,null,null,"nein",{"$f":"IFERROR(IF(I369=\"t\",H369,H369*VLOOKUP(A369,Stammdaten!$A$3:$C$14,2,FALSE)),\"\")","v":""},null,null,null,""]
[{"$f":"_xlfn.XLOOKUP(B370,Stammdaten!$C$3:$C$14,Stammdaten!$A$3:$A$14,\"\",0,1)","v":""},null,null,null,null,null,null,null,null,"nein",{"$f":"IFERROR(IF(I370=\"t\",H370,H370*VLOOKUP(A370,Stammdaten!$A$3:$C$14,2,FALSE)),\"\")","v":""},null,null,null,""]
[{"$f":"_xlfn.XLOOKUP(B371,Stammdaten!$C$3:$C$14,Stammdaten!$A$3:$A$14,\"\",0,1)","v":""},null,null,null,null,null,null,null,null,"nein",{"$f":"IFERROR(IF(I371=\"t\",H371,H371*VLOOKUP(A371,Stammdaten!$A$3:$C$14,2,FALSE)),\"\")","v":""},null,null,5.5,""]
[{"$f":"_xlfn.XLOOKUP(B372,Stammdaten!$C$3:$C$14,Stammdaten!$A$3:$A$14,\"\",0,1)","v":""},null,null,null,null,null,null,null,null,"nein",{"$f":"IFERROR(IF(I372=\"t\",H372,H372*VLOOKUP(A372,Stammdaten!$A$3:$C$14,2,FALSE)),\"\")","v":""},null,null,null,""]
[{"$f":"_xlfn.XLOOKUP(B373,Stammdaten!$C$3:$C$14,Stammdaten!$A$3:$A$14,\"\",0,1)","v":""},null,null,null,null,null,null,null,null,"nein",{"$f":"IFERROR(IF(I373=\"t\",H373,H373*VLOOKUP(A373,Stammdaten!$A$3:$C$14,2,FALSE)),\"\")","v":""},null,null,null,""]
[{"$f":"_xlfn.XLOOKUP(B374,Stammdaten!$C$3:$C$14,Stammdaten!$A$3:$A$14,\"\",0,1)","v":""},null,null,null,null,null,null,null,null,"nein",{"$f":"IFERROR(IF(I374=\"t\",H374,H374*VLOOKUP(A374,Stammdaten!$A$3:$C$14,2,FALSE)),\"\")","v":""},null,null,null,""]
[{"$f":"_xlfn.XLOOKUP(B375,Stammdaten!$C$3:$C$14,Stammdaten!$A$3:$A$14,\"\",0,1)","v":""},null,null,null,null,null,null,null,null,"nein",{"$f":"IFERROR(IF(I375=\"t\",H375,H375*VLOOKUP(A375,Stammdaten!$A$3:$C$14,2,FALSE)),\"\")","v":""},null,null,null,""]
[{"$f":"_xlfn.XLOOKUP(B376,Stammdaten!$C$3:$C$14,Stammdaten!$A$3:$A$14,\"\",0,1)","v":""},null,null,null,null,null,null,null,null,"nein",{"$f":"IFERROR(IF(I376=\"t\",H376,H376*VLOOKUP(A376,Stammdaten!$A$3:$C$14,2,FALSE)),\"\")","v":""},null,null,null,""]
[{"$f":"_xlfn.XLOOKUP(B377,Stammdaten!$C$3:$C$14,Stammdaten!$A$3:$A$14,\"\",0,1)","v":""},null,null,null,null,null,null,null,null,"nein",{"$f":"IFERROR(IF(I377=\"t\",H377,H377*VLOOKUP(A377,Stammdaten!$A$3:$C$14,2,FALSE)),\"\")","v":""},null,null,null,""]
[{"$f":"_xlfn.XLOOKUP(B378,Stammdaten!$C$3:$C$14,Stammdaten!$A$3:$A$14,\"\",0,1)","v":""},null,null,null,null,null,null,null,null,"nein",{"$f":"IFERROR(IF(I378=\"t\",H378,H378*VLOOKUP(A378,Stammdaten!$A$3:$C$14,2,FALSE)),\"\")","v":""},null,null,null,""]
[{"$f":"_xlfn.XLOOKUP(B379,Stammdaten!$C$3:$C$14,Stammdaten!$A$3:$A$14,\"\",0,1)","v":""},null,null,null,null,null,null,null,null,"nein",{"$f":"IFERROR(IF(I379=\"t\",H379,H379*VLOOKUP(A379,Stammdaten!$A$3:$C$14,2,FALSE)),\"\")","v":""},null,null,null,""]
[{"$f":"_xlfn.XLOOKUP(B380,Stammdaten!$C$3:$C$14,Stammdaten!$A$3:$A$14,\"\",0,1)","v":""},null,null,null,null,null,null,null,null,"nein",{"$f":"IFERROR(IF(I380=\"t\",H380,H380*VLOOKUP(A380,Stammdaten!$A$3:$C$14,2,FALSE)),\"\")","v":""},null,null,null,""]
[{"$f":"_xlfn.XLOOKUP(B381,Stammdaten!$C$3:$C$14,Stammdaten!$A$3:$A$14,\"\",0,1)","v":""},null,null,null,null,null,null,null,null,"nein",{"$f":"IFERROR(IF(I381=\"t\",H381,H381*VLOOKUP(A381,Stammdaten!$A$3:$C$14,2,FALSE)),\"\")","v":""},null,null,null,""]
[{"$f":"_xlfn.XLOOKUP(B382,Stammdaten!$C$3:$C$14,Stammdaten!$A$3:$A$14,\"\",0,1)","v":""},null,null,null,null,null,null,null,null,"nein",{"$f":"IFERROR(IF(I382=\"t\",H382,H382*VLOOKUP(A382,Stammdaten!$A$3:$C$14,2,FALSE)),\"\")","v":""},null,null,null,""]
[{"$f":"_xlfn.XLOOKUP(B383,Stammdaten!$C$3:$C$14,Stammdaten!$A$3:$A$14,\"\",0,1)","v":""},null,null,null,null,null,null,null,null,"nein",{"$f":"IFERROR(IF(I383=\"t\",H383,H383*VLOOKUP(A383,Stammdaten!$A$3:$C$14,2,FALSE)),\"\")","v":""},null,null,null,""]
[{"$f":"_xlfn.XLOOKUP(B384,Stammdaten!$C$3:$C$14,Stammdaten!$A$3:$A$14,\"\",0,1)","v":""},null,null,null,null,null,null,null,null,"nein",{"$f":"IFERROR(IF(I384=\"t\",H384,H384*VLOOKUP(A384,Stammdaten!$A$3:$C$14,2,FALSE)),\"\")","v":""},null,null,null,""]
[{"$f":"_xlfn.XLOOKUP(B385,Stammdaten!$C$3:$C$14,Stammdaten!$A$3:$A$14,\"\",0,1)","v":""},null,null,null,null,null,null,null,null,"nein",{"$f":"IFERROR(IF(I385=\"t\",H385,H385*VLOOKUP(A385,Stammdaten!$A$3:$C$14,2,FALSE)),\"\")","v":""},null,null,null,""]
[{"$f":"_xlfn.XLOOKUP(B386,Stammdaten!$C$3:$C$14,Stammdaten!$A$3:$A$14,\"\",0,1)","v":""},null,null,null,null,null,null,null,null,"nein",{"$f":"IFERROR(IF(I386=\"t\",H386,H386*VLOOKUP(A386,Stammdaten!$A$3:$C$14,2,FALSE)),\"\")","v":""},null,null,null,""]
[{"$f":"_xlfn.XLOOKUP(B387,Stammdaten!$C$3:$C$14,Stammdaten!$A$3:$A$14,\"\",0,1)","v":""},null,null,null,null,null,null,null,null,"nein",{"$f":"IFERROR(IF(I387=\"t\",H387,H387*VLOOKUP(A387,Stammdaten!$A$3:$C$14,2,FALSE)),\"\")","v":""},null,null,null,""]
[{"$f":"_xlfn.XLOOKUP(B388,Stammdaten!$C$3:$C$14,Stammdaten!$A$3:$A$14,\"\",0,1)","v":""},null,null,null,null,null,null,null,null,"nein",{"$f":"IFERROR(IF(I388=\"t\",H388,H388*VLOOKUP(A388,Stammdaten!$A$3:$C$14,2,FALSE)),\"\")","v":""},null,null,null,""]
[{"$f":"_xlfn.XLOOKUP(B389,Stammdaten!$C$3:$C$14,Stammdaten!$A$3:$A$14,\"\",0,1)","v":""},null,null,null,null,null,null,null,null,"nein",{"$f":"IFERROR(IF(I389=\"t\",H389,H389*VLOOKUP(A389,Stammdaten!$A$3:$C$14,2,FALSE)),\"\")","v":""},null,null,null,""]
[{"$f":"_xlfn.XLOOKUP(B390,Stammdaten!$C$3:$C$14,Stammdaten!$A$3:$A$14,\"\",0,1)","v":""},null,null,null,null,null,null,null,null,"nein",{"$f":"IFERROR(IF(I390=\"t\",H390,H390*VLOOKUP(A390,Stammdaten!$A$3:$C$14,2,FALSE)),\"\")","v":""},null,null,null,""]
[{"$f":"_xlfn.XLOOKUP(B391,Stammdaten!$C$3:$C$14,Stammdaten!$A$3:$A$14,\"\",0,1)","v":""},null,null,null,null,null,null,null,null,"nein",{"$f":"IFERROR(IF(I391=\"t\",H391,H391*VLOOKUP(A391,Stammdaten!$A$3:$C$14,2,FALSE)),\"\")","v":""},null,null,null,""]
[{"$f":"_xlfn.XLOOKUP(B392,Stammdaten!$C$3:$C$14,Stammdaten!$A$3:$A$14,\"\",0,1)","v":""},null,null,null,null,null,null,null,null,"nein",{"$f":"IFERROR(IF(I392=\"t\",H392,H392*VLOOKUP(A392,Stammdaten!$A$3:$C$14,2,FALSE)),\"\")","v":""},null,null,null,""]
[{"$f":"_xlfn.XLOOKUP(B393,Stammdaten!$C$3:$C$14,Stammdaten!$A$3:$A$14,\"\",0,1)","v":""},null,null,null,null,null,null,null,null,"nein",{"$f":"IFERROR(IF(I393=\"t\",H393,H393*VLOOKUP(A393,Stammdaten!$A$3:$C$14,2,FALSE)),\"\")","v":""},null,null,null,""]
[{"$f":"_xlfn.XLOOKUP(B394,Stammdaten!$C$3:$C$14,Stammdaten!$A$3:$A$14,\"\",0,1)","v":""},null,null,null,null,null,null,null,null,"nein",{"$f":"IFERROR(IF(I394=\"t\",H394,H394*VLOOKUP(A394,Stammdaten!$A$3:$C$14,2,FALSE)),\"\")","v":""},null,null,null,""]
[{"$f":"_xlfn.XLOOKUP(B395,Stammdaten!$C$3:$C$14,Stammdaten!$A$3:$A$14,\"\",0,1)","v":""},null,null,null,null,null,null,null,null,"nein",{"$f":"IFERROR(IF(I395=\"t\",H395,H395*VLOOKUP(A395,Stammdaten!$A$3:$C$14,2,FALSE)),\"\")","v":""},null,null,null,""]
[{"$f":"_xlfn.XLOOKUP(B396,Stammdaten!$C$3:$C$14,Stammdaten!$A$3:$A$14,\"\",0,1)","v":""},null,null,null,null,null,null,null,null,"nein",{"$f":"IFERROR(IF(I396=\"t\",H396,H396*VLOOKUP(A396,Stammdaten!$A$3:$C$14,2,FALSE)),\"\")","v":""},null,null,null,""]
[{"$f":"_xlfn.XLOOKUP(B397,Stammdaten!$C$3:$C$14,Stammdaten!$A$3:$A$14,\"\",0,1)","v":""},null,null,null,null,null,null,null,null,"nein",{"$f":"IFERROR(IF(I397=\"t\",H397,H397*VLOOKUP(A397,Stammdaten!$A$3:$C$14,2,FALSE)),\"\")","v":""},null,null,null,""]
[{"$f":"_xlfn.XLOOKUP(B398,Stammdaten!$C$3:$C$14,Stammdaten!$A$3:$A$14,\"\",0,1)","v":""},null,null,null,null,null,null,null,null,"nein",{"$f":"IFERROR(IF(I398=\"t\",H398,H398*VLOOKUP(A398,Stammdaten!$A$3:$C$14,2,FALSE)),\"\")","v":""},null,null,null,""]
[{"$f":"_xlfn.XLOOKUP(B399,Stammdaten!$C$3:$C$14,Stammdaten!$A$3:$A$14,\"\",0,1)","v":""},null,null,null,null,null,null,null,null,"nein",{"$f":"IFERROR(IF(I399=\"t\",H399,H399*VLOOKUP(A399,Stammdaten!$A$3:$C$14,2,FALSE)),\"\")","v":""},null,null,null,""]
[{"$f":"_xlfn.XLOOKUP(B400,Stammdaten!$C$3:$C$14,Stammdaten!$A$3:$A$14,\"\",0,1)","v":""},null,null,null,null,null,null,null,null,"nein",{"$f":"IFERROR(IF(I400=\"t\",H400,H400*VLOOKUP(A400,Stammdaten!$A$3:$C$14,2,FALSE)),\"\")","v":""},null,null,null,""]
[{"$f":"_xlfn.XLOOKUP(B401,Stammdaten!$C$3:$C$14,Stammdaten!$A$3:$A$14,\"\",0,1)","v":""},null,null,null,null,null,null,null,null,"nein",{"$f":"IFERROR(IF(I401=\"t\",H401,H401*VLOOKUP(A401,Stammdaten!$A$3:$C$14,2,FALSE)),\"\")","v":""},null,null,null,""]
[{"$f":"_xlfn.XLOOKUP(B402,Stammdaten!$C$3:$C$14,Stammdaten!$A$3:$A$14,\"\",0,1)","v":""},null,null,null,null,null,null,null,null,"nein",{"$f":"IFERROR(IF(I402=\"t\",H402,H402*VLOOKUP(A402,Stammdaten!$A$3:$C$14,2,FALSE)),\"\")","v":""},null,null,null,""]
[{"$f":"_xlfn.XLOOKUP(B403,Stammdaten!$C$3:$C$14,Stammdaten!$A$3:$A$14,\"\",0,1)","v":""},null,null,null,null,null,null,null,null,"nein",{"$f":"IFERROR(IF(I403=\"t\",H403,H403*VLOOKUP(A403,Stammdaten!$A$3:$C$14,2,FALSE)),\"\")","v":""},null,null,null,""]
[{"$f":"_xlfn.XLOOKUP(B404,Stammdaten!$C$3:$C$14,Stammdaten!$A$3:$A$14,\"\",0,1)","v":""},null,null,null,null,null,null,null,null,"nein",{"$f":"IFERROR(IF(I404=\"t\",H404,H404*VLOOKUP(A404,Stammdaten!$A$3:$C$14,2,FALSE)),\"\")","v":""},null,null,null,""]
[{"$f":"_xlfn.XLOOKUP(B405,Stammdaten!$C$3:$C$14,Stammdaten!$A$3:$A$14,\"\",0,1)","v":""},null,null,null,null,null,null,null,null,"nein",{"$f":"IFERROR(IF(I405=\"t\",H405,H405*VLOOKUP(A405,Stammdaten!$A$3:$C$14,2,FALSE)),\"\")","v":""},null,null,null,""]
[{"$f":"_xlfn.XLOOKUP(B406,Stammdaten!$C$3:$C$14,Stammdaten!$A$3:$A$14,\"\",0,1)","v":""},null,null,null,null,null,null,null,null,"nein",{"$f":"IFERROR(IF(I406=\"t\",H406,H406*VLOOKUP(A406,Stammdaten!$A$3:$C$14,2,FALSE)),\"\")","v":""},null,null,null,""]
[{"$f":"_xlfn.XLOOKUP(B407,Stammdaten!$C$3:$C$14,Stammdaten!$A$3:$A$14,\"\",0,1)","v":""},null,null,null,null,null,null,null,null,"nein",{"$f":"IFERROR(IF(I407=\"t\",H407,H407*VLOOKUP(A407,Stammdaten!$A$3:$C$14,2,FALSE)),\"\")","v":""},null,null,null,""]
[{"$f":"_xlfn.XLOOKUP(B408,Stammdaten!$C$3:$C$14,Stammdaten!$A$3:$A$14,\"\",0,1)","v":""},null,null,null,null,null,null,null,null,"nein",{"$f":"IFERROR(IF(I408=\"t\",H408,H408*VLOOKUP(A408,Stammdaten!$A$3:$C$14,2,FALSE)),\"\")","v":""},null,null,null,""]
[{"$f":"_xlfn.XLOOKUP(B409,Stammdaten!$C$3:$C$14,Stammdaten!$A$3:$A$14,\"\",0,1)","v":""},null,null,null,null,null,null,null,null,"nein",{"$f":"IFERROR(IF(I409=\"t\",H409,H409*VLOOKUP(A409,Stammdaten!$A$3:$C$14,2,FALSE)),\"\")","v":""},null,null,null,""]
[{"$f":"_xlfn.XLOOKUP(B410,Stammdaten!$C$3:$C$14,Stammdaten!$A$3:$A$14,\"\",0,1)","v":""},null,null,null,null,null,null,null,null,"nein",{"$f":"IFERROR(IF(I410=\"t\",H410,H410*VLOOKUP(A410,Stammdaten!$A$3:$C$14,2,FALSE)),\"\")","v":""},null,null,null,""]
[{"$f":"_xlfn.XLOOKUP(B411,Stammdaten!$C$3:$C$14,Stammdaten!$A$3:$A$14,\"\",0,1)","v":""},null,null,null,null,null,null,null,null,"nein",{"$f":"IFERROR(IF(I411=\"t\",H411,H411*VLOOKUP(A411,Stammdaten!$A$3:$C$14,2,FALSE)),\"\")","v":""},null,null,null,""]
[{"$f":"_xlfn.XLOOKUP(B412,Stammdaten!$C$3:$C$14,Stammdaten!$A$3:$A$14,\"\",0,1)","v":""},null,null,null,null,null,null,null,null,"nein",{"$f":"IFERROR(IF(I412=\"t\",H412,H412*VLOOKUP(A412,Stammdaten!$A$3:$C$14,2,FALSE)),\"\")","v":""},null,null,null,""]
[{"$f":"_xlfn.XLOOKUP(B413,Stammdaten!$C$3:$C$14,Stammdaten!$A$3:$A$14,\"\",0,1)","v":""},null,null,null,null,null,null,null,null,"nein",{"$f":"IFERROR(IF(I413=\"t\",H413,H413*VLOOKUP(A413,Stammdaten!$A$3:$C$14,2,FALSE)),\"\")","v":""},null,null,null,""]
[{"$f":"_xlfn.XLOOKUP(B414,Stammdaten!$C$3:$C$14,Stammdaten!$A$3:$A$14,\"\",0,1)","v":""},null,null,null,null,null,null,null,null,"nein",{"$f":"IFERROR(IF(I414=\"t\",H414,H414*VLOOKUP(A414,Stammdaten!$A$3:$C$14,2,FALSE)),\"\")","v":""},null,null,null,""]
[{"$f":"_xlfn.XLOOKUP(B415,Stammdaten!$C$3:$C$14,Stammdaten!$A$3:$A$14,\"\",0,1)","v":""},null,null,null,null,null,null,null,null,"nein",{"$f":"IFERROR(IF(I415=\"t\",H415,H415*VLOOKUP(A415,Stammdaten!$A$3:$C$14,2,FALSE)),\"\")","v":""},null,null,null,""]
[{"$f":"_xlfn.XLOOKUP(B416,Stammdaten!$C$3:$C$14,Stammdaten!$A$3:$A$14,\"\",0,1)","v":""},null,null,null,null,null,null,null,null,"nein",{"$f":"IFERROR(IF(I416=\"t\",H416,H416*VLOOKUP(A416,Stammdaten!$A$3:$C$14,2,FALSE)),\"\")","v":""},null,null,null,""]
[{"$f":"_xlfn.XLOOKUP(B417,Stammdaten!$C$3:$C$14,Stammdaten!$A$3:$A$14,\"\",0,1)","v":""},null,null,null,null,null,null,null,null,"nein",{"$f":"IFERROR(IF(I417=\"t\",H417,H417*VLOOKUP(A417,Stammdaten!$A$3:$C$14,2,FALSE)),\"\")","v":""},null,null,null,""]
[{"$f":"_xlfn.XLOOKUP(B418,Stammdaten!$C$3:$C$14,Stammdaten!$A$3:$A$14,\"\",0,1)","v":""},null,null,null,null,null,null,null,null,"nein",{"$f":"IFERROR(IF(I418=\"t\",H418,H418*VLOOKUP(A418,Stammdaten!$A$3:$C$14,2,FALSE)),\"\")","v":""},null,null,null,""]
[{"$f":"_xlfn.XLOOKUP(B419,Stammdaten!$C$3:$C$14,Stammdaten!$A$3:$A$14,\"\",0,1)","v":""},null,null,null,null,null,null,null,null,"nein",{"$f":"IFERROR(IF(I419=\"t\",H419,H419*VLOOKUP(A419,Stammdaten!$A$3:$C$14,2,FALSE)),\"\")","v":""},null,null,null,""]
[{"$f":"_xlfn.XLOOKUP(B420,Stammdaten!$C$3:$C$14,Stammdaten!$A$3:$A$14,\"\",0,1)","v":""},null,null,null,null,null,null,null,null,"nein",{"$f":"IFERROR(IF(I420=\"t\",H420,H420*VLOOKUP(A420,Stammdaten!$A$3:$C$14,2,FALSE)),\"\")","v":""},null,null,null,""]
[{"$f":"_xlfn.XLOOKUP(B421,Stammdaten!$C$3:$C$14,Stammdaten!$A$3:$A$14,\"\",0,1)","v":""},null,null,null,null,null,null,null,null,"nein",{"$f":"IFERROR(IF(I421=\"t\",H421,H421*VLOOKUP(A421,Stammdaten!$A$3:$C$14,2,FALSE)),\"\")","v":""},null,null,null,""]
[{"$f":"_xlfn.XLOOKUP(B422,Stammdaten!$C$3:$C$14,Stammdaten!$A$3:$A$14,\"\",0,1)","v":""},null,null,null,null,null,null,null,null,"nein",{"$f":"IFERROR(IF(I422=\"t\",H422,H422*VLOOKUP(A422,Stammdaten!$A$3:$C$14,2,FALSE)),\"\")","v":""},null,null,null,""]
[{"$f":"_xlfn.XLOOKUP(B423,Stammdaten!$C$3:$C$14,Stammdaten!$A$3:$A$14,\"\",0,1)","v":""},null,null,null,null,null,null,null,null,"nein",{"$f":"IFERROR(IF(I423=\"t\",H423,H423*VLOOKUP(A423,Stammdaten!$A$3:$C$14,2,FALSE)),\"\")","v":""},null,null,null,""]
[{"$f":"_xlfn.XLOOKUP(B424,Stammdaten!$C$3:$C$14,Stammdaten!$A$3:$A$14,\"\",0,1)","v":""},null,null,null,null,null,null,null,null,"nein",{"$f":"IFERROR(IF(I424=\"t\",H424,H424*VLOOKUP(A424,Stammdaten!$A$3:$C$14,2,FALSE)),\"\")","v":""},null,null,null,""]
[{"$f":"_xlfn.XLOOKUP(B425,Stammdaten!$C$3:$C$14,Stammdaten!$A$3:$A$14,\"\",0,1)","v":""},null,null,null,null,null,null,null,null,"nein",{"$f":"IFERROR(IF(I425=\"t\",H425,H425*VLOOKUP(A425,Stammdaten!$A$3:$C$14,2,FALSE)),\"\")","v":""},null,null,null,{"$f":"IF(SUM(L425:N425)>K425,\"'davon' ist größer als Gesamtgewicht.\",\"\")","v":""}]
[{"$f":"_xlfn.XLOOKUP(B426,Stammdaten!$C$3:$C$14,Stammdaten!$A$3:$A$14,\"\",0,1)","v":""},null,null,null,null,null,null,null,null,"nein",{"$f":"IFERROR(IF(I426=\"t\",H426,H426*VLOOKUP(A426,Stammdaten!$A$3:$C$14,2,FALSE)),\"\")","v":""},null,null,null,""]
[{"$f":"_xlfn.XLOOKUP(B427,Stammdaten!$C$3:$C$14,Stammdaten!$A$3:$A$14,\"\",0,1)","v":""},null,null,null,null,null,null,null,null,"nein",{"$f":"IFERROR(IF(I427=\"t\",H427,H427*VLOOKUP(A427,Stammdaten!$A$3:$C$14,2,FALSE)),\"\")","v":""},null,null,null,""]
[{"$f":"_xlfn.XLOOKUP(B428,Stammdaten!$C$3:$C$14,Stammdaten!$A$3:$A$14,\"\",0,1)","v":""},null,null,null,null,null,null,null,null,"nein",{"$f":"IFERROR(IF(I428=\"t\",H428,H428*VLOOKUP(A428,Stammdaten!$A$3:$C$14,2,FALSE)),\"\")","v":""},null,null,null,""]
[{"$f":"_xlfn.XLOOKUP(B429,Stammdaten!$C$3:$C$14,Stammdaten!$A$3:$A$14,\"\",0,1)","v":""},null,null,null,null,null,null,null,null,"nein",{"$f":"IFERROR(IF(I429=\"t\",H429,H429*VLOOKUP(A429,Stammdaten!$A$3:$C$14,2,FALSE)),\"\")","v":""},null,null,null,""]
[{"$f":"_xlfn.XLOOKUP(B430,Stammdaten!$C$3:$C$14,Stammdaten!$A$3:$A$14,\"\",0,1)","v":""},null,null,null,null,null,null,null,null,"nein",{"$f":"IFERROR(IF(I430=\"t\",H430,H430*VLOOKUP(A430,Stammdaten!$A$3:$C$14,2,FALSE)),\"\")","v":""},null,null,null,""]
[{"$f":"_xlfn.XLOOKUP(B431,Stammdaten!$C$3:$C$14,Stammdaten!$A$3:$A$14,\"\",0,1)","v":""},null,null,null,null,null,null,null,null,"nein",{"$f":"IFERROR(IF(I431=\"t\",H431,H431*VLOOKUP(A431,Stammdaten!$A$3:$C$14,2,FALSE)),\"\")","v":""},null,null,null,""]
[{"$f":"_xlfn.XLOOKUP(B432,Stammdaten!$C$3:$C$14,Stammdaten!$A$3:$A$14,\"\",0,1)","v":""},null,null,null,null,null,null,null,null,"nein",{"$f":"IFERROR(IF(I432=\"t\",H432,H432*VLOOKUP(A432,Stammdaten!$A$3:$C$14,2,FALSE)),\"\")","v":""},null,null,null,""]
[{"$f":"_xlfn.XLOOKUP(B433,Stammdaten!$C$3:$C$14,Stammdaten!$A$3:$A$14,\"\",0,1)","v":""},null,null,null,null,null,null,null,null,"nein",{"$f":"IFERROR(IF(I433=\"t\",H433,H433*VLOOKUP(A433,Stammdaten!$A$3:$C$14,2,FALSE)),\"\")","v":""},null,null,null,""]
[{"$f":"_xlfn.XLOOKUP(B434,Stammdaten!$C$3:$C$14,Stammdaten!$A$3:$A$14,\"\",0,1)","v":""},null,null,null,null,null,null,null,null,"nein",{"$f":"IFERROR(IF(I434=\"t\",H434,H434*VLOOKUP(A434,Stammdaten!$A$3:$C$14,2,FALSE)),\"\")","v":""},null,null,null,""]
[{"$f":"_xlfn.XLOOKUP(B435,Stammdaten!$C$3:$C$14,Stammdaten!$A$3:$A$14,\"\",0,1)","v":""},null,null,null,null,null,null,null,null,"nein",{"$f":"IFERROR(IF(I435=\"t\",H435,H435*VLOOKUP(A435,Stammdaten!$A$3:$C$14,2,FALSE)),\"\")","v":""},null,null,null,""]
[{"$f":"_xlfn.XLOOKUP(B436,Stammdaten!$C$3:$C$14,Stammdaten!$A$3:$A$14,\"\",0,1)","v":""},null,null,null,null,null,null,null,null,"nein",{"$f":"IFERROR(IF(I436=\"t\",H436,H436*VLOOKUP(A436,Stammdaten!$A$3:$C$14,2,FALSE)),\"\")","v":""},null,null,null,""]
[{"$f":"_xlfn.XLOOKUP(B437,Stammdaten!$C$3:$C$14,Stammdaten!$A$3:$A$14,\"\",0,1)","v":""},null,null,null,null,null,null,null,null,"nein",{"$f":"IFERROR(IF(I437=\"t\",H437,H437*VLOOKUP(A437,Stammdaten!$A$3:$C$14,2,FALSE)),\"\")","v":""},null,null,null,""]
[{"$f":"_xlfn.XLOOKUP(B438,Stammdaten!$C$3:$C$14,Stammdaten!$A$3:$A$14,\"\",0,1)","v":""},null,null,null,null,null,null,null,null,"nein",{"$f":"IFERROR(IF(I438=\"t\",H438,H438*VLOOKUP(A438,Stammdaten!$A$3:$C$14,2,FALSE)),\"\")","v":""},null,null,null,""]
[{"$f":"_xlfn.XLOOKUP(B439,Stammdaten!$C$3:$C$14,Stammdaten!$A$3:$A$14,\"\",0,1)","v":""},null,null,null,null,null,null,null,null,"nein",{"$f":"IFERROR(IF(I439=\"t\",H439,H439*VLOOKUP(A439,Stammdaten!$A$3:$C$14,2,FALSE)),\"\")","v":""},null,null,null,""]
[{"$f":"_xlfn.XLOOKUP(B440,Stammdaten!$C$3:$C$14,Stammdaten!$A$3:$A$14,\"\",0,1)","v":""},null,null,null,null,null,null,null,null,"nein",{"$f":"IFERROR(IF(I440=\"t\",H440,H440*VLOOKUP(A440,Stammdaten!$A$3:$C$14,2,FALSE)),\"\")","v":""},null,null,null,""]
[{"$f":"_xlfn.XLOOKUP(B441,Stammdaten!$C$3:$C$14,Stammdaten!$A$3:$A$14,\"\",0,1)","v":""},null,null,null,null,null,null,null,null,"nein",{"$f":"IFERROR(IF(I441=\"t\",H441,H441*VLOOKUP(A441,Stammdaten!$A$3:$C$14,2,FALSE)),\"\")","v":""},null,null,null,""]
[{"$f":"_xlfn.XLOOKUP(B442,Stammdaten!$C$3:$C$14,Stammdaten!$A$3:$A$14,\"\",0,1)","v":""},null,null,null,null,null,null,null,null,"nein",{"$f":"IFERROR(IF(I442=\"t\",H442,H442*VLOOKUP(A442,Stammdaten!$A$3:$C$14,2,FALSE)),\"\")","v":""},null,null,null,""]
[{"$f":"_xlfn.XLOOKUP(B443,Stammdaten!$C$3:$C$14,Stammdaten!$A$3:$A$14,\"\",0,1)","v":""},null,null,null,null,null,null,null,null,"nein",{"$f":"IFERROR(IF(I443=\"t\",H443,H443*VLOOKUP(A443,Stammdaten!$A$3:$C$14,2,FALSE)),\"\")","v":""},null,null,null,""]
[{"$f":"_xlfn.XLOOKUP(B444,Stammdaten!$C$3:$C$14,Stammdaten!$A$3:$A$14,\"\",0,1)","v":""},null,null,null,null,null,null,null,null,"nein",{"$f":"IFERROR(IF(I444=\"t\",H444,H444*VLOOKUP(A444,Stammdaten!$A$3:$C$14,2,FALSE)),\"\")","v":""},null,null,null,""]
[{"$f":"_xlfn.XLOOKUP(B445,Stammdaten!$C$3:$C$14,Stammdaten!$A$3:$A$14,\"\",0,1)","v":""},null,null,null,null,null,null,null,null,"nein",{"$f":"IFERROR(IF(I445=\"t\",H445,H445*VLOOKUP(A445,Stammdaten!$A$3:$C$14,2,FALSE)),\"\")","v":""},null,null,null,""]
[{"$f":"_xlfn.XLOOKUP(B446,Stammdaten!$C$3:$C$14,Stammdaten!$A$3:$A$14,\"\",0,1)","v":""},null,null,null,null,null,null,null,null,"nein",{"$f":"IFERROR(IF(I446=\"t\",H446,H446*VLOOKUP(A446,Stammdaten!$A$3:$C$14,2,FALSE)),\"\")","v":""},null,null,null,""]
[{"$f":"_xlfn.XLOOKUP(B447,Stammdaten!$C$3:$C$14,Stammdaten!$A$3:$A$14,\"\",0,1)","v":""},null,null,null,null,null,null,null,null,"nein",{"$f":"IFERROR(IF(I447=\"t\",H447,H447*VLOOKUP(A447,Stammdaten!$A$3:$C$14,2,FALSE)),\"\")","v":""},null,null,null,""]
[{"$f":"_xlfn.XLOOKUP(B448,Stammdaten!$C$3:$C$14,Stammdaten!$A$3:$A$14,\"\",0,1)","v":""},null,null,null,null,null,null,null,null,"nein",{"$f":"IFERROR(IF(I448=\"t\",H448,H448*VLOOKUP(A448,Stammdaten!$A$3:$C$14,2,FALSE)),\"\")","v":""},null,null,null,""]
[{"$f":"_xlfn.XLOOKUP(B449,Stammdaten!$C$3:$C$14,Stammdaten!$A$3:$A$14,\"\",0,1)","v":""},null,null,null,null,null,null,null,null,"nein",{"$f":"IFERROR(IF(I449=\"t\",H449,H449*VLOOKUP(A449,Stammdaten!$A$3:$C$14,2,FALSE)),\"\")","v":""},null,null,null,""]
[{"$f":"_xlfn.XLOOKUP(B450,Stammdaten!$C$3:$C$14,Stammdaten!$A$3:$A$14,\"\",0,1)","v":""},null,null,null,null,null,null,null,null,"nein",{"$f":"IFERROR(IF(I450=\"t\",H450,H450*VLOOKUP(A450,Stammdaten!$A$3:$C$14,2,FALSE)),\"\")","v":""},null,null,null,""]
[{"$f":"_xlfn.XLOOKUP(B451,Stammdaten!$C$3:$C$14,Stammdaten!$A$3:$A$14,\"\",0,1)","v":""},null,null,null,null,null,null,null,null,"nein",{"$f":"IFERROR(IF(I451=\"t\",H451,H451*VLOOKUP(A451,Stammdaten!$A$3:$C$14,2,FALSE)),\"\")","v":""},null,null,null,""]
[{"$f":"_xlfn.XLOOKUP(B452,Stammdaten!$C$3:$C$14,Stammdaten!$A$3:$A$14,\"\",0,1)","v":""},null,null,null,null,null,null,null,null,"nein",{"$f":"IFERROR(IF(I452=\"t\",H452,H452*VLOOKUP(A452,Stammdaten!$A$3:$C$14,2,FALSE)),\"\")","v":""},null,null,null,""]
[{"$f":"_xlfn.XLOOKUP(B453,Stammdaten!$C$3:$C$14,Stammdaten!$A$3:$A$14,\"\",0,1)","v":""},null,null,null,null,null,null,null,null,"nein",{"$f":"IFERROR(IF(I453=\"t\",H453,H453*VLOOKUP(A453,Stammdaten!$A$3:$C$14,2,FALSE)),\"\")","v":""},null,null,null,""]
[{"$f":"_xlfn.XLOOKUP(B454,Stammdaten!$C$3:$C$14,Stammdaten!$A$3:$A$14,\"\",0,1)","v":""},null,null,null,null,null,null,null,null,"nein",{"$f":"IFERROR(IF(I454=\"t\",H454,H454*VLOOKUP(A454,Stammdaten!$A$3:$C$14,2,FALSE)),\"\")","v":""},null,null,null,""]
[{"$f":"_xlfn.XLOOKUP(B455,Stammdaten!$C$3:$C$14,Stammdaten!$A$3:$A$14,\"\",0,1)","v":""},null,null,null,null,null,null,null,null,"nein",{"$f":"IFERROR(IF(I455=\"t\",H455,H455*VLOOKUP(A455,Stammdaten!$A$3:$C$14,2,FALSE)),\"\")","v":""},null,null,null,""]
[{"$f":"_xlfn.XLOOKUP(B456,Stammdaten!$C$3:$C$14,Stammdaten!$A$3:$A$14,\"\",0,1)","v":""},null,null,null,null,null,null,null,null,"nein",{"$f":"IFERROR(IF(I456=\"t\",H456,H456*VLOOKUP(A456,Stammdaten!$A$3:$C$14,2,FALSE)),\"\")","v":""},null,null,null,""]
[{"$f":"_xlfn.XLOOKUP(B457,Stammdaten!$C$3:$C$14,Stammdaten!$A$3:$A$14,\"\",0,1)","v":""},null,null,null,null,null,null,null,null,"nein",{"$f":"IFERROR(IF(I457=\"t\",H457,H457*VLOOKUP(A457,Stammdaten!$A$3:$C$14,2,FALSE)),\"\")","v":""},null,null,null,""]
[{"$f":"_xlfn.XLOOKUP(B458,Stammdaten!$C$3:$C$14,Stammdaten!$A$3:$A$14,\"\",0,1)","v":""},null,null,null,null,null,null,null,null,"nein",{"$f":"IFERROR(IF(I458=\"t\",H458,H458*VLOOKUP(A458,Stammdaten!$A$3:$C$14,2,FALSE)),\"\")","v":""},null,null,null,""]
[{"$f":"_xlfn.XLOOKUP(B459,Stammdaten!$C$3:$C$14,Stammdaten!$A$3:$A$14,\"\",0,1)","v":""},null,null,null,null,null,null,null,null,"nein",{"$f":"IFERROR(IF(I459=\"t\",H459,H459*VLOOKUP(A459,Stammdaten!$A$3:$C$14,2,FALSE)),\"\")","v":""},null,null,null,""]
[{"$f":"_xlfn.XLOOKUP(B460,Stammdaten!$C$3:$C$14,Stammdaten!$A$3:$A$14,\"\",0,1)","v":""},null,null,null,null,null,null,null,null,"nein",{"$f":"IFERROR(IF(I460=\"t\",H460,H460*VLOOKUP(A460,Stammdaten!$A$3:$C$14,2,FALSE)),\"\")","v":""},null,null,null,""]
[{"$f":"_xlfn.XLOOKUP(B461,Stammdaten!$C$3:$C$14,Stammdaten!$A$3:$A$14,\"\",0,1)","v":""},null,null,null,null,null,null,null,null,"nein",{"$f":"IFERROR(IF(I461=\"t\",H461,H461*VLOOKUP(A461,Stammdaten!$A$3:$C$14,2,FALSE)),\"\")","v":""},null,null,null,""]
[{"$f":"_xlfn.XLOOKUP(B462,Stammdaten!$C$3:$C$14,Stammdaten!$A$3:$A$14,\"\",0,1)","v":""},null,null,null,null,null,null,null,null,"nein",{"$f":"IFERROR(IF(I462=\"t\",H462,H462*VLOOKUP(A462,Stammdaten!$A$3:$C$14,2,FALSE)),\"\")","v":""},null,null,null,""]
[{"$f":"_xlfn.XLOOKUP(B463,Stammdaten!$C$3:$C$14,Stammdaten!$A$3:$A$14,\"\",0,1)","v":""},null,null,null,null,null,null,null,null,"nein",{"$f":"IFERROR(IF(I463=\"t\",H463,H463*VLOOKUP(A463,Stammdaten!$A$3:$C$14,2,FALSE)),\"\")","v":""},null,null,null,""]
[{"$f":"_xlfn.XLOOKUP(B464,Stammdaten!$C$3:$C$14,Stammdaten!$A$3:$A$14,\"\",0,1)","v":""},null,null,null,null,null,null,null,null,"nein",{"$f":"IFERROR(IF(I464=\"t\",H464,H464*VLOOKUP(A464,Stammdaten!$A$3:$C$14,2,FALSE)),\"\")","v":""},null,null,null,""]
[{"$f":"_xlfn.XLOOKUP(B465,Stammdaten!$C$3:$C$14,Stammdaten!$A$3:$A$14,\"\",0,1)","v":""},null,null,null,null,null,null,null,null,"nein",{"$f":"IFERROR(IF(I465=\"t\",H465,H465*VLOOKUP(A465,Stammdaten!$A$3:$C$14,2,FALSE)),\"\")","v":""},null,null,null,""]
[{"$f":"_xlfn.XLOOKUP(B466,Stammdaten!$C$3:$C$14,Stammdaten!$A$3:$A$14,\"\",0,1)","v":""},null,null,null,null,null,null,null,null,"nein",{"$f":"IFERROR(IF(I466=\"t\",H466,H466*VLOOKUP(A466,Stammdaten!$A$3:$C$14,2,FALSE)),\"\")","v":""},null,null,null,""]
[{"$f":"_xlfn.XLOOKUP(B467,Stammdaten!$C$3:$C$14,Stammdaten!$A$3:$A$14,\"\",0,1)","v":""},null,null,null,null,null,null,null,null,"nein",{"$f":"IFERROR(IF(I467=\"t\",H467,H467*VLOOKUP(A467,Stammdaten!$A$3:$C$14,2,FALSE)),\"\")","v":""},null,null,null,""]
[{"$f":"_xlfn.XLOOKUP(B468,Stammdaten!$C$3:$C$14,Stammdaten!$A$3:$A$14,\"\",0,1)","v":""},null,null,null,null,null,null,null,null,"nein",{"$f":"IFERROR(IF(I468=\"t\",H468,H468*VLOOKUP(A468,Stammdaten!$A$3:$C$14,2,FALSE)),\"\")","v":""},null,null,null,""]
[{"$f":"_xlfn.XLOOKUP(B469,Stammdaten!$C$3:$C$14,Stammdaten!$A$3:$A$14,\"\",0,1)","v":""},null,null,null,null,null,null,null,null,"nein",{"$f":"IFERROR(IF(I469=\"t\",H469,H469*VLOOKUP(A469,Stammdaten!$A$3:$C$14,2,FALSE)),\"\")","v":""},null,null,null,""]
[{"$f":"_xlfn.XLOOKUP(B470,Stammdaten!$C$3:$C$14,Stammdaten!$A$3:$A$14,\"\",0,1)","v":""},null,null,null,null,null,null,null,null,"nein",{"$f":"IFERROR(IF(I470=\"t\",H470,H470*VLOOKUP(A470,Stammdaten!$A$3:$C$14,2,FALSE)),\"\")","v":""},null,null,null,""]
[{"$f":"_xlfn.XLOOKUP(B471,Stammdaten!$C$3:$C$14,Stammdaten!$A$3:$A$14,\"\",0,1)","v":""},null,null,null,null,null,null,null,null,"nein",{"$f":"IFERROR(IF(I471=\"t\",H471,H471*VLOOKUP(A471,Stammdaten!$A$3:$C$14,2,FALSE)),\"\")","v":""},null,null,null,""]
[{"$f":"_xlfn.XLOOKUP(B472,Stammdaten!$C$3:$C$14,Stammdaten!$A$3:$A$14,\"\",0,1)","v":""},null,null,null,null,null,null,null,null,"nein",{"$f":"IFERROR(IF(I472=\"t\",H472,H472*VLOOKUP(A472,Stammdaten!$A$3:$C$14,2,FALSE)),\"\")","v":""},null,null,null,""]
[{"$f":"_xlfn.XLOOKUP(B473,Stammdaten!$C$3:$C$14,Stammdaten!$A$3:$A$14,\"\",0,1)","v":""},null,null,null,null,null,null,null,null,"nein",{"$f":"IFERROR(IF(I473=\"t\",H473,H473*VLOOKUP(A473,Stammdaten!$A$3:$C$14,2,FALSE)),\"\")","v":""},null,null,null,""]
[{"$f":"_xlfn.XLOOKUP(B474,Stammdaten!$C$3:$C$14,Stammdaten!$A$3:$A$14,\"\",0,1)","v":""},null,null,null,null,null,null,null,null,"nein",{"$f":"IFERROR(IF(I474=\"t\",H474,H474*VLOOKUP(A474,Stammdaten!$A$3:$C$14,2,FALSE)),\"\")","v":""},null,null,null,""]
[{"$f":"_xlfn.XLOOKUP(B475,Stammdaten!$C$3:$C$14,Stammdaten!$A$3:$A$14,\"\",0,1)","v":""},null,null,null,null,null,null,null,null,"nein",{"$f":"IFERROR(IF(I475=\"t\",H475,H475*VLOOKUP(A475,Stammdaten!$A$3:$C$14,2,FALSE)),\"\")","v":""},null,null,null,""]
[{"$f":"_xlfn.XLOOKUP(B476,Stammdaten!$C$3:$C$14,Stammdaten!$A$3:$A$14,\"\",0,1)","v":""},null,null,null,null,null,null,null,null,"nein",{"$f":"IFERROR(IF(I476=\"t\",H476,H476*VLOOKUP(A476,Stammdaten!$A$3:$C$14,2,FALSE)),\"\")","v":""},null,null,null,""]
[{"$f":"_xlfn.XLOOKUP(B477,Stammdaten!$C$3:$C$14,Stammdaten!$A$3:$A$14,\"\",0,1)","v":""},null,null,null,null,null,null,null,null,"nein",{"$f":"IFERROR(IF(I477=\"t\",H477,H477*VLOOKUP(A477,Stammdaten!$A$3:$C$14,2,FALSE)),\"\")","v":""},null,null,null,""]
[{"$f":"_xlfn.XLOOKUP(B478,Stammdaten!$C$3:$C$14,Stammdaten!$A$3:$A$14,\"\",0,1)","v":""},null,null,null,null,null,null,null,null,"nein",{"$f":"IFERROR(IF(I478=\"t\",H478,H478*VLOOKUP(A478,Stammdaten!$A$3:$C$14,2,FALSE)),\"\")","v":""},null,null,null,""]
[{"$f":"_xlfn.XLOOKUP(B479,Stammdaten!$C$3:$C$14,Stammdaten!$A$3:$A$14,\"\",0,1)","v":""},null,null,null,null,null,null,null,null,"nein",{"$f":"IFERROR(IF(I479=\"t\",H479,H479*VLOOKUP(A479,Stammdaten!$A$3:$C$14,2,FALSE)),\"\")","v":""},null,null,null,""]
[{"$f":"_xlfn.XLOOKUP(B480,Stammdaten!$C$3:$C$14,Stammdaten!$A$3:$A$14,\"\",0,1)","v":""},null,null,null,null,null,null,null,null,"nein",{"$f":"IFERROR(IF(I480=\"t\",H480,H480*VLOOKUP(A480,Stammdaten!$A$3:$C$14,2,FALSE)),\"\")","v":""},null,null,null,""]
[{"$f":"_xlfn.XLOOKUP(B481,Stammdaten!$C$3:$C$14,Stammdaten!$A$3:$A$14,\"\",0,1)","v":""},null,null,null,null,null,null,null,null,"nein",{"$f":"IFERROR(IF(I481=\"t\",H481,H481*VLOOKUP(A481,Stammdaten!$A$3:$C$14,2,FALSE)),\"\")","v":""},null,null,null,""]
[{"$f":"_xlfn.XLOOKUP(B482,Stammdaten!$C$3:$C$14,Stammdaten!$A$3:$A$14,\"\",0,1)","v":""},null,null,null,null,null,null,null,null,"nein",{"$f":"IFERROR(IF(I482=\"t\",H482,H482*VLOOKUP(A482,Stammdaten!$A$3:$C$14,2,FALSE)),\"\")","v":""},null,null,null,""]
[{"$f":"_xlfn.XLOOKUP(B483,Stammdaten!$C$3:$C$14,Stammdaten!$A$3:$A$14,\"\",0,1)","v":""},null,null,null,null,null,null,null,null,"nein",{"$f":"IFERROR(IF(I483=\"t\",H483,H483*VLOOKUP(A483,Stammdaten!$A$3:$C$14,2,FALSE)),\"\")","v":""},null,null,null,""]
[{"$f":"_xlfn.XLOOKUP(B484,Stammdaten!$C$3:$C$14,Stammdaten!$A$3:$A$14,\"\",0,1)","v":""},null,null,null,null,null,null,null,null,"nein",{"$f":"IFERROR(IF(I484=\"t\",H484,H484*VLOOKUP(A484,Stammdaten!$A$3:$C$14,2,FALSE)),\"\")","v":""},null,null,null,""]
[{"$f":"_xlfn.XLOOKUP(B485,Stammdaten!$C$3:$C$14,Stammdaten!$A$3:$A$14,\"\",0,1)","v":""},null,null,null,null,null,null,null,null,"nein",{"$f":"IFERROR(IF(I485=\"t\",H485,H485*VLOOKUP(A485,Stammdaten!$A$3:$C$14,2,FALSE)),\"\")","v":""},null,null,null,""]
[{"$f":"_xlfn.XLOOKUP(B486,Stammdaten!$C$3:$C$14,Stammdaten!$A$3:$A$14,\"\",0,1)","v":""},null,null,null,null,null,null,null,null,"nein",{"$f":"IFERROR(IF(I486=\"t\",H486,H486*VLOOKUP(A486,Stammdaten!$A$3:$C$14,2,FALSE)),\"\")","v":""},null,null,null,""]
[{"$f":"_xlfn.XLOOKUP(B487,Stammdaten!$C$3:$C$14,Stammdaten!$A$3:$A$14,\"\",0,1)","v":""},null,null,null,null,null,null,null,null,"nein",{"$f":"IFERROR(IF(I487=\"t\",H487,H487*VLOOKUP(A487,Stammdaten!$A$3:$C$14,2,FALSE)),\"\")","v":""},null,null,null,""]
[{"$f":"_xlfn.XLOOKUP(B488,Stammdaten!$C$3:$C$14,Stammdaten!$A$3:$A$14,\"\",0,1)","v":""},null,null,null,null,null,null,null,null,"nein",{"$f":"IFERROR(IF(I488=\"t\",H488,H488*VLOOKUP(A488,Stammdaten!$A$3:$C$14,2,FALSE)),\"\")","v":""},null,null,null,""]
[{"$f":"_xlfn.XLOOKUP(B489,Stammdaten!$C$3:$C$14,Stammdaten!$A$3:$A$14,\"\",0,1)","v":""},null,null,null,null,null,null,null,null,"nein",{"$f":"IFERROR(IF(I489=\"t\",H489,H489*VLOOKUP(A489,Stammdaten!$A$3:$C$14,2,FALSE)),\"\")","v":""},null,null,null,{"$f":"IF(SUM(L489:N489)>K489,\"'davon' ist größer als Gesamtgewicht.\",\"\")","v":""}]
[{"$f":"_xlfn.XLOOKUP(B490,Stammdaten!$C$3:$C$14,Stammdaten!$A$3:$A$14,\"\",0,1)","v":""},null,null,null,null,null,null,null,null,"nein",{"$f":"IFERROR(IF(I490=\"t\",H490,H490*VLOOKUP(A490,Stammdaten!$A$3:$C$14,2,FALSE)),\"\")","v":""},null,null,null,""]
[{"$f":"_xlfn.XLOOKUP(B491,Stammdaten!$C$3:$C$14,Stammdaten!$A$3:$A$14,\"\",0,1)","v":""},null,null,null,null,null,null,null,null,"nein",{"$f":"IFERROR(IF(I491=\"t\",H491,H491*VLOOKUP(A491,Stammdaten!$A$3:$C$14,2,FALSE)),\"\")","v":""},null,null,null,""]
[{"$f":"_xlfn.XLOOKUP(B492,Stammdaten!$C$3:$C$14,Stammdaten!$A$3:$A$14,\"\",0,1)","v":""},null,null,null,null,null,null,null,null,"nein",{"$f":"IFERROR(IF(I492=\"t\",H492,H492*VLOOKUP(A492,Stammdaten!$A$3:$C$14,2,FALSE)),\"\")","v":""},null,null,null,""]
[{"$f":"_xlfn.XLOOKUP(B493,Stammdaten!$C$3:$C$14,Stammdaten!$A$3:$A$14,\"\",0,1)","v":""},null,null,null,null,null,null,null,null,"nein",{"$f":"IFERROR(IF(I493=\"t\",H493,H493*VLOOKUP(A493,Stammdaten!$A$3:$C$14,2,FALSE)),\"\")","v":""},null,null,null,""]
[{"$f":"_xlfn.XLOOKUP(B494,Stammdaten!$C$3:$C$14,Stammdaten!$A$3:$A$14,\"\",0,1)","v":""},null,null,null,null,null,null,null,null,"nein",{"$f":"IFERROR(IF(I494=\"t\",H494,H494*VLOOKUP(A494,Stammdaten!$A$3:$C$14,2,FALSE)),\"\")","v":""},null,null,null,""]
[{"$f":"_xlfn.XLOOKUP(B495,Stammdaten!$C$3:$C$14,Stammdaten!$A$3:$A$14,\"\",0,1)","v":""},null,null,null,null,null,null,null,null,"nein",{"$f":"IFERROR(IF(I495=\"t\",H495,H495*VLOOKUP(A495,Stammdaten!$A$3:$C$14,2,FALSE)),\"\")","v":""},null,null,null,""]
[{"$f":"_xlfn.XLOOKUP(B496,Stammdaten!$C$3:$C$14,Stammdaten!$A$3:$A$14,\"\",0,1)","v":""},null,null,null,null,null,null,null,null,"nein",{"$f":"IFERROR(IF(I496=\"t\",H496,H496*VLOOKUP(A496,Stammdaten!$A$3:$C$14,2,FALSE)),\"\")","v":""},null,null,null,""]
[{"$f":"_xlfn.XLOOKUP(B497,Stammdaten!$C$3:$C$14,Stammdaten!$A$3:$A$14,\"\",0,1)","v":""},null,null,null,null,null,null,null,null,"nein",{"$f":"IFERROR(IF(I497=\"t\",H497,H497*VLOOKUP(A497,Stammdaten!$A$3:$C$14,2,FALSE)),\"\")","v":""},null,null,null,""]
[{"$f":"_xlfn.XLOOKUP(B498,Stammdaten!$C$3:$C$14,Stammdaten!$A$3:$A$14,\"\",0,1)","v":""},null,null,null,null,null,null,null,null,"nein",{"$f":"IFERROR(IF(I498=\"t\",H498,H498*VLOOKUP(A498,Stammdaten!$A$3:$C$14,2,FALSE)),\"\")","v":""},null,null,null,""]
[{"$f":"_xlfn.XLOOKUP(B499,Stammdaten!$C$3:$C$14,Stammdaten!$A$3:$A$14,\"\",0,1)","v":""},null,null,null,null,null,null,null,null,"nein",{"$f":"IFERROR(IF(I499=\"t\",H499,H499*VLOOKUP(A499,Stammdaten!$A$3:$C$14,2,FALSE)),\"\")","v":""},null,null,null,""]
[{"$f":"_xlfn.XLOOKUP(B500,Stammdaten!$C$3:$C$14,Stammdaten!$A$3:$A$14,\"\",0,1)","v":""},null,null,null,null,null,null,null,null,"nein",{"$f":"IFERROR(IF(I500=\"t\",H500,H500*VLOOKUP(A500,Stammdaten!$A$3:$C$14,2,FALSE)),\"\")","v":""},null,null,null,""]
[{"$f":"_xlfn.XLOOKUP(B501,Stammdaten!$C$3:$C$14,Stammdaten!$A$3:$A$14,\"\",0,1)","v":""},null,null,null,null,null,null,null,null,"nein",{"$f":"IFERROR(IF(I501=\"t\",H501,H501*VLOOKUP(A501,Stammdaten!$A$3:$C$14,2,FALSE)),\"\")","v":""},null,null,null,""]
[{"$f":"_xlfn.XLOOKUP(B502,Stammdaten!$C$3:$C$14,Stammdaten!$A$3:$A$14,\"\",0,1)","v":""},null,null,null,null,null,null,null,null,"nein",{"$f":"IFERROR(IF(I502=\"t\",H502,H502*VLOOKUP(A502,Stammdaten!$A$3:$C$14,2,FALSE)),\"\")","v":""},null,null,null,""]
[{"$f":"_xlfn.XLOOKUP(B503,Stammdaten!$C$3:$C$14,Stammdaten!$A$3:$A$14,\"\",0,1)","v":""},null,null,null,null,null,null,null,null,"nein",{"$f":"IFERROR(IF(I503=\"t\",H503,H503*VLOOKUP(A503,Stammdaten!$A$3:$C$14,2,FALSE)),\"\")","v":""},null,null,null,""]
[{"$f":"_xlfn.XLOOKUP(B504,Stammdaten!$C$3:$C$14,Stammdaten!$A$3:$A$14,\"\",0,1)","v":""},null,null,null,null,null,null,null,null,"nein",{"$f":"IFERROR(IF(I504=\"t\",H504,H504*VLOOKUP(A504,Stammdaten!$A$3:$C$14,2,FALSE)),\"\")","v":""},null,null,null,""]
[{"$f":"_xlfn.XLOOKUP(B505,Stammdaten!$C$3:$C$14,Stammdaten!$A$3:$A$14,\"\",0,1)","v":""},null,null,null,null,null,null,null,null,"nein",{"$f":"IFERROR(IF(I505=\"t\",H505,H505*VLOOKUP(A505,Stammdaten!$A$3:$C$14,2,FALSE)),\"\")","v":""},null,null,null,""]
[{"$f":"_xlfn.XLOOKUP(B506,Stammdaten!$C$3:$C$14,Stammdaten!$A$3:$A$14,\"\",0,1)","v":""},null,null,null,null,null,null,null,null,"nein",{"$f":"IFERROR(IF(I506=\"t\",H506,H506*VLOOKUP(A506,Stammdaten!$A$3:$C$14,2,FALSE)),\"\")","v":""},null,null,null,""]
[{"$f":"_xlfn.XLOOKUP(B507,Stammdaten!$C$3:$C$14,Stammdaten!$A$3:$A$14,\"\",0,1)","v":""},null,null,null,null,null,null,null,null,"nein",{"$f":"IFERROR(IF(I507=\"t\",H507,H507*VLOOKUP(A507,Stammdaten!$A$3:$C$14,2,FALSE)),\"\")","v":""},null,null,null,""]
[{"$f":"_xlfn.XLOOKUP(B508,Stammdaten!$C$3:$C$14,Stammdaten!$A$3:$A$14,\"\",0,1)","v":""},null,null,null,null,null,null,null,null,"nein",{"$f":"IFERROR(IF(I508=\"t\",H508,H508*VLOOKUP(A508,Stammdaten!$A$3:$C$14,2,FALSE)),\"\")","v":""},null,null,null,""]
[{"$f":"_xlfn.XLOOKUP(B509,Stammdaten!$C$3:$C$14,Stammdaten!$A$3:$A$14,\"\",0,1)","v":""},null,null,null,null,null,null,null,null,"nein",{"$f":"IFERROR(IF(I509=\"t\",H509,H509*VLOOKUP(A509,Stammdaten!$A$3:$C$14,2,FALSE)),\"\")","v":""},null,null,null,""]
[{"$f":"_xlfn.XLOOKUP(B510,Stammdaten!$C$3:$C$14,Stammdaten!$A$3:$A$14,\"\",0,1)","v":""},null,null,null,null,null,null,null,null,"nein",{"$f":"IFERROR(IF(I510=\"t\",H510,H510*VLOOKUP(A510,Stammdaten!$A$3:$C$14,2,FALSE)),\"\")","v":""},null,null,null,""]
[{"$f":"_xlfn.XLOOKUP(B511,Stammdaten!$C$3:$C$14,Stammdaten!$A$3:$A$14,\"\",0,1)","v":""},null,null,null,null,null,null,null,null,"nein",{"$f":"IFERROR(IF(I511=\"t\",H511,H511*VLOOKUP(A511,Stammdaten!$A$3:$C$14,2,FALSE)),\"\")","v":""},null,null,null,""]
[{"$f":"_xlfn.XLOOKUP(B512,Stammdaten!$C$3:$C$14,Stammdaten!$A$3:$A$14,\"\",0,1)","v":""},null,null,null,null,null,null,null,null,"nein",{"$f":"IFERROR(IF(I512=\"t\",H512,H512*VLOOKUP(A512,Stammdaten!$A$3:$C$14,2,FALSE)),\"\")","v":""},null,null,null,""]
[{"$f":"_xlfn.XLOOKUP(B513,Stammdaten!$C$3:$C$14,Stammdaten!$A$3:$A$14,\"\",0,1)","v":""},null,null,null,null,null,null,null,null,"nein",{"$f":"IFERROR(IF(I513=\"t\",H513,H513*VLOOKUP(A513,Stammdaten!$A$3:$C$14,2,FALSE)),\"\")","v":""},null,null,null,""]
[{"$f":"_xlfn.XLOOKUP(B514,Stammdaten!$C$3:$C$14,Stammdaten!$A$3:$A$14,\"\",0,1)","v":""},null,null,null,null,null,null,null,null,"nein",{"$f":"IFERROR(IF(I514=\"t\",H514,H514*VLOOKUP(A514,Stammdaten!$A$3:$C$14,2,FALSE)),\"\")","v":""},null,null,null,""]
[{"$f":"_xlfn.XLOOKUP(B515,Stammdaten!$C$3:$C$14,Stammdaten!$A$3:$A$14,\"\",0,1)","v":""},null,null,null,null,null,null,null,null,"nein",{"$f":"IFERROR(IF(I515=\"t\",H515,H515*VLOOKUP(A515,Stammdaten!$A$3:$C$14,2,FALSE)),\"\")","v":""},null,null,null,""]
[{"$f":"_xlfn.XLOOKUP(B516,Stammdaten!$C$3:$C$14,Stammdaten!$A$3:$A$14,\"\",0,1)","v":""},null,null,null,null,null,null,null,null,"nein",{"$f":"IFERROR(IF(I516=\"t\",H516,H516*VLOOKUP(A516,Stammdaten!$A$3:$C$14,2,FALSE)),\"\")","v":""},null,null,null,""]
[{"$f":"_xlfn.XLOOKUP(B517,Stammdaten!$C$3:$C$14,Stammdaten!$A$3:$A$14,\"\",0,1)","v":""},null,null,null,null,null,null,null,null,"nein",{"$f":"IFERROR(IF(I517=\"t\",H517,H517*VLOOKUP(A517,Stammdaten!$A$3:$C$14,2,FALSE)),\"\")","v":""},null,null,null,""]
[{"$f":"_xlfn.XLOOKUP(B518,Stammdaten!$C$3:$C$14,Stammdaten!$A$3:$A$14,\"\",0,1)","v":""},null,null,null,null,null,null,null,null,"nein",{"$f":"IFERROR(IF(I518=\"t\",H518,H518*VLOOKUP(A518,Stammdaten!$A$3:$C$14,2,FALSE)),\"\")","v":""},null,null,null,""]
[{"$f":"_xlfn.XLOOKUP(B519,Stammdaten!$C$3:$C$14,Stammdaten!$A$3:$A$14,\"\",0,1)","v":""},null,null,null,null,null,null,null,null,"nein",{"$f":"IFERROR(IF(I519=\"t\",H519,H519*VLOOKUP(A519,Stammdaten!$A$3:$C$14,2,FALSE)),\"\")","v":""},null,null,null,""]
[{"$f":"_xlfn.XLOOKUP(B520,Stammdaten!$C$3:$C$14,Stammdaten!$A$3:$A$14,\"\",0,1)","v":""},null,null,null,null,null,null,null,null,"nein",{"$f":"IFERROR(IF(I520=\"t\",H520,H520*VLOOKUP(A520,Stammdaten!$A$3:$C$14,2,FALSE)),\"\")","v":""},null,null,null,""]
[{"$f":"_xlfn.XLOOKUP(B521,Stammdaten!$C$3:$C$14,Stammdaten!$A$3:$A$14,\"\",0,1)","v":""},null,null,null,null,null,null,null,null,"nein",{"$f":"IFERROR(IF(I521=\"t\",H521,H521*VLOOKUP(A521,Stammdaten!$A$3:$C$14,2,FALSE)),\"\")","v":""},null,null,null,""]
[{"$f":"_xlfn.XLOOKUP(B522,Stammdaten!$C$3:$C$14,Stammdaten!$A$3:$A$14,\"\",0,1)","v":""},null,null,null,null,null,null,null,null,"nein",{"$f":"IFERROR(IF(I522=\"t\",H522,H522*VLOOKUP(A522,Stammdaten!$A$3:$C$14,2,FALSE)),\"\")","v":""},null,null,null,""]
[{"$f":"_xlfn.XLOOKUP(B523,Stammdaten!$C$3:$C$14,Stammdaten!$A$3:$A$14,\"\",0,1)","v":""},null,null,null,null,null,null,null,null,"nein",{"$f":"IFERROR(IF(I523=\"t\",H523,H523*VLOOKUP(A523,Stammdaten!$A$3:$C$14,2,FALSE)),\"\")","v":""},null,null,null,""]
[{"$f":"_xlfn.XLOOKUP(B524,Stammdaten!$C$3:$C$14,Stammdaten!$A$3:$A$14,\"\",0,1)","v":""},null,null,null,null,null,null,null,null,"nein",{"$f":"IFERROR(IF(I524=\"t\",H524,H524*VLOOKUP(A524,Stammdaten!$A$3:$C$14,2,FALSE)),\"\")","v":""},null,null,null,""]
[{"$f":"_xlfn.XLOOKUP(B525,Stammdaten!$C$3:$C$14,Stammdaten!$A$3:$A$14,\"\",0,1)","v":""},null,null,null,null,null,null,null,null,"nein",{"$f":"IFERROR(IF(I525=\"t\",H525,H525*VLOOKUP(A525,Stammdaten!$A$3:$C$14,2,FALSE)),\"\")","v":""},null,null,null,""]
[{"$f":"_xlfn.XLOOKUP(B526,Stammdaten!$C$3:$C$14,Stammdaten!$A$3:$A$14,\"\",0,1)","v":""},null,null,null,null,null,null,null,null,"nein",{"$f":"IFERROR(IF(I526=\"t\",H526,H526*VLOOKUP(A526,Stammdaten!$A$3:$C$14,2,FALSE)),\"\")","v":""},null,null,null,""]
[{"$f":"_xlfn.XLOOKUP(B527,Stammdaten!$C$3:$C$14,Stammdaten!$A$3:$A$14,\"\",0,1)","v":""},null,null,null,null,null,null,null,null,"nein",{"$f":"IFERROR(IF(I527=\"t\",H527,H527*VLOOKUP(A527,Stammdaten!$A$3:$C$14,2,FALSE)),\"\")","v":""},null,null,null,""]
[{"$f":"_xlfn.XLOOKUP(B528,Stammdaten!$C$3:$C$14,Stammdaten!$A$3:$A$14,\"\",0,1)","v":""},null,null,null,null,null,null,null,null,"nein",{"$f":"IFERROR(IF(I528=\"t\",H528,H528*VLOOKUP(A528,Stammdaten!$A$3:$C$14,2,FALSE)),\"\")","v":""},null,null,null,""]
[{"$f":"_xlfn.XLOOKUP(B529,Stammdaten!$C$3:$C$14,Stammdaten!$A$3:$A$14,\"\",0,1)","v":""},null,null,null,null,null,null,null,null,"nein",{"$f":"IFERROR(IF(I529=\"t\",H529,H529*VLOOKUP(A529,Stammdaten!$A$3:$C$14,2,FALSE)),\"\")","v":""},null,null,null,""]
[{"$f":"_xlfn.XLOOKUP(B530,Stammdaten!$C$3:$C$14,Stammdaten!$A$3:$A$14,\"\",0,1)","v":""},null,null,null,null,null,null,null,null,"nein",{"$f":"IFERROR(IF(I530=\"t\",H530,H530*VLOOKUP(A530,Stammdaten!$A$3:$C$14,2,FALSE)),\"\")","v":""},null,null,null,""]
[{"$f":"_xlfn.XLOOKUP(B531,Stammdaten!$C$3:$C$14,Stammdaten!$A$3:$A$14,\"\",0,1)","v":""},null,null,null,null,null,null,null,null,"nein",{"$f":"IFERROR(IF(I531=\"t\",H531,H531*VLOOKUP(A531,Stammdaten!$A$3:$C$14,2,FALSE)),\"\")","v":""},null,null,null,""]
[{"$f":"_xlfn.XLOOKUP(B532,Stammdaten!$C$3:$C$14,Stammdaten!$A$3:$A$14,\"\",0,1)","v":""},null,null,null,null,null,null,null,null,"nein",{"$f":"IFERROR(IF(I532=\"t\",H532,H532*VLOOKUP(A532,Stammdaten!$A$3:$C$14,2,FALSE)),\"\")","v":""},null,null,null,""]
[{"$f":"_xlfn.XLOOKUP(B533,Stammdaten!$C$3:$C$14,Stammdaten!$A$3:$A$14,\"\",0,1)","v":""},null,null,null,null,null,null,null,null,"nein",{"$f":"IFERROR(IF(I533=\"t\",H533,H533*VLOOKUP(A533,Stammdaten!$A$3:$C$14,2,FALSE)),\"\")","v":""},null,null,null,""]
[{"$f":"_xlfn.XLOOKUP(B534,Stammdaten!$C$3:$C$14,Stammdaten!$A$3:$A$14,\"\",0,1)","v":""},null,null,null,null,null,null,null,null,"nein",{"$f":"IFERROR(IF(I534=\"t\",H534,H534*VLOOKUP(A534,Stammdaten!$A$3:$C$14,2,FALSE)),\"\")","v":""},null,null,null,""]
[{"$f":"_xlfn.XLOOKUP(B535,Stammdaten!$C$3:$C$14,Stammdaten!$A$3:$A$14,\"\",0,1)","v":""},null,null,null,null,null,null,null,null,"nein",{"$f":"IFERROR(IF(I535=\"t\",H535,H535*VLOOKUP(A535,Stammdaten!$A$3:$C$14,2,FALSE)),\"\")","v":""},null,null,null,""]
[{"$f":"_xlfn.XLOOKUP(B536,Stammdaten!$C$3:$C$14,Stammdaten!$A$3:$A$14,\"\",0,1)","v":""},null,null,null,null,null,null,null,null,"nein",{"$f":"IFERROR(IF(I536=\"t\",H536,H536*VLOOKUP(A536,Stammdaten!$A$3:$C$14,2,FALSE)),\"\")","v":""},null,null,null,""]
[{"$f":"_xlfn.XLOOKUP(B537,Stammdaten!$C$3:$C$14,Stammdaten!$A$3:$A$14,\"\",0,1)","v":""},null,null,null,null,null,null,null,null,"nein",{"$f":"IFERROR(IF(I537=\"t\",H537,H537*VLOOKUP(A537,Stammdaten!$A$3:$C$14,2,FALSE)),\"\")","v":""},null,null,null,""]
[{"$f":"_xlfn.XLOOKUP(B538,Stammdaten!$C$3:$C$14,Stammdaten!$A$3:$A$14,\"\",0,1)","v":""},null,null,null,null,null,null,null,null,"nein",{"$f":"IFERROR(IF(I538=\"t\",H538,H538*VLOOKUP(A538,Stammdaten!$A$3:$C$14,2,FALSE)),\"\")","v":""},null,null,null,""]
[{"$f":"_xlfn.XLOOKUP(B539,Stammdaten!$C$3:$C$14,Stammdaten!$A$3:$A$14,\"\",0,1)","v":""},null,null,null,null,null,null,null,null,"nein",{"$f":"IFERROR(IF(I539=\"t\",H539,H539*VLOOKUP(A539,Stammdaten!$A$3:$C$14,2,FALSE)),\"\")","v":""},null,null,null,""]
[{"$f":"_xlfn.XLOOKUP(B540,Stammdaten!$C$3:$C$14,Stammdaten!$A$3:$A$14,\"\",0,1)","v":""},null,null,null,null,null,null,null,null,"nein",{"$f":"IFERROR(IF(I540=\"t\",H540,H540*VLOOKUP(A540,Stammdaten!$A$3:$C$14,2,FALSE)),\"\")","v":""},null,null,null,""]
[{"$f":"_xlfn.XLOOKUP(B541,Stammdaten!$C$3:$C$14,Stammdaten!$A$3:$A$14,\"\",0,1)","v":""},null,null,null,null,null,null,null,null,"nein",{"$f":"IFERROR(IF(I541=\"t\",H541,H541*VLOOKUP(A541,Stammdaten!$A$3:$C$14,2,FALSE)),\"\")","v":""},null,null,null,""]
[{"$f":"_xlfn.XLOOKUP(B542,Stammdaten!$C$3:$C$14,Stammdaten!$A$3:$A$14,\"\",0,1)","v":""},null,null,null,null,null,null,null,null,"nein",{"$f":"IFERROR(IF(I542=\"t\",H542,H542*VLOOKUP(A542,Stammdaten!$A$3:$C$14,2,FALSE)),\"\")","v":""},null,null,null,""]
[{"$f":"_xlfn.XLOOKUP(B543,Stammdaten!$C$3:$C$14,Stammdaten!$A$3:$A$14,\"\",0,1)","v":""},null,null,null,null,null,null,null,null,"nein",{"$f":"IFERROR(IF(I543=\"t\",H543,H543*VLOOKUP(A543,Stammdaten!$A$3:$C$14,2,FALSE)),\"\")","v":""},null,null,null,""]
[{"$f":"_xlfn.XLOOKUP(B544,Stammdaten!$C$3:$C$14,Stammdaten!$A$3:$A$14,\"\",0,1)","v":""},null,null,null,null,null,null,null,null,"nein",{"$f":"IFERROR(IF(I544=\"t\",H544,H544*VLOOKUP(A544,Stammdaten!$A$3:$C$14,2,FALSE)),\"\")","v":""},null,null,null,""]
[{"$f":"_xlfn.XLOOKUP(B545,Stammdaten!$C$3:$C$14,Stammdaten!$A$3:$A$14,\"\",0,1)","v":""},null,null,null,null,null,null,null,null,"nein",{"$f":"IFERROR(IF(I545=\"t\",H545,H545*VLOOKUP(A545,Stammdaten!$A$3:$C$14,2,FALSE)),\"\")","v":""},null,null,null,""]
[{"$f":"_xlfn.XLOOKUP(B546,Stammdaten!$C$3:$C$14,Stammdaten!$A$3:$A$14,\"\",0,1)","v":""},null,null,null,null,null,null,null,null,"nein",{"$f":"IFERROR(IF(I546=\"t\",H546,H546*VLOOKUP(A546,Stammdaten!$A$3:$C$14,2,FALSE)),\"\")","v":""},null,null,null,""]
[{"$f":"_xlfn.XLOOKUP(B547,Stammdaten!$C$3:$C$14,Stammdaten!$A$3:$A$14,\"\",0,1)","v":""},null,null,null,null,null,null,null,null,"nein",{"$f":"IFERROR(IF(I547=\"t\",H547,H547*VLOOKUP(A547,Stammdaten!$A$3:$C$14,2,FALSE)),\"\")","v":""},null,null,null,""]
[{"$f":"_xlfn.XLOOKUP(B548,Stammdaten!$C$3:$C$14,Stammdaten!$A$3:$A$14,\"\",0,1)","v":""},null,null,null,null,null,null,null,null,"nein",{"$f":"IFERROR(IF(I548=\"t\",H548,H548*VLOOKUP(A548,Stammdaten!$A$3:$C$14,2,FALSE)),\"\")","v":""},null,null,null,""]
[{"$f":"_xlfn.XLOOKUP(B549,Stammdaten!$C$3:$C$14,Stammdaten!$A$3:$A$14,\"\",0,1)","v":""},null,null,null,null,null,null,null,null,"nein",{"$f":"IFERROR(IF(I549=\"t\",H549,H549*VLOOKUP(A549,Stammdaten!$A$3:$C$14,2,FALSE)),\"\")","v":""},null,null,null,""]
[{"$f":"_xlfn.XLOOKUP(B550,Stammdaten!$C$3:$C$14,Stammdaten!$A$3:$A$14,\"\",0,1)","v":""},null,null,null,null,null,null,null,null,"nein",{"$f":"IFERROR(IF(I550=\"t\",H550,H550*VLOOKUP(A550,Stammdaten!$A$3:$C$14,2,FALSE)),\"\")","v":""},null,null,null,""]
[{"$f":"_xlfn.XLOOKUP(B551,Stammdaten!$C$3:$C$14,Stammdaten!$A$3:$A$14,\"\",0,1)","v":""},null,null,null,null,null,null,null,null,"nein",{"$f":"IFERROR(IF(I551=\"t\",H551,H551*VLOOKUP(A551,Stammdaten!$A$3:$C$14,2,FALSE)),\"\")","v":""},null,null,null,""]
[{"$f":"_xlfn.XLOOKUP(B552,Stammdaten!$C$3:$C$14,Stammdaten!$A$3:$A$14,\"\",0,1)","v":""},null,null,null,null,null,null,null,null,"nein",{"$f":"IFERROR(IF(I552=\"t\",H552,H552*VLOOKUP(A552,Stammdaten!$A$3:$C$14,2,FALSE)),\"\")","v":""},null,null,null,""]
[{"$f":"_xlfn.XLOOKUP(B553,Stammdaten!$C$3:$C$14,Stammdaten!$A$3:$A$14,\"\",0,1)","v":""},null,null,null,null,null,null,null,null,"nein",{"$f":"IFERROR(IF(I553=\"t\",H553,H553*VLOOKUP(A553,Stammdaten!$A$3:$C$14,2,FALSE)),\"\")","v":""},null,null,null,{"$f":"IF(SUM(L553:N553)>K553,\"'davon' ist größer als Gesamtgewicht.\",\"\")","v":""}]
[{"$f":"_xlfn.XLOOKUP(B554,Stammdaten!$C$3:$C$14,Stammdaten!$A$3:$A$14,\"\",0,1)","v":""},null,null,null,null,null,null,null,null,"nein",{"$f":"IFERROR(IF(I554=\"t\",H554,H554*VLOOKUP(A554,Stammdaten!$A$3:$C$14,2,FALSE)),\"\")","v":""},null,null,null,""]
[{"$f":"_xlfn.XLOOKUP(B555,Stammdaten!$C$3:$C$14,Stammdaten!$A$3:$A$14,\"\",0,1)","v":""},null,null,null,null,null,null,null,null,"nein",{"$f":"IFERROR(IF(I555=\"t\",H555,H555*VLOOKUP(A555,Stammdaten!$A$3:$C$14,2,FALSE)),\"\")","v":""},null,null,null,""]
[{"$f":"_xlfn.XLOOKUP(B556,Stammdaten!$C$3:$C$14,Stammdaten!$A$3:$A$14,\"\",0,1)","v":""},null,null,null,null,null,null,null,null,"nein",{"$f":"IFERROR(IF(I556=\"t\",H556,H556*VLOOKUP(A556,Stammdaten!$A$3:$C$14,2,FALSE)),\"\")","v":""},null,null,null,""]
[{"$f":"_xlfn.XLOOKUP(B557,Stammdaten!$C$3:$C$14,Stammdaten!$A$3:$A$14,\"\",0,1)","v":""},null,null,null,null,null,null,null,null,"nein",{"$f":"IFERROR(IF(I557=\"t\",H557,H557*VLOOKUP(A557,Stammdaten!$A$3:$C$14,2,FALSE)),\"\")","v":""},null,null,null,""]
[{"$f":"_xlfn.XLOOKUP(B558,Stammdaten!$C$3:$C$14,Stammdaten!$A$3:$A$14,\"\",0,1)","v":""},null,null,null,null,null,null,null,null,"nein",{"$f":"IFERROR(IF(I558=\"t\",H558,H558*VLOOKUP(A558,Stammdaten!$A$3:$C$14,2,FALSE)),\"\")","v":""},null,null,null,""]
[{"$f":"_xlfn.XLOOKUP(B559,Stammdaten!$C$3:$C$14,Stammdaten!$A$3:$A$14,\"\",0,1)","v":""},null,null,null,null,null,null,null,null,"nein",{"$f":"IFERROR(IF(I559=\"t\",H559,H559*VLOOKUP(A559,Stammdaten!$A$3:$C$14,2,FALSE)),\"\")","v":""},null,null,null,""]
[{"$f":"_xlfn.XLOOKUP(B560,Stammdaten!$C$3:$C$14,Stammdaten!$A$3:$A$14,\"\",0,1)","v":""},null,null,null,null,null,null,null,null,"nein",{"$f":"IFERROR(IF(I560=\"t\",H560,H560*VLOOKUP(A560,Stammdaten!$A$3:$C$14,2,FALSE)),\"\")","v":""},null,null,null,""]
[{"$f":"_xlfn.XLOOKUP(B561,Stammdaten!$C$3:$C$14,Stammdaten!$A$3:$A$14,\"\",0,1)","v":""},null,null,null,null,null,null,null,null,"nein",{"$f":"IFERROR(IF(I561=\"t\",H561,H561*VLOOKUP(A561,Stammdaten!$A$3:$C$14,2,FALSE)),\"\")","v":""},null,null,null,""]
[{"$f":"_xlfn.XLOOKUP(B562,Stammdaten!$C$3:$C$14,Stammdaten!$A$3:$A$14,\"\",0,1)","v":""},null,null,null,null,null,null,null,null,"nein",{"$f":"IFERROR(IF(I562=\"t\",H562,H562*VLOOKUP(A562,Stammdaten!$A$3:$C$14,2,FALSE)),\"\")","v":""},null,null,null,""]
[{"$f":"_xlfn.XLOOKUP(B563,Stammdaten!$C$3:$C$14,Stammdaten!$A$3:$A$14,\"\",0,1)","v":""},null,null,null,null,null,null,null,null,"nein",{"$f":"IFERROR(IF(I563=\"t\",H563,H563*VLOOKUP(A563,Stammdaten!$A$3:$C$14,2,FALSE)),\"\")","v":""},null,null,null,""]
[{"$f":"_xlfn.XLOOKUP(B564,Stammdaten!$C$3:$C$14,Stammdaten!$A$3:$A$14,\"\",0,1)","v":""},null,null,null,null,null,null,null,null,"nein",{"$f":"IFERROR(IF(I564=\"t\",H564,H564*VLOOKUP(A564,Stammdaten!$A$3:$C$14,2,FALSE)),\"\")","v":""},null,null,null,""]
[{"$f":"_xlfn.XLOOKUP(B565,Stammdaten!$C$3:$C$14,Stammdaten!$A$3:$A$14,\"\",0,1)","v":""},null,null,null,null,null,null,null,null,"nein",{"$f":"IFERROR(IF(I565=\"t\",H565,H565*VLOOKUP(A565,Stammdaten!$A$3:$C$14,2,FALSE)),\"\")","v":""},null,null,null,""]
[{"$f":"_xlfn.XLOOKUP(B566,Stammdaten!$C$3:$C$14,Stammdaten!$A$3:$A$14,\"\",0,1)","v":""},null,null,null,null,null,null,null,null,"nein",{"$f":"IFERROR(IF(I566=\"t\",H566,H566*VLOOKUP(A566,Stammdaten!$A$3:$C$14,2,FALSE)),\"\")","v":""},null,null,null,""]
[{"$f":"_xlfn.XLOOKUP(B567,Stammdaten!$C$3:$C$14,Stammdaten!$A$3:$A$14,\"\",0,1)","v":""},null,null,null,null,null,null,null,null,"nein",{"$f":"IFERROR(IF(I567=\"t\",H567,H567*VLOOKUP(A567,Stammdaten!$A$3:$C$14,2,FALSE)),\"\")","v":""},null,null,null,""]
[{"$f":"_xlfn.XLOOKUP(B568,Stammdaten!$C$3:$C$14,Stammdaten!$A$3:$A$14,\"\",0,1)","v":""},null,null,null,null,null,null,null,null,"nein",{"$f":"IFERROR(IF(I568=\"t\",H568,H568*VLOOKUP(A568,Stammdaten!$A$3:$C$14,2,FALSE)),\"\")","v":""},null,null,null,""]
[{"$f":"_xlfn.XLOOKUP(B569,Stammdaten!$C$3:$C$14,Stammdaten!$A$3:$A$14,\"\",0,1)","v":""},null,null,null,null,null,null,null,null,"nein",{"$f":"IFERROR(IF(I569=\"t\",H569,H569*VLOOKUP(A569,Stammdaten!$A$3:$C$14,2,FALSE)),\"\")","v":""},null,null,null,""]
[{"$f":"_xlfn.XLOOKUP(B570,Stammdaten!$C$3:$C$14,Stammdaten!$A$3:$A$14,\"\",0,1)","v":""},null,null,null,null,null,null,null,null,"nein",{"$f":"IFERROR(IF(I570=\"t\",H570,H570*VLOOKUP(A570,Stammdaten!$A$3:$C$14,2,FALSE)),\"\")","v":""},null,null,null,""]
[{"$f":"_xlfn.XLOOKUP(B571,Stammdaten!$C$3:$C$14,Stammdaten!$A$3:$A$14,\"\",0,1)","v":""},null,null,null,null,null,null,null,null,"nein",{"$f":"IFERROR(IF(I571=\"t\",H571,H571*VLOOKUP(A571,Stammdaten!$A$3:$C$14,2,FALSE)),\"\")","v":""},null,null,null,""]
[{"$f":"_xlfn.XLOOKUP(B572,Stammdaten!$C$3:$C$14,Stammdaten!$A$3:$A$14,\"\",0,1)","v":""},null,null,null,null,null,null,null,null,"nein",{"$f":"IFERROR(IF(I572=\"t\",H572,H572*VLOOKUP(A572,Stammdaten!$A$3:$C$14,2,FALSE)),\"\")","v":""},null,null,null,""]
[{"$f":"_xlfn.XLOOKUP(B573,Stammdaten!$C$3:$C$14,Stammdaten!$A$3:$A$14,\"\",0,1)","v":""},null,null,null,null,null,null,null,null,"nein",{"$f":"IFERROR(IF(I573=\"t\",H573,H573*VLOOKUP(A573,Stammdaten!$A$3:$C$14,2,FALSE)),\"\")","v":""},null,null,null,""]
[{"$f":"_xlfn.XLOOKUP(B574,Stammdaten!$C$3:$C$14,Stammdaten!$A$3:$A$14,\"\",0,1)","v":""},null,null,null,null,null,null,null,null,"nein",{"$f":"IFERROR(IF(I574=\"t\",H574,H574*VLOOKUP(A574,Stammdaten!$A$3:$C$14,2,FALSE)),\"\")","v":""},null,null,null,""]
[{"$f":"_xlfn.XLOOKUP(B575,Stammdaten!$C$3:$C$14,Stammdaten!$A$3:$A$14,\"\",0,1)","v":""},null,null,null,null,null,null,null,null,"nein",{"$f":"IFERROR(IF(I575=\"t\",H575,H575*VLOOKUP(A575,Stammdaten!$A$3:$C$14,2,FALSE)),\"\")","v":""},null,null,null,""]
[{"$f":"_xlfn.XLOOKUP(B576,Stammdaten!$C$3:$C$14,Stammdaten!$A$3:$A$14,\"\",0,1)","v":""},null,null,null,null,null,null,null,null,"nein",{"$f":"IFERROR(IF(I576=\"t\",H576,H576*VLOOKUP(A576,Stammdaten!$A$3:$C$14,2,FALSE)),\"\")","v":""},null,null,null,""]
[{"$f":"_xlfn.XLOOKUP(B577,Stammdaten!$C$3:$C$14,Stammdaten!$A$3:$A$14,\"\",0,1)","v":""},null,null,null,null,null,null,null,null,"nein",{"$f":"IFERROR(IF(I577=\"t\",H577,H577*VLOOKUP(A577,Stammdaten!$A$3:$C$14,2,FALSE)),\"\")","v":""},null,null,null,""]
[{"$f":"_xlfn.XLOOKUP(B578,Stammdaten!$C$3:$C$14,Stammdaten!$A$3:$A$14,\"\",0,1)","v":""},null,null,null,null,null,null,null,null,"nein",{"$f":"IFERROR(IF(I578=\"t\",H578,H578*VLOOKUP(A578,Stammdaten!$A$3:$C$14,2,FALSE)),\"\")","v":""},null,null,null,""]
[{"$f":"_xlfn.XLOOKUP(B579,Stammdaten!$C$3:$C$14,Stammdaten!$A$3:$A$14,\"\",0,1)","v":""},null,null,null,null,null,null,null,null,"nein",{"$f":"IFERROR(IF(I579=\"t\",H579,H579*VLOOKUP(A579,Stammdaten!$A$3:$C$14,2,FALSE)),\"\")","v":""},null,null,null,""]
[{"$f":"_xlfn.XLOOKUP(B580,Stammdaten!$C$3:$C$14,Stammdaten!$A$3:$A$14,\"\",0,1)","v":""},null,null,null,null,null,null,null,null,"nein",{"$f":"IFERROR(IF(I580=\"t\",H580,H580*VLOOKUP(A580,Stammdaten!$A$3:$C$14,2,FALSE)),\"\")","v":""},null,null,null,""]
[{"$f":"_xlfn.XLOOKUP(B581,Stammdaten!$C$3:$C$14,Stammdaten!$A$3:$A$14,\"\",0,1)","v":""},null,null,null,null,null,null,null,null,"nein",{"$f":"IFERROR(IF(I581=\"t\",H581,H581*VLOOKUP(A581,Stammdaten!$A$3:$C$14,2,FALSE)),\"\")","v":""},null,null,null,""]
[{"$f":"_xlfn.XLOOKUP(B582,Stammdaten!$C$3:$C$14,Stammdaten!$A$3:$A$14,\"\",0,1)","v":""},null,null,null,null,null,null,null,null,"nein",{"$f":"IFERROR(IF(I582=\"t\",H582,H582*VLOOKUP(A582,Stammdaten!$A$3:$C$14,2,FALSE)),\"\")","v":""},null,null,null,""]
[{"$f":"_xlfn.XLOOKUP(B583,Stammdaten!$C$3:$C$14,Stammdaten!$A$3:$A$14,\"\",0,1)","v":""},null,null,null,null,null,null,null,null,"nein",{"$f":"IFERROR(IF(I583=\"t\",H583,H583*VLOOKUP(A583,Stammdaten!$A$3:$C$14,2,FALSE)),\"\")","v":""},null,null,null,""]
[{"$f":"_xlfn.XLOOKUP(B584,Stammdaten!$C$3:$C$14,Stammdaten!$A$3:$A$14,\"\",0,1)","v":""},null,null,null,null,null,null,null,null,"nein",{"$f":"IFERROR(IF(I584=\"t\",H584,H584*VLOOKUP(A584,Stammdaten!$A$3:$C$14,2,FALSE)),\"\")","v":""},null,null,null,""]
[{"$f":"_xlfn.XLOOKUP(B585,Stammdaten!$C$3:$C$14,Stammdaten!$A$3:$A$14,\"\",0,1)","v":""},null,null,null,null,null,null,null,null,"nein",{"$f":"IFERROR(IF(I585=\"t\",H585,H585*VLOOKUP(A585,Stammdaten!$A$3:$C$14,2,FALSE)),\"\")","v":""},null,null,null,""]
[{"$f":"_xlfn.XLOOKUP(B586,Stammdaten!$C$3:$C$14,Stammdaten!$A$3:$A$14,\"\",0,1)","v":""},null,null,null,null,null,null,null,null,"nein",{"$f":"IFERROR(IF(I586=\"t\",H586,H586*VLOOKUP(A586,Stammdaten!$A$3:$C$14,2,FALSE)),\"\")","v":""},null,null,null,""]
[{"$f":"_xlfn.XLOOKUP(B587,Stammdaten!$C$3:$C$14,Stammdaten!$A$3:$A$14,\"\",0,1)","v":""},null,null,null,null,null,null,null,null,"nein",{"$f":"IFERROR(IF(I587=\"t\",H587,H587*VLOOKUP(A587,Stammdaten!$A$3:$C$14,2,FALSE)),\"\")","v":""},null,null,null,""]
[{"$f":"_xlfn.XLOOKUP(B588,Stammdaten!$C$3:$C$14,Stammdaten!$A$3:$A$14,\"\",0,1)","v":""},null,null,null,null,null,null,null,null,"nein",{"$f":"IFERROR(IF(I588=\"t\",H588,H588*VLOOKUP(A588,Stammdaten!$A$3:$C$14,2,FALSE)),\"\")","v":""},null,null,null,""]
[{"$f":"_xlfn.XLOOKUP(B589,Stammdaten!$C$3:$C$14,Stammdaten!$A$3:$A$14,\"\",0,1)","v":""},null,null,null,null,null,null,null,null,"nein",{"$f":"IFERROR(IF(I589=\"t\",H589,H589*VLOOKUP(A589,Stammdaten!$A$3:$C$14,2,FALSE)),\"\")","v":""},null,null,null,""]
[{"$f":"_xlfn.XLOOKUP(B590,Stammdaten!$C$3:$C$14,Stammdaten!$A$3:$A$14,\"\",0,1)","v":""},null,null,null,null,null,null,null,null,"nein",{"$f":"IFERROR(IF(I590=\"t\",H590,H590*VLOOKUP(A590,Stammdaten!$A$3:$C$14,2,FALSE)),\"\")","v":""},null,null,null,""]
[{"$f":"_xlfn.XLOOKUP(B591,Stammdaten!$C$3:$C$14,Stammdaten!$A$3:$A$14,\"\",0,1)","v":""},null,null,null,null,null,null,null,null,"nein",{"$f":"IFERROR(IF(I591=\"t\",H591,H591*VLOOKUP(A591,Stammdaten!$A$3:$C$14,2,FALSE)),\"\")","v":""},null,null,null,""]
[{"$f":"_xlfn.XLOOKUP(B592,Stammdaten!$C$3:$C$14,Stammdaten!$A$3:$A$14,\"\",0,1)","v":""},null,null,null,null,null,null,null,null,"nein",{"$f":"IFERROR(IF(I592=\"t\",H592,H592*VLOOKUP(A592,Stammdaten!$A$3:$C$14,2,FALSE)),\"\")","v":""},null,null,null,""]
[{"$f":"_xlfn.XLOOKUP(B593,Stammdaten!$C$3:$C$14,Stammdaten!$A$3:$A$14,\"\",0,1)","v":""},null,null,null,null,null,null,null,null,"nein",{"$f":"IFERROR(IF(I593=\"t\",H593,H593*VLOOKUP(A593,Stammdaten!$A$3:$C$14,2,FALSE)),\"\")","v":""},null,null,null,""]
[{"$f":"_xlfn.XLOOKUP(B594,Stammdaten!$C$3:$C$14,Stammdaten!$A$3:$A$14,\"\",0,1)","v":""},null,null,null,null,null,null,null,null,"nein",{"$f":"IFERROR(IF(I594=\"t\",H594,H594*VLOOKUP(A594,Stammdaten!$A$3:$C$14,2,FALSE)),\"\")","v":""},null,null,null,""]
[{"$f":"_xlfn.XLOOKUP(B595,Stammdaten!$C$3:$C$14,Stammdaten!$A$3:$A$14,\"\",0,1)","v":""},null,null,null,null,null,null,null,null,"nein",{"$f":"IFERROR(IF(I595=\"t\",H595,H595*VLOOKUP(A595,Stammdaten!$A$3:$C$14,2,FALSE)),\"\")","v":""},null,null,null,""]
[{"$f":"_xlfn.XLOOKUP(B596,Stammdaten!$C$3:$C$14,Stammdaten!$A$3:$A$14,\"\",0,1)","v":""},null,null,null,null,null,null,null,null,"nein",{"$f":"IFERROR(IF(I596=\"t\",H596,H596*VLOOKUP(A596,Stammdaten!$A$3:$C$14,2,FALSE)),\"\")","v":""},null,null,null,""]
[{"$f":"_xlfn.XLOOKUP(B597,Stammdaten!$C$3:$C$14,Stammdaten!$A$3:$A$14,\"\",0,1)","v":""},null,null,null,null,null,null,null,null,"nein",{"$f":"IFERROR(IF(I597=\"t\",H597,H597*VLOOKUP(A597,Stammdaten!$A$3:$C$14,2,FALSE)),\"\")","v":""},null,null,null,""]
[{"$f":"_xlfn.XLOOKUP(B598,Stammdaten!$C$3:$C$14,Stammdaten!$A$3:$A$14,\"\",0,1)","v":""},null,null,null,null,null,null,null,null,"nein",{"$f":"IFERROR(IF(I598=\"t\",H598,H598*VLOOKUP(A598,Stammdaten!$A$3:$C$14,2,FALSE)),\"\")","v":""},null,null,null,""]
[{"$f":"_xlfn.XLOOKUP(B599,Stammdaten!$C$3:$C$14,Stammdaten!$A$3:$A$14,\"\",0,1)","v":""},null,null,null,null,null,null,null,null,"nein",{"$f":"IFERROR(IF(I599=\"t\",H599,H599*VLOOKUP(A599,Stammdaten!$A$3:$C$14,2,FALSE)),\"\")","v":""},null,null,null,""]
[{"$f":"_xlfn.XLOOKUP(B600,Stammdaten!$C$3:$C$14,Stammdaten!$A$3:$A$14,\"\",0,1)","v":""},null,null,null,null,null,null,null,null,"nein",{"$f":"IFERROR(IF(I600=\"t\",H600,H600*VLOOKUP(A600,Stammdaten!$A$3:$C$14,2,FALSE)),\"\")","v":""},null,null,null,""]
[{"$f":"_xlfn.XLOOKUP(B601,Stammdaten!$C$3:$C$14,Stammdaten!$A$3:$A$14,\"\",0,1)","v":""},null,null,null,null,null,null,null,null,"nein",{"$f":"IFERROR(IF(I601=\"t\",H601,H601*VLOOKUP(A601,Stammdaten!$A$3:$C$14,2,FALSE)),\"\")","v":""},null,null,null,""]
[{"$f":"_xlfn.XLOOKUP(B602,Stammdaten!$C$3:$C$14,Stammdaten!$A$3:$A$14,\"\",0,1)","v":""},null,null,null,null,null,null,null,null,"nein",{"$f":"IFERROR(IF(I602=\"t\",H602,H602*VLOOKUP(A602,Stammdaten!$A$3:$C$14,2,FALSE)),\"\")","v":""},null,null,null,""]
[{"$f":"_xlfn.XLOOKUP(B603,Stammdaten!$C$3:$C$14,Stammdaten!$A$3:$A$14,\"\",0,1)","v":""},null,null,null,null,null,null,null,null,"nein",{"$f":"IFERROR(IF(I603=\"t\",H603,H603*VLOOKUP(A603,Stammdaten!$A$3:$C$14,2,FALSE)),\"\")","v":""},null,null,null,""]
[{"$f":"_xlfn.XLOOKUP(B604,Stammdaten!$C$3:$C$14,Stammdaten!$A$3:$A$14,\"\",0,1)","v":""},null,null,null,null,null,null,null,null,"nein",{"$f":"IFERROR(IF(I604=\"t\",H604,H604*VLOOKUP(A604,Stammdaten!$A$3:$C$14,2,FALSE)),\"\")","v":""},null,null,null,""]
[{"$f":"_xlfn.XLOOKUP(B605,Stammdaten!$C$3:$C$14,Stammdaten!$A$3:$A$14,\"\",0,1)","v":""},null,null,null,null,null,null,null,null,"nein",{"$f":"IFERROR(IF(I605=\"t\",H605,H605*VLOOKUP(A605,Stammdaten!$A$3:$C$14,2,FALSE)),\"\")","v":""},null,null,null,""]
[{"$f":"_xlfn.XLOOKUP(B606,Stammdaten!$C$3:$C$14,Stammdaten!$A$3:$A$14,\"\",0,1)","v":""},null,null,null,null,null,null,null,null,"nein",{"$f":"IFERROR(IF(I606=\"t\",H606,H606*VLOOKUP(A606,Stammdaten!$A$3:$C$14,2,FALSE)),\"\")","v":""},null,null,null,""]
[{"$f":"_xlfn.XLOOKUP(B607,Stammdaten!$C$3:$C$14,Stammdaten!$A$3:$A$14,\"\",0,1)","v":""},null,null,null,null,null,null,null,null,"nein",{"$f":"IFERROR(IF(I607=\"t\",H607,H607*VLOOKUP(A607,Stammdaten!$A$3:$C$14,2,FALSE)),\"\")","v":""},null,null,null,""]
[{"$f":"_xlfn.XLOOKUP(B608,Stammdaten!$C$3:$C$14,Stammdaten!$A$3:$A$14,\"\",0,1)","v":""},null,null,null,null,null,null,null,null,"nein",{"$f":"IFERROR(IF(I608=\"t\",H608,H608*VLOOKUP(A608,Stammdaten!$A$3:$C$14,2,FALSE)),\"\")","v":""},null,null,null,""]
[{"$f":"_xlfn.XLOOKUP(B609,Stammdaten!$C$3:$C$14,Stammdaten!$A$3:$A$14,\"\",0,1)","v":""},null,null,null,null,null,null,null,null,"nein",{"$f":"IFERROR(IF(I609=\"t\",H609,H609*VLOOKUP(A609,Stammdaten!$A$3:$C$14,2,FALSE)),\"\")","v":""},null,null,null,""]
[{"$f":"_xlfn.XLOOKUP(B610,Stammdaten!$C$3:$C$14,Stammdaten!$A$3:$A$14,\"\",0,1)","v":""},null,null,null,null,null,null,null,null,"nein",{"$f":"IFERROR(IF(I610=\"t\",H610,H610*VLOOKUP(A610,Stammdaten!$A$3:$C$14,2,FALSE)),\"\")","v":""},null,null,null,""]
[{"$f":"_xlfn.XLOOKUP(B611,Stammdaten!$C$3:$C$14,Stammdaten!$A$3:$A$14,\"\",0,1)","v":""},null,null,null,null,null,null,null,null,"nein",{"$f":"IFERROR(IF(I611=\"t\",H611,H611*VLOOKUP(A611,Stammdaten!$A$3:$C$14,2,FALSE)),\"\")","v":""},null,null,null,""]
[{"$f":"_xlfn.XLOOKUP(B612,Stammdaten!$C$3:$C$14,Stammdaten!$A$3:$A$14,\"\",0,1)","v":""},null,null,null,null,null,null,null,null,"nein",{"$f":"IFERROR(IF(I612=\"t\",H612,H612*VLOOKUP(A612,Stammdaten!$A$3:$C$14,2,FALSE)),\"\")","v":""},null,null,null,""]
[{"$f":"_xlfn.XLOOKUP(B613,Stammdaten!$C$3:$C$14,Stammdaten!$A$3:$A$14,\"\",0,1)","v":""},null,null,null,null,null,null,null,null,"nein",{"$f":"IFERROR(IF(I613=\"t\",H613,H613*VLOOKUP(A613,Stammdaten!$A$3:$C$14,2,FALSE)),\"\")","v":""},null,null,null,""]
[{"$f":"_xlfn.XLOOKUP(B614,Stammdaten!$C$3:$C$14,Stammdaten!$A$3:$A$14,\"\",0,1)","v":""},null,null,null,null,null,null,null,null,"nein",{"$f":"IFERROR(IF(I614=\"t\",H614,H614*VLOOKUP(A614,Stammdaten!$A$3:$C$14,2,FALSE)),\"\")","v":""},null,null,null,""]
[{"$f":"_xlfn.XLOOKUP(B615,Stammdaten!$C$3:$C$14,Stammdaten!$A$3:$A$14,\"\",0,1)","v":""},null,null,null,null,null,null,null,null,"nein",{"$f":"IFERROR(IF(I615=\"t\",H615,H615*VLOOKUP(A615,Stammdaten!$A$3:$C$14,2,FALSE)),\"\")","v":""},null,null,null,""]
[{"$f":"_xlfn.XLOOKUP(B616,Stammdaten!$C$3:$C$14,Stammdaten!$A$3:$A$14,\"\",0,1)","v":""},null,null,null,null,null,null,null,null,"nein",{"$f":"IFERROR(IF(I616=\"t\",H616,H616*VLOOKUP(A616,Stammdaten!$A$3:$C$14,2,FALSE)),\"\")","v":""},null,null,null,""]
[{"$f":"_xlfn.XLOOKUP(B617,Stammdaten!$C$3:$C$14,Stammdaten!$A$3:$A$14,\"\",0,1)","v":""},null,null,null,null,null,null,null,null,"nein",{"$f":"IFERROR(IF(I617=\"t\",H617,H617*VLOOKUP(A617,Stammdaten!$A$3:$C$14,2,FALSE)),\"\")","v":""},null,null,null,{"$f":"IF(SUM(L617:N617)>K617,\"'davon' ist größer als Gesamtgewicht.\",\"\")","v":""}]
[{"$f":"_xlfn.XLOOKUP(B618,Stammdaten!$C$3:$C$14,Stammdaten!$A$3:$A$14,\"\",0,1)","v":""},null,null,null,null,null,null,null,null,"nein",{"$f":"IFERROR(IF(I618=\"t\",H618,H618*VLOOKUP(A618,Stammdaten!$A$3:$C$14,2,FALSE)),\"\")","v":""},null,null,null,""]
[{"$f":"_xlfn.XLOOKUP(B619,Stammdaten!$C$3:$C$14,Stammdaten!$A$3:$A$14,\"\",0,1)","v":""},null,null,null,null,null,null,null,null,"nein",{"$f":"IFERROR(IF(I619=\"t\",H619,H619*VLOOKUP(A619,Stammdaten!$A$3:$C$14,2,FALSE)),\"\")","v":""},null,null,null,""]
[{"$f":"_xlfn.XLOOKUP(B620,Stammdaten!$C$3:$C$14,Stammdaten!$A$3:$A$14,\"\",0,1)","v":""},null,null,null,null,null,null,null,null,"nein",{"$f":"IFERROR(IF(I620=\"t\",H620,H620*VLOOKUP(A620,Stammdaten!$A$3:$C$14,2,FALSE)),\"\")","v":""},null,null,null,""]
[{"$f":"_xlfn.XLOOKUP(B621,Stammdaten!$C$3:$C$14,Stammdaten!$A$3:$A$14,\"\",0,1)","v":""},null,null,null,null,null,null,null,null,"nein",{"$f":"IFERROR(IF(I621=\"t\",H621,H621*VLOOKUP(A621,Stammdaten!$A$3:$C$14,2,FALSE)),\"\")","v":""},null,null,null,""]
[{"$f":"_xlfn.XLOOKUP(B622,Stammdaten!$C$3:$C$14,Stammdaten!$A$3:$A$14,\"\",0,1)","v":""},null,null,null,null,null,null,null,null,"nein",{"$f":"IFERROR(IF(I622=\"t\",H622,H622*VLOOKUP(A622,Stammdaten!$A$3:$C$14,2,FALSE)),\"\")","v":""},null,null,null,""]
[{"$f":"_xlfn.XLOOKUP(B623,Stammdaten!$C$3:$C$14,Stammdaten!$A$3:$A$14,\"\",0,1)","v":""},null,null,null,null,null,null,null,null,"nein",{"$f":"IFERROR(IF(I623=\"t\",H623,H623*VLOOKUP(A623,Stammdaten!$A$3:$C$14,2,FALSE)),\"\")","v":""},null,null,null,""]
[{"$f":"_xlfn.XLOOKUP(B624,Stammdaten!$C$3:$C$14,Stammdaten!$A$3:$A$14,\"\",0,1)","v":""},null,null,null,null,null,null,null,null,"nein",{"$f":"IFERROR(IF(I624=\"t\",H624,H624*VLOOKUP(A624,Stammdaten!$A$3:$C$14,2,FALSE)),\"\")","v":""},null,null,null,""]
[{"$f":"_xlfn.XLOOKUP(B625,Stammdaten!$C$3:$C$14,Stammdaten!$A$3:$A$14,\"\",0,1)","v":""},null,null,null,null,null,null,null,null,"nein",{"$f":"IFERROR(IF(I625=\"t\",H625,H625*VLOOKUP(A625,Stammdaten!$A$3:$C$14,2,FALSE)),\"\")","v":""},null,null,null,""]
[{"$f":"_xlfn.XLOOKUP(B626,Stammdaten!$C$3:$C$14,Stammdaten!$A$3:$A$14,\"\",0,1)","v":""},null,null,null,null,null,null,null,null,"nein",{"$f":"IFERROR(IF(I626=\"t\",H626,H626*VLOOKUP(A626,Stammdaten!$A$3:$C$14,2,FALSE)),\"\")","v":""},null,null,null,""]
[{"$f":"_xlfn.XLOOKUP(B627,Stammdaten!$C$3:$C$14,Stammdaten!$A$3:$A$14,\"\",0,1)","v":""},null,null,null,null,null,null,null,null,"nein",{"$f":"IFERROR(IF(I627=\"t\",H627,H627*VLOOKUP(A627,Stammdaten!$A$3:$C$14,2,FALSE)),\"\")","v":""},null,null,null,""]
[{"$f":"_xlfn.XLOOKUP(B628,Stammdaten!$C$3:$C$14,Stammdaten!$A$3:$A$14,\"\",0,1)","v":""},null,null,null,null,null,null,null,null,"nein",{"$f":"IFERROR(IF(I628=\"t\",H628,H628*VLOOKUP(A628,Stammdaten!$A$3:$C$14,2,FALSE)),\"\")","v":""},null,null,null,""]
[{"$f":"_xlfn.XLOOKUP(B629,Stammdaten!$C$3:$C$14,Stammdaten!$A$3:$A$14,\"\",0,1)","v":""},null,null,null,null,null,null,null,null,"nein",{"$f":"IFERROR(IF(I629=\"t\",H629,H629*VLOOKUP(A629,Stammdaten!$A$3:$C$14,2,FALSE)),\"\")","v":""},null,null,null,""]
[{"$f":"_xlfn.XLOOKUP(B630,Stammdaten!$C$3:$C$14,Stammdaten!$A$3:$A$14,\"\",0,1)","v":""},null,null,null,null,null,null,null,null,"nein",{"$f":"IFERROR(IF(I630=\"t\",H630,H630*VLOOKUP(A630,Stammdaten!$A$3:$C$14,2,FALSE)),\"\")","v":""},null,null,null,""]
[{"$f":"_xlfn.XLOOKUP(B631,Stammdaten!$C$3:$C$14,Stammdaten!$A$3:$A$14,\"\",0,1)","v":""},null,null,null,null,null,null,null,null,"nein",{"$f":"IFERROR(IF(I631=\"t\",H631,H631*VLOOKUP(A631,Stammdaten!$A$3:$C$14,2,FALSE)),\"\")","v":""},null,null,null,""]
[{"$f":"_xlfn.XLOOKUP(B632,Stammdaten!$C$3:$C$14,Stammdaten!$A$3:$A$14,\"\",0,1)","v":""},null,null,null,null,null,null,null,null,"nein",{"$f":"IFERROR(IF(I632=\"t\",H632,H632*VLOOKUP(A632,Stammdaten!$A$3:$C$14,2,FALSE)),\"\")","v":""},null,null,null,""]
[{"$f":"_xlfn.XLOOKUP(B633,Stammdaten!$C$3:$C$14,Stammdaten!$A$3:$A$14,\"\",0,1)","v":""},null,null,null,null,null,null,null,null,"nein",{"$f":"IFERROR(IF(I633=\"t\",H633,H633*VLOOKUP(A633,Stammdaten!$A$3:$C$14,2,FALSE)),\"\")","v":""},null,null,null,""]
[{"$f":"_xlfn.XLOOKUP(B634,Stammdaten!$C$3:$C$14,Stammdaten!$A$3:$A$14,\"\",0,1)","v":""},null,null,null,null,null,null,null,null,"nein",{"$f":"IFERROR(IF(I634=\"t\",H634,H634*VLOOKUP(A634,Stammdaten!$A$3:$C$14,2,FALSE)),\"\")","v":""},null,null,null,""]
[{"$f":"_xlfn.XLOOKUP(B635,Stammdaten!$C$3:$C$14,Stammdaten!$A$3:$A$14,\"\",0,1)","v":""},null,null,null,null,null,null,null,null,"nein",{"$f":"IFERROR(IF(I635=\"t\",H635,H635*VLOOKUP(A635,Stammdaten!$A$3:$C$14,2,FALSE)),\"\")","v":""},null,null,null,""]
[{"$f":"_xlfn.XLOOKUP(B636,Stammdaten!$C$3:$C$14,Stammdaten!$A$3:$A$14,\"\",0,1)","v":""},null,null,null,null,null,null,null,null,"nein",{"$f":"IFERROR(IF(I636=\"t\",H636,H636*VLOOKUP(A636,Stammdaten!$A$3:$C$14,2,FALSE)),\"\")","v":""},null,null,null,""]
[{"$f":"_xlfn.XLOOKUP(B637,Stammdaten!$C$3:$C$14,Stammdaten!$A$3:$A$14,\"\",0,1)","v":""},null,null,null,null,null,null,null,null,"nein",{"$f":"IFERROR(IF(I637=\"t\",H637,H637*VLOOKUP(A637,Stammdaten!$A$3:$C$14,2,FALSE)),\"\")","v":""},null,null,null,""]
[{"$f":"_xlfn.XLOOKUP(B638,Stammdaten!$C$3:$C$14,Stammdaten!$A$3:$A$14,\"\",0,1)","v":""},null,null,null,null,null,null,null,null,"nein",{"$f":"IFERROR(IF(I638=\"t\",H638,H638*VLOOKUP(A638,Stammdaten!$A$3:$C$14,2,FALSE)),\"\")","v":""},null,null,null,""]
[{"$f":"_xlfn.XLOOKUP(B639,Stammdaten!$C$3:$C$14,Stammdaten!$A$3:$A$14,\"\",0,1)","v":""},null,null,null,null,null,null,null,null,"nein",{"$f":"IFERROR(IF(I639=\"t\",H639,H639*VLOOKUP(A639,Stammdaten!$A$3:$C$14,2,FALSE)),\"\")","v":""},null,null,null,""]
[{"$f":"_xlfn.XLOOKUP(B640,Stammdaten!$C$3:$C$14,Stammdaten!$A$3:$A$14,\"\",0,1)","v":""},null,null,null,null,null,null,null,null,"nein",{"$f":"IFERROR(IF(I640=\"t\",H640,H640*VLOOKUP(A640,Stammdaten!$A$3:$C$14,2,FALSE)),\"\")","v":""},null,null,null,""]
[{"$f":"_xlfn.XLOOKUP(B641,Stammdaten!$C$3:$C$14,Stammdaten!$A$3:$A$14,\"\",0,1)","v":""},null,null,null,null,null,null,null,null,"nein",{"$f":"IFERROR(IF(I641=\"t\",H641,H641*VLOOKUP(A641,Stammdaten!$A$3:$C$14,2,FALSE)),\"\")","v":""},null,null,null,""]
[{"$f":"_xlfn.XLOOKUP(B642,Stammdaten!$C$3:$C$14,Stammdaten!$A$3:$A$14,\"\",0,1)","v":""},null,null,null,null,null,null,null,null,"nein",{"$f":"IFERROR(IF(I642=\"t\",H642,H642*VLOOKUP(A642,Stammdaten!$A$3:$C$14,2,FALSE)),\"\")","v":""},null,null,null,""]
[{"$f":"_xlfn.XLOOKUP(B643,Stammdaten!$C$3:$C$14,Stammdaten!$A$3:$A$14,\"\",0,1)","v":""},null,null,null,null,null,null,null,null,"nein",{"$f":"IFERROR(IF(I643=\"t\",H643,H643*VLOOKUP(A643,Stammdaten!$A$3:$C$14,2,FALSE)),\"\")","v":""},null,null,null,""]
[{"$f":"_xlfn.XLOOKUP(B644,Stammdaten!$C$3:$C$14,Stammdaten!$A$3:$A$14,\"\",0,1)","v":""},null,null,null,null,null,null,null,null,"nein",{"$f":"IFERROR(IF(I644=\"t\",H644,H644*VLOOKUP(A644,Stammdaten!$A$3:$C$14,2,FALSE)),\"\")","v":""},null,null,null,""]
[{"$f":"_xlfn.XLOOKUP(B645,Stammdaten!$C$3:$C$14,Stammdaten!$A$3:$A$14,\"\",0,1)","v":""},null,null,null,null,null,null,null,null,"nein",{"$f":"IFERROR(IF(I645=\"t\",H645,H645*VLOOKUP(A645,Stammdaten!$A$3:$C$14,2,FALSE)),\"\")","v":""},null,null,null,""]
[{"$f":"_xlfn.XLOOKUP(B646,Stammdaten!$C$3:$C$14,Stammdaten!$A$3:$A$14,\"\",0,1)","v":""},null,null,null,null,null,null,null,null,"nein",{"$f":"IFERROR(IF(I646=\"t\",H646,H646*VLOOKUP(A646,Stammdaten!$A$3:$C$14,2,FALSE)),\"\")","v":""},null,null,null,""]
[{"$f":"_xlfn.XLOOKUP(B647,Stammdaten!$C$3:$C$14,Stammdaten!$A$3:$A$14,\"\",0,1)","v":""},null,null,null,null,null,null,null,null,"nein",{"$f":"IFERROR(IF(I647=\"t\",H647,H647*VLOOKUP(A647,Stammdaten!$A$3:$C$14,2,FALSE)),\"\")","v":""},null,null,null,""]
[{"$f":"_xlfn.XLOOKUP(B648,Stammdaten!$C$3:$C$14,Stammdaten!$A$3:$A$14,\"\",0,1)","v":""},null,null,null,null,null,null,null,null,"nein",{"$f":"IFERROR(IF(I648=\"t\",H648,H648*VLOOKUP(A648,Stammdaten!$A$3:$C$14,2,FALSE)),\"\")","v":""},null,null,null,""]
[{"$f":"_xlfn.XLOOKUP(B649,Stammdaten!$C$3:$C$14,Stammdaten!$A$3:$A$14,\"\",0,1)","v":""},null,null,null,null,null,null,null,null,"nein",{"$f":"IFERROR(IF(I649=\"t\",H649,H649*VLOOKUP(A649,Stammdaten!$A$3:$C$14,2,FALSE)),\"\")","v":""},null,null,null,""]
[{"$f":"_xlfn.XLOOKUP(B650,Stammdaten!$C$3:$C$14,Stammdaten!$A$3:$A$14,\"\",0,1)","v":""},null,null,null,null,null,null,null,null,"nein",{"$f":"IFERROR(IF(I650=\"t\",H650,H650*VLOOKUP(A650,Stammdaten!$A$3:$C$14,2,FALSE)),\"\")","v":""},null,null,null,""]
[{"$f":"_xlfn.XLOOKUP(B651,Stammdaten!$C$3:$C$14,Stammdaten!$A$3:$A$14,\"\",0,1)","v":""},null,null,null,null,null,null,null,null,"nein",{"$f":"IFERROR(IF(I651=\"t\",H651,H651*VLOOKUP(A651,Stammdaten!$A$3:$C$14,2,FALSE)),\"\")","v":""},null,null,null,""]
[{"$f":"_xlfn.XLOOKUP(B652,Stammdaten!$C$3:$C$14,Stammdaten!$A$3:$A$14,\"\",0,1)","v":""},null,null,null,null,null,null,null,null,"nein",{"$f":"IFERROR(IF(I652=\"t\",H652,H652*VLOOKUP(A652,Stammdaten!$A$3:$C$14,2,FALSE)),\"\")","v":""},null,null,null,""]
[{"$f":"_xlfn.XLOOKUP(B653,Stammdaten!$C$3:$C$14,Stammdaten!$A$3:$A$14,\"\",0,1)","v":""},null,null,null,null,null,null,null,null,"nein",{"$f":"IFERROR(IF(I653=\"t\",H653,H653*VLOOKUP(A653,Stammdaten!$A$3:$C$14,2,FALSE)),\"\")","v":""},null,null,null,""]
[{"$f":"_xlfn.XLOOKUP(B654,Stammdaten!$C$3:$C$14,Stammdaten!$A$3:$A$14,\"\",0,1)","v":""},null,null,null,null,null,null,null,null,"nein",{"$f":"IFERROR(IF(I654=\"t\",H654,H654*VLOOKUP(A654,Stammdaten!$A$3:$C$14,2,FALSE)),\"\")","v":""},null,null,null,""]
[{"$f":"_xlfn.XLOOKUP(B655,Stammdaten!$C$3:$C$14,Stammdaten!$A$3:$A$14,\"\",0,1)","v":""},null,null,null,null,null,null,null,null,"nein",{"$f":"IFERROR(IF(I655=\"t\",H655,H655*VLOOKUP(A655,Stammdaten!$A$3:$C$14,2,FALSE)),\"\")","v":""},null,null,null,""]
[{"$f":"_xlfn.XLOOKUP(B656,Stammdaten!$C$3:$C$14,Stammdaten!$A$3:$A$14,\"\",0,1)","v":""},null,null,null,null,null,null,null,null,"nein",{"$f":"IFERROR(IF(I656=\"t\",H656,H656*VLOOKUP(A656,Stammdaten!$A$3:$C$14,2,FALSE)),\"\")","v":""},null,null,null,""]
[{"$f":"_xlfn.XLOOKUP(B657,Stammdaten!$C$3:$C$14,Stammdaten!$A$3:$A$14,\"\",0,1)","v":""},null,null,null,null,null,null,null,null,"nein",{"$f":"IFERROR(IF(I657=\"t\",H657,H657*VLOOKUP(A657,Stammdaten!$A$3:$C$14,2,FALSE)),\"\")","v":""},null,null,null,""]
[{"$f":"_xlfn.XLOOKUP(B658,Stammdaten!$C$3:$C$14,Stammdaten!$A$3:$A$14,\"\",0,1)","v":""},null,null,null,null,null,null,null,null,"nein",{"$f":"IFERROR(IF(I658=\"t\",H658,H658*VLOOKUP(A658,Stammdaten!$A$3:$C$14,2,FALSE)),\"\")","v":""},null,null,null,""]
[{"$f":"_xlfn.XLOOKUP(B659,Stammdaten!$C$3:$C$14,Stammdaten!$A$3:$A$14,\"\",0,1)","v":""},null,null,null,null,null,null,null,null,"nein",{"$f":"IFERROR(IF(I659=\"t\",H659,H659*VLOOKUP(A659,Stammdaten!$A$3:$C$14,2,FALSE)),\"\")","v":""},null,null,null,""]
[{"$f":"_xlfn.XLOOKUP(B660,Stammdaten!$C$3:$C$14,Stammdaten!$A$3:$A$14,\"\",0,1)","v":""},null,null,null,null,null,null,null,null,"nein",{"$f":"IFERROR(IF(I660=\"t\",H660,H660*VLOOKUP(A660,Stammdaten!$A$3:$C$14,2,FALSE)),\"\")","v":""},null,null,null,""]
[{"$f":"_xlfn.XLOOKUP(B661,Stammdaten!$C$3:$C$14,Stammdaten!$A$3:$A$14,\"\",0,1)","v":""},null,null,null,null,null,null,null,null,"nein",{"$f":"IFERROR(IF(I661=\"t\",H661,H661*VLOOKUP(A661,Stammdaten!$A$3:$C$14,2,FALSE)),\"\")","v":""},null,null,null,""]
[{"$f":"_xlfn.XLOOKUP(B662,Stammdaten!$C$3:$C$14,Stammdaten!$A$3:$A$14,\"\",0,1)","v":""},null,null,null,null,null,null,null,null,"nein",{"$f":"IFERROR(IF(I662=\"t\",H662,H662*VLOOKUP(A662,Stammdaten!$A$3:$C$14,2,FALSE)),\"\")","v":""},null,null,null,""]
[{"$f":"_xlfn.XLOOKUP(B663,Stammdaten!$C$3:$C$14,Stammdaten!$A$3:$A$14,\"\",0,1)","v":""},null,null,null,null,null,null,null,null,"nein",{"$f":"IFERROR(IF(I663=\"t\",H663,H663*VLOOKUP(A663,Stammdaten!$A$3:$C$14,2,FALSE)),\"\")","v":""},null,null,null,""]
[{"$f":"_xlfn.XLOOKUP(B664,Stammdaten!$C$3:$C$14,Stammdaten!$A$3:$A$14,\"\",0,1)","v":""},null,null,null,null,null,null,null,null,"nein",{"$f":"IFERROR(IF(I664=\"t\",H664,H664*VLOOKUP(A664,Stammdaten!$A$3:$C$14,2,FALSE)),\"\")","v":""},null,null,null,""]
[{"$f":"_xlfn.XLOOKUP(B665,Stammdaten!$C$3:$C$14,Stammdaten!$A$3:$A$14,\"\",0,1)","v":""},null,null,null,null,null,null,null,null,"nein",{"$f":"IFERROR(IF(I665=\"t\",H665,H665*VLOOKUP(A665,Stammdaten!$A$3:$C$14,2,FALSE)),\"\")","v":""},null,null,null,""]
[{"$f":"_xlfn.XLOOKUP(B666,Stammdaten!$C$3:$C$14,Stammdaten!$A$3:$A$14,\"\",0,1)","v":""},null,null,null,null,null,null,null,null,"nein",{"$f":"IFERROR(IF(I666=\"t\",H666,H666*VLOOKUP(A666,Stammdaten!$A$3:$C$14,2,FALSE)),\"\")","v":""},null,null,null,""]
[{"$f":"_xlfn.XLOOKUP(B667,Stammdaten!$C$3:$C$14,Stammdaten!$A$3:$A$14,\"\",0,1)","v":""},null,null,null,null,null,null,null,null,"nein",{"$f":"IFERROR(IF(I667=\"t\",H667,H667*VLOOKUP(A667,Stammdaten!$A$3:$C$14,2,FALSE)),\"\")","v":""},null,null,null,""]
[{"$f":"_xlfn.XLOOKUP(B668,Stammdaten!$C$3:$C$14,Stammdaten!$A$3:$A$14,\"\",0,1)","v":""},null,null,null,null,null,null,null,null,"nein",{"$f":"IFERROR(IF(I668=\"t\",H668,H668*VLOOKUP(A668,Stammdaten!$A$3:$C$14,2,FALSE)),\"\")","v":""},null,null,null,""]
[{"$f":"_xlfn.XLOOKUP(B669,Stammdaten!$C$3:$C$14,Stammdaten!$A$3:$A$14,\"\",0,1)","v":""},null,null,null,null,null,null,null,null,"nein",{"$f":"IFERROR(IF(I669=\"t\",H669,H669*VLOOKUP(A669,Stammdaten!$A$3:$C$14,2,FALSE)),\"\")","v":""},null,null,null,""]
[{"$f":"_xlfn.XLOOKUP(B670,Stammdaten!$C$3:$C$14,Stammdaten!$A$3:$A$14,\"\",0,1)","v":""},null,null,null,null,null,null,null,null,"nein",{"$f":"IFERROR(IF(I670=\"t\",H670,H670*VLOOKUP(A670,Stammdaten!$A$3:$C$14,2,FALSE)),\"\")","v":""},null,null,null,""]
[{"$f":"_xlfn.XLOOKUP(B671,Stammdaten!$C$3:$C$14,Stammdaten!$A$3:$A$14,\"\",0,1)","v":""},null,null,null,null,null,null,null,null,"nein",{"$f":"IFERROR(IF(I671=\"t\",H671,H671*VLOOKUP(A671,Stammdaten!$A$3:$C$14,2,FALSE)),\"\")","v":""},null,null,null,""]
[{"$f":"_xlfn.XLOOKUP(B672,Stammdaten!$C$3:$C$14,Stammdaten!$A$3:$A$14,\"\",0,1)","v":""},null,null,null,null,null,null,null,null,"nein",{"$f":"IFERROR(IF(I672=\"t\",H672,H672*VLOOKUP(A672,Stammdaten!$A$3:$C$14,2,FALSE)),\"\")","v":""},null,null,null,""]
[{"$f":"_xlfn.XLOOKUP(B673,Stammdaten!$C$3:$C$14,Stammdaten!$A$3:$A$14,\"\",0,1)","v":""},null,null,null,null,null,null,null,null,"nein",{"$f":"IFERROR(IF(I673=\"t\",H673,H673*VLOOKUP(A673,Stammdaten!$A$3:$C$14,2,FALSE)),\"\")","v":""},null,null,null,""]
[{"$f":"_xlfn.XLOOKUP(B674,Stammdaten!$C$3:$C$14,Stammdaten!$A$3:$A$14,\"\",0,1)","v":""},null,null,null,null,null,null,null,null,"nein",{"$f":"IFERROR(IF(I674=\"t\",H674,H674*VLOOKUP(A674,Stammdaten!$A$3:$C$14,2,FALSE)),\"\")","v":""},null,null,null,""]
[{"$f":"_xlfn.XLOOKUP(B675,Stammdaten!$C$3:$C$14,Stammdaten!$A$3:$A$14,\"\",0,1)","v":""},null,null,null,null,null,null,null,null,"nein",{"$f":"IFERROR(IF(I675=\"t\",H675,H675*VLOOKUP(A675,Stammdaten!$A$3:$C$14,2,FALSE)),\"\")","v":""},null,null,null,""]
[{"$f":"_xlfn.XLOOKUP(B676,Stammdaten!$C$3:$C$14,Stammdaten!$A$3:$A$14,\"\",0,1)","v":""},null,null,null,null,null,null,null,null,"nein",{"$f":"IFERROR(IF(I676=\"t\",H676,H676*VLOOKUP(A676,Stammdaten!$A$3:$C$14,2,FALSE)),\"\")","v":""},null,null,null,""]
[{"$f":"_xlfn.XLOOKUP(B677,Stammdaten!$C$3:$C$14,Stammdaten!$A$3:$A$14,\"\",0,1)","v":""},null,null,null,null,null,null,null,null,"nein",{"$f":"IFERROR(IF(I677=\"t\",H677,H677*VLOOKUP(A677,Stammdaten!$A$3:$C$14,2,FALSE)),\"\")","v":""},null,null,null,""]
[{"$f":"_xlfn.XLOOKUP(B678,Stammdaten!$C$3:$C$14,Stammdaten!$A$3:$A$14,\"\",0,1)","v":""},null,null,null,null,null,null,null,null,"nein",{"$f":"IFERROR(IF(I678=\"t\",H678,H678*VLOOKUP(A678,Stammdaten!$A$3:$C$14,2,FALSE)),\"\")","v":""},null,null,null,""]
[{"$f":"_xlfn.XLOOKUP(B679,Stammdaten!$C$3:$C$14,Stammdaten!$A$3:$A$14,\"\",0,1)","v":""},null,null,null,null,null,null,null,null,"nein",{"$f":"IFERROR(IF(I679=\"t\",H679,H679*VLOOKUP(A679,Stammdaten!$A$3:$C$14,2,FALSE)),\"\")","v":""},null,null,null,""]
[{"$f":"_xlfn.XLOOKUP(B680,Stammdaten!$C$3:$C$14,Stammdaten!$A$3:$A$14,\"\",0,1)","v":""},null,null,null,null,null,null,null,null,"nein",{"$f":"IFERROR(IF(I680=\"t\",H680,H680*VLOOKUP(A680,Stammdaten!$A$3:$C$14,2,FALSE)),\"\")","v":""},null,null,null,""]
[{"$f":"_xlfn.XLOOKUP(B681,Stammdaten!$C$3:$C$14,Stammdaten!$A$3:$A$14,\"\",0,1)","v":""},null,null,null,null,null,null,null,null,"nein",{"$f":"IFERROR(IF(I681=\"t\",H681,H681*VLOOKUP(A681,Stammdaten!$A$3:$C$14,2,FALSE)),\"\")","v":""},null,null,null,{"$f":"IF(SUM(L681:N681)>K681,\"'davon' ist größer als Gesamtgewicht.\",\"\")","v":""}]
[{"$f":"_xlfn.XLOOKUP(B682,Stammdaten!$C$3:$C$14,Stammdaten!$A$3:$A$14,\"\",0,1)","v":""},null,null,null,null,null,null,null,null,"nein",{"$f":"IFERROR(IF(I682=\"t\",H682,H682*VLOOKUP(A682,Stammdaten!$A$3:$C$14,2,FALSE)),\"\")","v":""},null,null,null,""]
[{"$f":"_xlfn.XLOOKUP(B683,Stammdaten!$C$3:$C$14,Stammdaten!$A$3:$A$14,\"\",0,1)","v":""},null,null,null,null,null,null,null,null,"nein",{"$f":"IFERROR(IF(I683=\"t\",H683,H683*VLOOKUP(A683,Stammdaten!$A$3:$C$14,2,FALSE)),\"\")","v":""},null,null,null,""]
[{"$f":"_xlfn.XLOOKUP(B684,Stammdaten!$C$3:$C$14,Stammdaten!$A$3:$A$14,\"\",0,1)","v":""},null,null,null,null,null,null,null,null,"nein",{"$f":"IFERROR(IF(I684=\"t\",H684,H684*VLOOKUP(A684,Stammdaten!$A$3:$C$14,2,FALSE)),\"\")","v":""},null,null,null,""]
[{"$f":"_xlfn.XLOOKUP(B685,Stammdaten!$C$3:$C$14,Stammdaten!$A$3:$A$14,\"\",0,1)","v":""},null,null,null,null,null,null,null,null,"nein",{"$f":"IFERROR(IF(I685=\"t\",H685,H685*VLOOKUP(A685,Stammdaten!$A$3:$C$14,2,FALSE)),\"\")","v":""},null,null,null,""]
[{"$f":"_xlfn.XLOOKUP(B686,Stammdaten!$C$3:$C$14,Stammdaten!$A$3:$A$14,\"\",0,1)","v":""},null,null,null,null,null,null,null,null,"nein",{"$f":"IFERROR(IF(I686=\"t\",H686,H686*VLOOKUP(A686,Stammdaten!$A$3:$C$14,2,FALSE)),\"\")","v":""},null,null,null,""]
[{"$f":"_xlfn.XLOOKUP(B687,Stammdaten!$C$3:$C$14,Stammdaten!$A$3:$A$14,\"\",0,1)","v":""},null,null,null,null,null,null,null,null,"nein",{"$f":"IFERROR(IF(I687=\"t\",H687,H687*VLOOKUP(A687,Stammdaten!$A$3:$C$14,2,FALSE)),\"\")","v":""},null,null,null,""]
[{"$f":"_xlfn.XLOOKUP(B688,Stammdaten!$C$3:$C$14,Stammdaten!$A$3:$A$14,\"\",0,1)","v":""},null,null,null,null,null,null,null,null,"nein",{"$f":"IFERROR(IF(I688=\"t\",H688,H688*VLOOKUP(A688,Stammdaten!$A$3:$C$14,2,FALSE)),\"\")","v":""},null,null,null,""]
[{"$f":"_xlfn.XLOOKUP(B689,Stammdaten!$C$3:$C$14,Stammdaten!$A$3:$A$14,\"\",0,1)","v":""},null,null,null,null,null,null,null,null,"nein",{"$f":"IFERROR(IF(I689=\"t\",H689,H689*VLOOKUP(A689,Stammdaten!$A$3:$C$14,2,FALSE)),\"\")","v":""},null,null,null,""]
[{"$f":"_xlfn.XLOOKUP(B690,Stammdaten!$C$3:$C$14,Stammdaten!$A$3:$A$14,\"\",0,1)","v":""},null,null,null,null,null,null,null,null,"nein",{"$f":"IFERROR(IF(I690=\"t\",H690,H690*VLOOKUP(A690,Stammdaten!$A$3:$C$14,2,FALSE)),\"\")","v":""},null,null,null,""]
[{"$f":"_xlfn.XLOOKUP(B691,Stammdaten!$C$3:$C$14,Stammdaten!$A$3:$A$14,\"\",0,1)","v":""},null,null,null,null,null,null,null,null,"nein",{"$f":"IFERROR(IF(I691=\"t\",H691,H691*VLOOKUP(A691,Stammdaten!$A$3:$C$14,2,FALSE)),\"\")","v":""},null,null,null,""]
[{"$f":"_xlfn.XLOOKUP(B692,Stammdaten!$C$3:$C$14,Stammdaten!$A$3:$A$14,\"\",0,1)","v":""},null,null,null,null,null,null,null,null,"nein",{"$f":"IFERROR(IF(I692=\"t\",H692,H692*VLOOKUP(A692,Stammdaten!$A$3:$C$14,2,FALSE)),\"\")","v":""},null,null,null,""]
[{"$f":"_xlfn.XLOOKUP(B693,Stammdaten!$C$3:$C$14,Stammdaten!$A$3:$A$14,\"\",0,1)","v":""},null,null,null,null,null,null,null,null,"nein",{"$f":"IFERROR(IF(I693=\"t\",H693,H693*VLOOKUP(A693,Stammdaten!$A$3:$C$14,2,FALSE)),\"\")","v":""},null,null,null,""]
[{"$f":"_xlfn.XLOOKUP(B694,Stammdaten!$C$3:$C$14,Stammdaten!$A$3:$A$14,\"\",0,1)","v":""},null,null,null,null,null,null,null,null,"nein",{"$f":"IFERROR(IF(I694=\"t\",H694,H694*VLOOKUP(A694,Stammdaten!$A$3:$C$14,2,FALSE)),\"\")","v":""},null,null,null,""]
[{"$f":"_xlfn.XLOOKUP(B695,Stammdaten!$C$3:$C$14,Stammdaten!$A$3:$A$14,\"\",0,1)","v":""},null,null,null,null,null,null,null,null,"nein",{"$f":"IFERROR(IF(I695=\"t\",H695,H695*VLOOKUP(A695,Stammdaten!$A$3:$C$14,2,FALSE)),\"\")","v":""},null,null,null,""]
[{"$f":"_xlfn.XLOOKUP(B696,Stammdaten!$C$3:$C$14,Stammdaten!$A$3:$A$14,\"\",0,1)","v":""},null,null,null,null,null,null,null,null,"nein",{"$f":"IFERROR(IF(I696=\"t\",H696,H696*VLOOKUP(A696,Stammdaten!$A$3:$C$14,2,FALSE)),\"\")","v":""},null,null,null,""]
[{"$f":"_xlfn.XLOOKUP(B697,Stammdaten!$C$3:$C$14,Stammdaten!$A$3:$A$14,\"\",0,1)","v":""},null,null,null,null,null,null,null,null,"nein",{"$f":"IFERROR(IF(I697=\"t\",H697,H697*VLOOKUP(A697,Stammdaten!$A$3:$C$14,2,FALSE)),\"\")","v":""},null,null,null,""]
[{"$f":"_xlfn.XLOOKUP(B698,Stammdaten!$C$3:$C$14,Stammdaten!$A$3:$A$14,\"\",0,1)","v":""},null,null,null,null,null,null,null,null,"nein",{"$f":"IFERROR(IF(I698=\"t\",H698,H698*VLOOKUP(A698,Stammdaten!$A$3:$C$14,2,FALSE)),\"\")","v":""},null,null,null,""]
[{"$f":"_xlfn.XLOOKUP(B699,Stammdaten!$C$3:$C$14,Stammdaten!$A$3:$A$14,\"\",0,1)","v":""},null,null,null,null,null,null,null,null,"nein",{"$f":"IFERROR(IF(I699=\"t\",H699,H699*VLOOKUP(A699,Stammdaten!$A$3:$C$14,2,FALSE)),\"\")","v":""},null,null,null,""]
[{"$f":"_xlfn.XLOOKUP(B700,Stammdaten!$C$3:$C$14,Stammdaten!$A$3:$A$14,\"\",0,1)","v":""},null,null,null,null,null,null,null,null,"nein",{"$f":"IFERROR(IF(I700=\"t\",H700,H700*VLOOKUP(A700,Stammdaten!$A$3:$C$14,2,FALSE)),\"\")","v":""},null,null,null,""]
[{"$f":"_xlfn.XLOOKUP(B701,Stammdaten!$C$3:$C$14,Stammdaten!$A$3:$A$14,\"\",0,1)","v":""},null,null,null,null,null,null,null,null,"nein",{"$f":"IFERROR(IF(I701=\"t\",H701,H701*VLOOKUP(A701,Stammdaten!$A$3:$C$14,2,FALSE)),\"\")","v":""},null,null,null,""]
[{"$f":"_xlfn.XLOOKUP(B702,Stammdaten!$C$3:$C$14,Stammdaten!$A$3:$A$14,\"\",0,1)","v":""},null,null,null,null,null,null,null,null,"nein",{"$f":"IFERROR(IF(I702=\"t\",H702,H702*VLOOKUP(A702,Stammdaten!$A$3:$C$14,2,FALSE)),\"\")","v":""},null,null,null,""]
[{"$f":"_xlfn.XLOOKUP(B703,Stammdaten!$C$3:$C$14,Stammdaten!$A$3:$A$14,\"\",0,1)","v":""},null,null,null,null,null,null,null,null,"nein",{"$f":"IFERROR(IF(I703=\"t\",H703,H703*VLOOKUP(A703,Stammdaten!$A$3:$C$14,2,FALSE)),\"\")","v":""},null,null,null,""]
[{"$f":"_xlfn.XLOOKUP(B704,Stammdaten!$C$3:$C$14,Stammdaten!$A$3:$A$14,\"\",0,1)","v":""},null,null,null,null,null,null,null,null,"nein",{"$f":"IFERROR(IF(I704=\"t\",H704,H704*VLOOKUP(A704,Stammdaten!$A$3:$C$14,2,FALSE)),\"\")","v":""},null,null,null,""]
[{"$f":"_xlfn.XLOOKUP(B705,Stammdaten!$C$3:$C$14,Stammdaten!$A$3:$A$14,\"\",0,1)","v":""},null,null,null,null,null,null,null,null,"nein",{"$f":"IFERROR(IF(I705=\"t\",H705,H705*VLOOKUP(A705,Stammdaten!$A$3:$C$14,2,FALSE)),\"\")","v":""},null,null,null,""]
[{"$f":"_xlfn.XLOOKUP(B706,Stammdaten!$C$3:$C$14,Stammdaten!$A$3:$A$14,\"\",0,1)","v":""},null,null,null,null,null,null,null,null,"nein",{"$f":"IFERROR(IF(I706=\"t\",H706,H706*VLOOKUP(A706,Stammdaten!$A$3:$C$14,2,FALSE)),\"\")","v":""},null,null,null,""]
[{"$f":"_xlfn.XLOOKUP(B707,Stammdaten!$C$3:$C$14,Stammdaten!$A$3:$A$14,\"\",0,1)","v":""},null,null,null,null,null,null,null,null,"nein",{"$f":"IFERROR(IF(I707=\"t\",H707,H707*VLOOKUP(A707,Stammdaten!$A$3:$C$14,2,FALSE)),\"\")","v":""},null,null,null,""]
[{"$f":"_xlfn.XLOOKUP(B708,Stammdaten!$C$3:$C$14,Stammdaten!$A$3:$A$14,\"\",0,1)","v":""},null,null,null,null,null,null,null,null,"nein",{"$f":"IFERROR(IF(I708=\"t\",H708,H708*VLOOKUP(A708,Stammdaten!$A$3:$C$14,2,FALSE)),\"\")","v":""},null,null,null,""]
[{"$f":"_xlfn.XLOOKUP(B709,Stammdaten!$C$3:$C$14,Stammdaten!$A$3:$A$14,\"\",0,1)","v":""},null,null,null,null,null,null,null,null,"nein",{"$f":"IFERROR(IF(I709=\"t\",H709,H709*VLOOKUP(A709,Stammdaten!$A$3:$C$14,2,FALSE)),\"\")","v":""},null,null,null,""]
[{"$f":"_xlfn.XLOOKUP(B710,Stammdaten!$C$3:$C$14,Stammdaten!$A$3:$A$14,\"\",0,1)","v":""},null,null,null,null,null,null,null,null,"nein",{"$f":"IFERROR(IF(I710=\"t\",H710,H710*VLOOKUP(A710,Stammdaten!$A$3:$C$14,2,FALSE)),\"\")","v":""},null,null,null,""]
[{"$f":"_xlfn.XLOOKUP(B711,Stammdaten!$C$3:$C$14,Stammdaten!$A$3:$A$14,\"\",0,1)","v":""},null,null,null,null,null,null,null,null,"nein",{"$f":"IFERROR(IF(I711=\"t\",H711,H711*VLOOKUP(A711,Stammdaten!$A$3:$C$14,2,FALSE)),\"\")","v":""},null,null,null,""]
[{"$f":"_xlfn.XLOOKUP(B712,Stammdaten!$C$3:$C$14,Stammdaten!$A$3:$A$14,\"\",0,1)","v":""},null,null,null,null,null,null,null,null,"nein",{"$f":"IFERROR(IF(I712=\"t\",H712,H712*VLOOKUP(A712,Stammdaten!$A$3:$C$14,2,FALSE)),\"\")","v":""},null,null,null,""]
[{"$f":"_xlfn.XLOOKUP(B713,Stammdaten!$C$3:$C$14,Stammdaten!$A$3:$A$14,\"\",0,1)","v":""},null,null,null,null,null,null,null,null,"nein",{"$f":"IFERROR(IF(I713=\"t\",H713,H713*VLOOKUP(A713,Stammdaten!$A$3:$C$14,2,FALSE)),\"\")","v":""},null,null,null,""]
[{"$f":"_xlfn.XLOOKUP(B714,Stammdaten!$C$3:$C$14,Stammdaten!$A$3:$A$14,\"\",0,1)","v":""},null,null,null,null,null,null,null,null,"nein",{"$f":"IFERROR(IF(I714=\"t\",H714,H714*VLOOKUP(A714,Stammdaten!$A$3:$C$14,2,FALSE)),\"\")","v":""},null,null,null,""]
[{"$f":"_xlfn.XLOOKUP(B715,Stammdaten!$C$3:$C$14,Stammdaten!$A$3:$A$14,\"\",0,1)","v":""},null,null,null,null,null,null,null,null,"nein",{"$f":"IFERROR(IF(I715=\"t\",H715,H715*VLOOKUP(A715,Stammdaten!$A$3:$C$14,2,FALSE)),\"\")","v":""},null,null,null,""]
[{"$f":"_xlfn.XLOOKUP(B716,Stammdaten!$C$3:$C$14,Stammdaten!$A$3:$A$14,\"\",0,1)","v":""},null,null,null,null,null,null,null,null,"nein",{"$f":"IFERROR(IF(I716=\"t\",H716,H716*VLOOKUP(A716,Stammdaten!$A$3:$C$14,2,FALSE)),\"\")","v":""},null,null,null,""]
[{"$f":"_xlfn.XLOOKUP(B717,Stammdaten!$C$3:$C$14,Stammdaten!$A$3:$A$14,\"\",0,1)","v":""},null,null,null,null,null,null,null,null,"nein",{"$f":"IFERROR(IF(I717=\"t\",H717,H717*VLOOKUP(A717,Stammdaten!$A$3:$C$14,2,FALSE)),\"\")","v":""},null,null,null,""]
[{"$f":"_xlfn.XLOOKUP(B718,Stammdaten!$C$3:$C$14,Stammdaten!$A$3:$A$14,\"\",0,1)","v":""},null,null,null,null,null,null,null,null,"nein",{"$f":"IFERROR(IF(I718=\"t\",H718,H718*VLOOKUP(A718,Stammdaten!$A$3:$C$14,2,FALSE)),\"\")","v":""},null,null,null,""]
[{"$f":"_xlfn.XLOOKUP(B719,Stammdaten!$C$3:$C$14,Stammdaten!$A$3:$A$14,\"\",0,1)","v":""},null,null,null,null,null,null,null,null,"nein",{"$f":"IFERROR(IF(I719=\"t\",H719,H719*VLOOKUP(A719,Stammdaten!$A$3:$C$14,2,FALSE)),\"\")","v":""},null,null,null,""]
[{"$f":"_xlfn.XLOOKUP(B720,Stammdaten!$C$3:$C$14,Stammdaten!$A$3:$A$14,\"\",0,1)","v":""},null,null,null,null,null,null,null,null,"nein",{"$f":"IFERROR(IF(I720=\"t\",H720,H720*VLOOKUP(A720,Stammdaten!$A$3:$C$14,2,FALSE)),\"\")","v":""},null,null,null,""]
[{"$f":"_xlfn.XLOOKUP(B721,Stammdaten!$C$3:$C$14,Stammdaten!$A$3:$A$14,\"\",0,1)","v":""},null,null,null,null,null,null,null,null,"nein",{"$f":"IFERROR(IF(I721=\"t\",H721,H721*VLOOKUP(A721,Stammdaten!$A$3:$C$14,2,FALSE)),\"\")","v":""},null,null,null,""]
[{"$f":"_xlfn.XLOOKUP(B722,Stammdaten!$C$3:$C$14,Stammdaten!$A$3:$A$14,\"\",0,1)","v":""},null,null,null,null,null,null,null,null,"nein",{"$f":"IFERROR(IF(I722=\"t\",H722,H722*VLOOKUP(A722,Stammdaten!$A$3:$C$14,2,FALSE)),\"\")","v":""},null,null,null,""]
[{"$f":"_xlfn.XLOOKUP(B723,Stammdaten!$C$3:$C$14,Stammdaten!$A$3:$A$14,\"\",0,1)","v":""},null,null,null,null,null,null,null,null,"nein",{"$f":"IFERROR(IF(I723=\"t\",H723,H723*VLOOKUP(A723,Stammdaten!$A$3:$C$14,2,FALSE)),\"\")","v":""},null,null,null,""]
[{"$f":"_xlfn.XLOOKUP(B724,Stammdaten!$C$3:$C$14,Stammdaten!$A$3:$A$14,\"\",0,1)","v":""},null,null,null,null,null,null,null,null,"nein",{"$f":"IFERROR(IF(I724=\"t\",H724,H724*VLOOKUP(A724,Stammdaten!$A$3:$C$14,2,FALSE)),\"\")","v":""},null,null,null,""]
[{"$f":"_xlfn.XLOOKUP(B725,Stammdaten!$C$3:$C$14,Stammdaten!$A$3:$A$14,\"\",0,1)","v":""},null,null,null,null,null,null,null,null,"nein",{"$f":"IFERROR(IF(I725=\"t\",H725,H725*VLOOKUP(A725,Stammdaten!$A$3:$C$14,2,FALSE)),\"\")","v":""},null,null,null,""]
[{"$f":"_xlfn.XLOOKUP(B726,Stammdaten!$C$3:$C$14,Stammdaten!$A$3:$A$14,\"\",0,1)","v":""},null,null,null,null,null,null,null,null,"nein",{"$f":"IFERROR(IF(I726=\"t\",H726,H726*VLOOKUP(A726,Stammdaten!$A$3:$C$14,2,FALSE)),\"\")","v":""},null,null,null,""]
[{"$f":"_xlfn.XLOOKUP(B727,Stammdaten!$C$3:$C$14,Stammdaten!$A$3:$A$14,\"\",0,1)","v":""},null,null,null,null,null,null,null,null,"nein",{"$f":"IFERROR(IF(I727=\"t\",H727,H727*VLOOKUP(A727,Stammdaten!$A$3:$C$14,2,FALSE)),\"\")","v":""},null,null,null,""]
[{"$f":"_xlfn.XLOOKUP(B728,Stammdaten!$C$3:$C$14,Stammdaten!$A$3:$A$14,\"\",0,1)","v":""},null,null,null,null,null,null,null,null,"nein",{"$f":"IFERROR(IF(I728=\"t\",H728,H728*VLOOKUP(A728,Stammdaten!$A$3:$C$14,2,FALSE)),\"\")","v":""},null,null,null,""]
[{"$f":"_xlfn.XLOOKUP(B729,Stammdaten!$C$3:$C$14,Stammdaten!$A$3:$A$14,\"\",0,1)","v":""},null,null,null,null,null,null,null,null,"nein",{"$f":"IFERROR(IF(I729=\"t\",H729,H729*VLOOKUP(A729,Stammdaten!$A$3:$C$14,2,FALSE)),\"\")","v":""},null,null,null,""]
[{"$f":"_xlfn.XLOOKUP(B730,Stammdaten!$C$3:$C$14,Stammdaten!$A$3:$A$14,\"\",0,1)","v":""},null,null,null,null,null,null,null,null,"nein",{"$f":"IFERROR(IF(I730=\"t\",H730,H730*VLOOKUP(A730,Stammdaten!$A$3:$C$14,2,FALSE)),\"\")","v":""},null,null,null,""]
[{"$f":"_xlfn.XLOOKUP(B731,Stammdaten!$C$3:$C$14,Stammdaten!$A$3:$A$14,\"\",0,1)","v":""},null,null,null,null,null,null,null,null,"nein",{"$f":"IFERROR(IF(I731=\"t\",H731,H731*VLOOKUP(A731,Stammdaten!$A$3:$C$14,2,FALSE)),\"\")","v":""},null,null,null,""]
[{"$f":"_xlfn.XLOOKUP(B732,Stammdaten!$C$3:$C$14,Stammdaten!$A$3:$A$14,\"\",0,1)","v":""},null,null,null,null,null,null,null,null,"nein",{"$f":"IFERROR(IF(I732=\"t\",H732,H732*VLOOKUP(A732,Stammdaten!$A$3:$C$14,2,FALSE)),\"\")","v":""},null,null,null,""]
[{"$f":"_xlfn.XLOOKUP(B733,Stammdaten!$C$3:$C$14,Stammdaten!$A$3:$A$14,\"\",0,1)","v":""},null,null,null,null,null,null,null,null,"nein",{"$f":"IFERROR(IF(I733=\"t\",H733,H733*VLOOKUP(A733,Stammdaten!$A$3:$C$14,2,FALSE)),\"\")","v":""},null,null,null,""]
[{"$f":"_xlfn.XLOOKUP(B734,Stammdaten!$C$3:$C$14,Stammdaten!$A$3:$A$14,\"\",0,1)","v":""},null,null,null,null,null,null,null,null,"nein",{"$f":"IFERROR(IF(I734=\"t\",H734,H734*VLOOKUP(A734,Stammdaten!$A$3:$C$14,2,FALSE)),\"\")","v":""},null,null,null,""]
[{"$f":"_xlfn.XLOOKUP(B735,Stammdaten!$C$3:$C$14,Stammdaten!$A$3:$A$14,\"\",0,1)","v":""},null,null,null,null,null,null,null,null,"nein",{"$f":"IFERROR(IF(I735=\"t\",H735,H735*VLOOKUP(A735,Stammdaten!$A$3:$C$14,2,FALSE)),\"\")","v":""},null,null,null,""]
[{"$f":"_xlfn.XLOOKUP(B736,Stammdaten!$C$3:$C$14,Stammdaten!$A$3:$A$14,\"\",0,1)","v":""},null,null,null,null,null,null,null,null,"nein",{"$f":"IFERROR(IF(I736=\"t\",H736,H736*VLOOKUP(A736,Stammdaten!$A$3:$C$14,2,FALSE)),\"\")","v":""},null,null,null,""]
[{"$f":"_xlfn.XLOOKUP(B737,Stammdaten!$C$3:$C$14,Stammdaten!$A$3:$A$14,\"\",0,1)","v":""},null,null,null,null,null,null,null,null,"nein",{"$f":"IFERROR(IF(I737=\"t\",H737,H737*VLOOKUP(A737,Stammdaten!$A$3:$C$14,2,FALSE)),\"\")","v":""},null,null,null,""]
[{"$f":"_xlfn.XLOOKUP(B738,Stammdaten!$C$3:$C$14,Stammdaten!$A$3:$A$14,\"\",0,1)","v":""},null,null,null,null,null,null,null,null,"nein",{"$f":"IFERROR(IF(I738=\"t\",H738,H738*VLOOKUP(A738,Stammdaten!$A$3:$C$14,2,FALSE)),\"\")","v":""},null,null,null,""]
[{"$f":"_xlfn.XLOOKUP(B739,Stammdaten!$C$3:$C$14,Stammdaten!$A$3:$A$14,\"\",0,1)","v":""},null,null,null,null,null,null,null,null,"nein",{"$f":"IFERROR(IF(I739=\"t\",H739,H739*VLOOKUP(A739,Stammdaten!$A$3:$C$14,2,FALSE)),\"\")","v":""},null,null,null,""]
[{"$f":"_xlfn.XLOOKUP(B740,Stammdaten!$C$3:$C$14,Stammdaten!$A$3:$A$14,\"\",0,1)","v":""},null,null,null,null,null,null,null,null,"nein",{"$f":"IFERROR(IF(I740=\"t\",H740,H740*VLOOKUP(A740,Stammdaten!$A$3:$C$14,2,FALSE)),\"\")","v":""},null,null,null,""]
[{"$f":"_xlfn.XLOOKUP(B741,Stammdaten!$C$3:$C$14,Stammdaten!$A$3:$A$14,\"\",0,1)","v":""},null,null,null,null,null,null,null,null,"nein",{"$f":"IFERROR(IF(I741=\"t\",H741,H741*VLOOKUP(A741,Stammdaten!$A$3:$C$14,2,FALSE)),\"\")","v":""},null,null,null,""]
[{"$f":"_xlfn.XLOOKUP(B742,Stammdaten!$C$3:$C$14,Stammdaten!$A$3:$A$14,\"\",0,1)","v":""},null,null,null,null,null,null,null,null,"nein",{"$f":"IFERROR(IF(I742=\"t\",H742,H742*VLOOKUP(A742,Stammdaten!$A$3:$C$14,2,FALSE)),\"\")","v":""},null,null,null,""]
[{"$f":"_xlfn.XLOOKUP(B743,Stammdaten!$C$3:$C$14,Stammdaten!$A$3:$A$14,\"\",0,1)","v":""},null,null,null,null,null,null,null,null,"nein",{"$f":"IFERROR(IF(I743=\"t\",H743,H743*VLOOKUP(A743,Stammdaten!$A$3:$C$14,2,FALSE)),\"\")","v":""},null,null,null,""]
[{"$f":"_xlfn.XLOOKUP(B744,Stammdaten!$C$3:$C$14,Stammdaten!$A$3:$A$14,\"\",0,1)","v":""},null,null,null,null,null,null,null,null,"nein",{"$f":"IFERROR(IF(I744=\"t\",H744,H744*VLOOKUP(A744,Stammdaten!$A$3:$C$14,2,FALSE)),\"\")","v":""},null,null,null,""]
[{"$f":"_xlfn.XLOOKUP(B745,Stammdaten!$C$3:$C$14,Stammdaten!$A$3:$A$14,\"\",0,1)","v":""},null,null,null,null,null,null,null,null,"nein",{"$f":"IFERROR(IF(I745=\"t\",H745,H745*VLOOKUP(A745,Stammdaten!$A$3:$C$14,2,FALSE)),\"\")","v":""},null,null,null,{"$f":"IF(SUM(L745:N745)>K745,\"'davon' ist größer als Gesamtgewicht.\",\"\")","v":""}]
[{"$f":"_xlfn.XLOOKUP(B746,Stammdaten!$C$3:$C$14,Stammdaten!$A$3:$A$14,\"\",0,1)","v":""},null,null,null,null,null,null,null,null,"nein",{"$f":"IFERROR(IF(I746=\"t\",H746,H746*VLOOKUP(A746,Stammdaten!$A$3:$C$14,2,FALSE)),\"\")","v":""},null,null,null,""]
[{"$f":"_xlfn.XLOOKUP(B747,Stammdaten!$C$3:$C$14,Stammdaten!$A$3:$A$14,\"\",0,1)","v":""},null,null,null,null,null,null,null,null,"nein",{"$f":"IFERROR(IF(I747=\"t\",H747,H747*VLOOKUP(A747,Stammdaten!$A$3:$C$14,2,FALSE)),\"\")","v":""},null,null,null,""]
[{"$f":"_xlfn.XLOOKUP(B748,Stammdaten!$C$3:$C$14,Stammdaten!$A$3:$A$14,\"\",0,1)","v":""},null,null,null,null,null,null,null,null,"nein",{"$f":"IFERROR(IF(I748=\"t\",H748,H748*VLOOKUP(A748,Stammdaten!$A$3:$C$14,2,FALSE)),\"\")","v":""},null,null,null,""]
[{"$f":"_xlfn.XLOOKUP(B749,Stammdaten!$C$3:$C$14,Stammdaten!$A$3:$A$14,\"\",0,1)","v":""},null,null,null,null,null,null,null,null,"nein",{"$f":"IFERROR(IF(I749=\"t\",H749,H749*VLOOKUP(A749,Stammdaten!$A$3:$C$14,2,FALSE)),\"\")","v":""},null,null,null,""]
[{"$f":"_xlfn.XLOOKUP(B750,Stammdaten!$C$3:$C$14,Stammdaten!$A$3:$A$14,\"\",0,1)","v":""},null,null,null,null,null,null,null,null,"nein",{"$f":"IFERROR(IF(I750=\"t\",H750,H750*VLOOKUP(A750,Stammdaten!$A$3:$C$14,2,FALSE)),\"\")","v":""},null,null,null,""]
[{"$f":"_xlfn.XLOOKUP(B751,Stammdaten!$C$3:$C$14,Stammdaten!$A$3:$A$14,\"\",0,1)","v":""},null,null,null,null,null,null,null,null,"nein",{"$f":"IFERROR(IF(I751=\"t\",H751,H751*VLOOKUP(A751,Stammdaten!$A$3:$C$14,2,FALSE)),\"\")","v":""},null,null,null,""]
[{"$f":"_xlfn.XLOOKUP(B752,Stammdaten!$C$3:$C$14,Stammdaten!$A$3:$A$14,\"\",0,1)","v":""},null,null,null,null,null,null,null,null,"nein",{"$f":"IFERROR(IF(I752=\"t\",H752,H752*VLOOKUP(A752,Stammdaten!$A$3:$C$14,2,FALSE)),\"\")","v":""},null,null,null,""]
[{"$f":"_xlfn.XLOOKUP(B753,Stammdaten!$C$3:$C$14,Stammdaten!$A$3:$A$14,\"\",0,1)","v":""},null,null,null,null,null,null,null,null,"nein",{"$f":"IFERROR(IF(I753=\"t\",H753,H753*VLOOKUP(A753,Stammdaten!$A$3:$C$14,2,FALSE)),\"\")","v":""},null,null,null,""]
[{"$f":"_xlfn.XLOOKUP(B754,Stammdaten!$C$3:$C$14,Stammdaten!$A$3:$A$14,\"\",0,1)","v":""},null,null,null,null,null,null,null,null,"nein",{"$f":"IFERROR(IF(I754=\"t\",H754,H754*VLOOKUP(A754,Stammdaten!$A$3:$C$14,2,FALSE)),\"\")","v":""},null,null,null,""]
[{"$f":"_xlfn.XLOOKUP(B755,Stammdaten!$C$3:$C$14,Stammdaten!$A$3:$A$14,\"\",0,1)","v":""},null,null,null,null,null,null,null,null,"nein",{"$f":"IFERROR(IF(I755=\"t\",H755,H755*VLOOKUP(A755,Stammdaten!$A$3:$C$14,2,FALSE)),\"\")","v":""},null,null,null,""]
[{"$f":"_xlfn.XLOOKUP(B756,Stammdaten!$C$3:$C$14,Stammdaten!$A$3:$A$14,\"\",0,1)","v":""},null,null,null,null,null,null,null,null,"nein",{"$f":"IFERROR(IF(I756=\"t\",H756,H756*VLOOKUP(A756,Stammdaten!$A$3:$C$14,2,FALSE)),\"\")","v":""},null,null,null,""]
[{"$f":"_xlfn.XLOOKUP(B757,Stammdaten!$C$3:$C$14,Stammdaten!$A$3:$A$14,\"\",0,1)","v":""},null,null,null,null,null,null,null,null,"nein",{"$f":"IFERROR(IF(I757=\"t\",H757,H757*VLOOKUP(A757,Stammdaten!$A$3:$C$14,2,FALSE)),\"\")","v":""},null,null,null,""]
[{"$f":"_xlfn.XLOOKUP(B758,Stammdaten!$C$3:$C$14,Stammdaten!$A$3:$A$14,\"\",0,1)","v":""},null,null,null,null,null,null,null,null,"nein",{"$f":"IFERROR(IF(I758=\"t\",H758,H758*VLOOKUP(A758,Stammdaten!$A$3:$C$14,2,FALSE)),\"\")","v":""},null,null,null,""]
[{"$f":"_xlfn.XLOOKUP(B759,Stammdaten!$C$3:$C$14,Stammdaten!$A$3:$A$14,\"\",0,1)","v":""},null,null,null,null,null,null,null,null,"nein",{"$f":"IFERROR(IF(I759=\"t\",H759,H759*VLOOKUP(A759,Stammdaten!$A$3:$C$14,2,FALSE)),\"\")","v":""},null,null,null,""]
[{"$f":"_xlfn.XLOOKUP(B760,Stammdaten!$C$3:$C$14,Stammdaten!$A$3:$A$14,\"\",0,1)","v":""},null,null,null,null,null,null,null,null,"nein",{"$f":"IFERROR(IF(I760=\"t\",H760,H760*VLOOKUP(A760,Stammdaten!$A$3:$C$14,2,FALSE)),\"\")","v":""},null,null,null,""]
[{"$f":"_xlfn.XLOOKUP(B761,Stammdaten!$C$3:$C$14,Stammdaten!$A$3:$A$14,\"\",0,1)","v":""},null,null,null,null,null,null,null,null,"nein",{"$f":"IFERROR(IF(I761=\"t\",H761,H761*VLOOKUP(A761,Stammdaten!$A$3:$C$14,2,FALSE)),\"\")","v":""},null,null,null,""]
[{"$f":"_xlfn.XLOOKUP(B762,Stammdaten!$C$3:$C$14,Stammdaten!$A$3:$A$14,\"\",0,1)","v":""},null,null,null,null,null,null,null,null,"nein",{"$f":"IFERROR(IF(I762=\"t\",H762,H762*VLOOKUP(A762,Stammdaten!$A$3:$C$14,2,FALSE)),\"\")","v":""},null,null,null,""]
[{"$f":"_xlfn.XLOOKUP(B763,Stammdaten!$C$3:$C$14,Stammdaten!$A$3:$A$14,\"\",0,1)","v":""},null,null,null,null,null,null,null,null,"nein",{"$f":"IFERROR(IF(I763=\"t\",H763,H763*VLOOKUP(A763,Stammdaten!$A$3:$C$14,2,FALSE)),\"\")","v":""},null,null,null,""]
[{"$f":"_xlfn.XLOOKUP(B764,Stammdaten!$C$3:$C$14,Stammdaten!$A$3:$A$14,\"\",0,1)","v":""},null,null,null,null,null,null,null,null,"nein",{"$f":"IFERROR(IF(I764=\"t\",H764,H764*VLOOKUP(A764,Stammdaten!$A$3:$C$14,2,FALSE)),\"\")","v":""},null,null,null,""]
[{"$f":"_xlfn.XLOOKUP(B765,Stammdaten!$C$3:$C$14,Stammdaten!$A$3:$A$14,\"\",0,1)","v":""},null,null,null,null,null,null,null,null,"nein",{"$f":"IFERROR(IF(I765=\"t\",H765,H765*VLOOKUP(A765,Stammdaten!$A$3:$C$14,2,FALSE)),\"\")","v":""},null,null,null,""]
[{"$f":"_xlfn.XLOOKUP(B766,Stammdaten!$C$3:$C$14,Stammdaten!$A$3:$A$14,\"\",0,1)","v":""},null,null,null,null,null,null,null,null,"nein",{"$f":"IFERROR(IF(I766=\"t\",H766,H766*VLOOKUP(A766,Stammdaten!$A$3:$C$14,2,FALSE)),\"\")","v":""},null,null,null,""]
[{"$f":"_xlfn.XLOOKUP(B767,Stammdaten!$C$3:$C$14,Stammdaten!$A$3:$A$14,\"\",0,1)","v":""},null,null,null,null,null,null,null,null,"nein",{"$f":"IFERROR(IF(I767=\"t\",H767,H767*VLOOKUP(A767,Stammdaten!$A$3:$C$14,2,FALSE)),\"\")","v":""},null,null,null,""]
[{"$f":"_xlfn.XLOOKUP(B768,Stammdaten!$C$3:$C$14,Stammdaten!$A$3:$A$14,\"\",0,1)","v":""},null,null,null,null,null,null,null,null,"nein",{"$f":"IFERROR(IF(I768=\"t\",H768,H768*VLOOKUP(A768,Stammdaten!$A$3:$C$14,2,FALSE)),\"\")","v":""},null,null,null,""]
[{"$f":"_xlfn.XLOOKUP(B769,Stammdaten!$C$3:$C$14,Stammdaten!$A$3:$A$14,\"\",0,1)","v":""},null,null,null,null,null,null,null,null,"nein",{"$f":"IFERROR(IF(I769=\"t\",H769,H769*VLOOKUP(A769,Stammdaten!$A$3:$C$14,2,FALSE)),\"\")","v":""},null,null,null,""]
[{"$f":"_xlfn.XLOOKUP(B770,Stammdaten!$C$3:$C$14,Stammdaten!$A$3:$A$14,\"\",0,1)","v":""},null,null,null,null,null,null,null,null,"nein",{"$f":"IFERROR(IF(I770=\"t\",H770,H770*VLOOKUP(A770,Stammdaten!$A$3:$C$14,2,FALSE)),\"\")","v":""},null,null,null,""]
[{"$f":"_xlfn.XLOOKUP(B771,Stammdaten!$C$3:$C$14,Stammdaten!$A$3:$A$14,\"\",0,1)","v":""},null,null,null,null,null,null,null,null,"nein",{"$f":"IFERROR(IF(I771=\"t\",H771,H771*VLOOKUP(A771,Stammdaten!$A$3:$C$14,2,FALSE)),\"\")","v":""},null,null,null,""]
[{"$f":"_xlfn.XLOOKUP(B772,Stammdaten!$C$3:$C$14,Stammdaten!$A$3:$A$14,\"\",0,1)","v":""},null,null,null,null,null,null,null,null,"nein",{"$f":"IFERROR(IF(I772=\"t\",H772,H772*VLOOKUP(A772,Stammdaten!$A$3:$C$14,2,FALSE)),\"\")","v":""},null,null,null,""]
[{"$f":"_xlfn.XLOOKUP(B773,Stammdaten!$C$3:$C$14,Stammdaten!$A$3:$A$14,\"\",0,1)","v":""},null,null,null,null,null,null,null,null,"nein",{"$f":"IFERROR(IF(I773=\"t\",H773,H773*VLOOKUP(A773,Stammdaten!$A$3:$C$14,2,FALSE)),\"\")","v":""},null,null,null,""]
[{"$f":"_xlfn.XLOOKUP(B774,Stammdaten!$C$3:$C$14,Stammdaten!$A$3:$A$14,\"\",0,1)","v":""},null,null,null,null,null,null,null,null,"nein",{"$f":"IFERROR(IF(I774=\"t\",H774,H774*VLOOKUP(A774,Stammdaten!$A$3:$C$14,2,FALSE)),\"\")","v":""},null,null,null,""]
[{"$f":"_xlfn.XLOOKUP(B775,Stammdaten!$C$3:$C$14,Stammdaten!$A$3:$A$14,\"\",0,1)","v":""},null,null,null,null,null,null,null,null,"nein",{"$f":"IFERROR(IF(I775=\"t\",H775,H775*VLOOKUP(A775,Stammdaten!$A$3:$C$14,2,FALSE)),\"\")","v":""},null,null,null,""]
[{"$f":"_xlfn.XLOOKUP(B776,Stammdaten!$C$3:$C$14,Stammdaten!$A$3:$A$14,\"\",0,1)","v":""},null,null,null,null,null,null,null,null,"nein",{"$f":"IFERROR(IF(I776=\"t\",H776,H776*VLOOKUP(A776,Stammdaten!$A$3:$C$14,2,FALSE)),\"\")","v":""},null,null,null,""]
[{"$f":"_xlfn.XLOOKUP(B777,Stammdaten!$C$3:$C$14,Stammdaten!$A$3:$A$14,\"\",0,1)","v":""},null,null,null,null,null,null,null,null,"nein",{"$f":"IFERROR(IF(I777=\"t\",H777,H777*VLOOKUP(A777,Stammdaten!$A$3:$C$14,2,FALSE)),\"\")","v":""},null,null,null,""]
[{"$f":"_xlfn.XLOOKUP(B778,Stammdaten!$C$3:$C$14,Stammdaten!$A$3:$A$14,\"\",0,1)","v":""},null,null,null,null,null,null,null,null,"nein",{"$f":"IFERROR(IF(I778=\"t\",H778,H778*VLOOKUP(A778,Stammdaten!$A$3:$C$14,2,FALSE)),\"\")","v":""},null,null,null,""]
[{"$f":"_xlfn.XLOOKUP(B779,Stammdaten!$C$3:$C$14,Stammdaten!$A$3:$A$14,\"\",0,1)","v":""},null,null,null,null,null,null,null,null,"nein",{"$f":"IFERROR(IF(I779=\"t\",H779,H779*VLOOKUP(A779,Stammdaten!$A$3:$C$14,2,FALSE)),\"\")","v":""},null,null,null,""]
[{"$f":"_xlfn.XLOOKUP(B780,Stammdaten!$C$3:$C$14,Stammdaten!$A$3:$A$14,\"\",0,1)","v":""},null,null,null,null,null,null,null,null,"nein",{"$f":"IFERROR(IF(I780=\"t\",H780,H780*VLOOKUP(A780,Stammdaten!$A$3:$C$14,2,FALSE)),\"\")","v":""},null,null,null,""]
[{"$f":"_xlfn.XLOOKUP(B781,Stammdaten!$C$3:$C$14,Stammdaten!$A$3:$A$14,\"\",0,1)","v":""},null,null,null,null,null,null,null,null,"nein",{"$f":"IFERROR(IF(I781=\"t\",H781,H781*VLOOKUP(A781,Stammdaten!$A$3:$C$14,2,FALSE)),\"\")","v":""},null,null,null,""]
[{"$f":"_xlfn.XLOOKUP(B782,Stammdaten!$C$3:$C$14,Stammdaten!$A$3:$A$14,\"\",0,1)","v":""},null,null,null,null,null,null,null,null,"nein",{"$f":"IFERROR(IF(I782=\"t\",H782,H782*VLOOKUP(A782,Stammdaten!$A$3:$C$14,2,FALSE)),\"\")","v":""},null,null,null,""]
[{"$f":"_xlfn.XLOOKUP(B783,Stammdaten!$C$3:$C$14,Stammdaten!$A$3:$A$14,\"\",0,1)","v":""},null,null,null,null,null,null,null,null,"nein",{"$f":"IFERROR(IF(I783=\"t\",H783,H783*VLOOKUP(A783,Stammdaten!$A$3:$C$14,2,FALSE)),\"\")","v":""},null,null,null,""]
[{"$f":"_xlfn.XLOOKUP(B784,Stammdaten!$C$3:$C$14,Stammdaten!$A$3:$A$14,\"\",0,1)","v":""},null,null,null,null,null,null,null,null,"nein",{"$f":"IFERROR(IF(I784=\"t\",H784,H784*VLOOKUP(A784,Stammdaten!$A$3:$C$14,2,FALSE)),\"\")","v":""},null,null,null,""]
[{"$f":"_xlfn.XLOOKUP(B785,Stammdaten!$C$3:$C$14,Stammdaten!$A$3:$A$14,\"\",0,1)","v":""},null,null,null,null,null,null,null,null,"nein",{"$f":"IFERROR(IF(I785=\"t\",H785,H785*VLOOKUP(A785,Stammdaten!$A$3:$C$14,2,FALSE)),\"\")","v":""},null,null,null,""]
[{"$f":"_xlfn.XLOOKUP(B786,Stammdaten!$C$3:$C$14,Stammdaten!$A$3:$A$14,\"\",0,1)","v":""},null,null,null,null,null,null,null,null,"nein",{"$f":"IFERROR(IF(I786=\"t\",H786,H786*VLOOKUP(A786,Stammdaten!$A$3:$C$14,2,FALSE)),\"\")","v":""},null,null,null,""]
[{"$f":"_xlfn.XLOOKUP(B787,Stammdaten!$C$3:$C$14,Stammdaten!$A$3:$A$14,\"\",0,1)","v":""},null,null,null,null,null,null,null,null,"nein",{"$f":"IFERROR(IF(I787=\"t\",H787,H787*VLOOKUP(A787,Stammdaten!$A$3:$C$14,2,FALSE)),\"\")","v":""},null,null,null,""]
[{"$f":"_xlfn.XLOOKUP(B788,Stammdaten!$C$3:$C$14,Stammdaten!$A$3:$A$14,\"\",0,1)","v":""},null,null,null,null,null,null,null,null,"nein",{"$f":"IFERROR(IF(I788=\"t\",H788,H788*VLOOKUP(A788,Stammdaten!$A$3:$C$14,2,FALSE)),\"\")","v":""},null,null,null,""]
[{"$f":"_xlfn.XLOOKUP(B789,Stammdaten!$C$3:$C$14,Stammdaten!$A$3:$A$14,\"\",0,1)","v":""},null,null,null,null,null,null,null,null,"nein",{"$f":"IFERROR(IF(I789=\"t\",H789,H789*VLOOKUP(A789,Stammdaten!$A$3:$C$14,2,FALSE)),\"\")","v":""},null,null,null,""]
[{"$f":"_xlfn.XLOOKUP(B790,Stammdaten!$C$3:$C$14,Stammdaten!$A$3:$A$14,\"\",0,1)","v":""},null,null,null,null,null,null,null,null,"nein",{"$f":"IFERROR(IF(I790=\"t\",H790,H790*VLOOKUP(A790,Stammdaten!$A$3:$C$14,2,FALSE)),\"\")","v":""},null,null,null,""]
[{"$f":"_xlfn.XLOOKUP(B791,Stammdaten!$C$3:$C$14,Stammdaten!$A$3:$A$14,\"\",0,1)","v":""},null,null,null,null,null,null,null,null,"nein",{"$f":"IFERROR(IF(I791=\"t\",H791,H791*VLOOKUP(A791,Stammdaten!$A$3:$C$14,2,FALSE)),\"\")","v":""},null,null,null,""]
[{"$f":"_xlfn.XLOOKUP(B792,Stammdaten!$C$3:$C$14,Stammdaten!$A$3:$A$14,\"\",0,1)","v":""},null,null,null,null,null,null,null,null,"nein",{"$f":"IFERROR(IF(I792=\"t\",H792,H792*VLOOKUP(A792,Stammdaten!$A$3:$C$14,2,FALSE)),\"\")","v":""},null,null,null,""]
[{"$f":"_xlfn.XLOOKUP(B793,Stammdaten!$C$3:$C$14,Stammdaten!$A$3:$A$14,\"\",0,1)","v":""},null,null,null,null,null,null,null,null,"nein",{"$f":"IFERROR(IF(I793=\"t\",H793,H793*VLOOKUP(A793,Stammdaten!$A$3:$C$14,2,FALSE)),\"\")","v":""},null,null,null,""]
[null,null,null,null,null,null,null,null,null,"nein"]
[null,null,null,null,null,null,null,null,null,"nein"]
[null,null,null,null,null,null,null,null,null,"nein"]
[null,null,null,null,null,null,null,null,null,"nein"]
[null,null,null,null,null,null,null,null,null,"nein"]
[null,null,null,null,null,null,null,null,null,"nein"]
[{"$f":"_xlfn.XLOOKUP(B800,Stammdaten!$C$3:$C$14,Stammdaten!$A$3:$A$14,\"\",0,1)","v":""},null,null,null,null,null,null,null,null,"nein",{"$f":"IFERROR(IF(I800=\"t\",H800,H800*VLOOKUP(A800,Stammdaten!$A$3:$C$14,2,FALSE)),\"\")","v":""},null,null,null,""]

{"sheet":"Stammdaten","index":4,"n_rows":14,"n_cols":15,"rows_kept":14,"cut":false,"hidden":true,"merged":[]}
["Quelle: https://statistik.bayern.de/service/erhebungen/bauen_wohnen/abfall/abfallarten/index.php",null,null,null,null,null,null,null,null,null,null,null,"Firmenliste","Entsorgerliste","Verwerter"]
["Abfallschlüssel","m³ in t","Abfallart","Siehe ausgeblendete Table 0"]
[170101,1.3,"Beton"]
[170102,1.3,"Ziegel"]
[170103,1.3,"Fliesen, Ziegel und Keramik"]
[170201,0.5,"Holz"]
[170202,1.2,"Glas"]
[170203,0.6,"Kunststoff"]
[170302,1.8,"Bitumengemische"]
[170401,2.1,"Metalle, einschließl. Legierung"]
[170604,0.3,"Dämmmaterial"]
[170802,0.34,"Baustoffe auf Gipsbasis"]
[170107,1.3,"Gemische aus Beton, Ziegeln, Fliesen und Keramik (Gemisch nach § 9 (1) Nr. 2)"]
[170904,0.6,"gemischte Bau- und Abbruchabfälle (Gemisch nach § 9 (1) Nr. 1)"]

{"sheet":"Blatt 1 Maßnahme und Erfassung","index":5,"n_rows":33,"n_cols":12,"rows_kept":33,"cut":false,"hidden":false,"merged":[[29,0,29,1],[29,2,29,3],[29,4,29,5],[32,0,32,8],[27,0,27,1],[27,2,27,3],[27,4,27,5],[28,0,28,1],[28,2,28,3],[28,4,28,5],[25,0,25,1],[25,2,25,3],[25,4,25,5],[26,0,26,1],[26,2,26,3],[26,4,26,5],[23,0,23,1],[23,2,23,3],[23,4,23,5],[24,0,24,1],[24,2,24,3],[24,4,24,5],[21,0,21,1],[21,2,21,3],[21,4,21,5],[22,0,22,1],[22,2,22,3],[22,4,22,5],[19,0,19,1],[19,2,19,3],[19,4,19,5],[20,0,20,1],[20,2,20,3],[20,4,20,5],[1,0,1,8],[3,0,4,0],[3,1,4,8],[5,0,6,0],[7,0,8,0],[7,1,7,5],[7,6,7,8],[8,1,8,8],[5,4,5,8],[6,1,6,8],[18,0,18,1],[18,2,18,3],[18,4,18,5],[12,0,12,3],[13,0,13,3],[15,2,15,9],[17,0,17,1],[17,2,17,9]]}
[]
["1. Angaben zur Baumaßnahme ___________________________________________________ vom ________________ bis ________________"]
[]
["Grundstück/Adresse:",null,null,null,null,null,null,null,null,null,null,"Auswahl zur automatischen Übernahme aus der Liste \"Scheine\"."]
[null,null,null,null,null,null,null,null,null,null,null,"Wählen Sie eine \"Firma\" aus."]
["Bauherr \n(und verantwortlicher Ansprechpartner)","GESOBAU AG, Stiftsweg 1, 13187 Berlin",null,null,null,null,null,null,null,null,null,"Falls Mischabfälle vorhanden sind, wählen Sie auch einen \"Entsorger\" aus."]
[null,null,null,null,null,null,null,null,null,null,null,"Drucken Sie die Liste."]
["Bauausführendes Unternehmen \n(und verantwortlicher Ansprechpartner)",{"$f":"IF(M11=\"\",\"\",M11)","v":""},null,null,null,null,null,null,null,null,null,"Stellen Sie im Register \"Scheine\" die eben in dieses Formular übernommenen Scheine bei \"gestempelt\" von \"nein\" auf \"ja\"."]
[null,null,null,null,null,null,null,null,null,null,null,"Beim nächsten Drucken werden die auf \"ja\" eingestellten Scheine nicht mehr summiert."]
[null,null,null,null,null,null,null,null,null,null,null,"Auswahl:"]
["2. Feststellung der Dokumentationspflicht durch den AN* ",null,null,null,null,null,null,null,null,null,null,"Firma"]
[null,null,null,null,"zutreffendes bitte ankreuzen",null,null,null,null,null,null,"Entsorger"]
["(1.) Bei der Baumaßnahme fallen 10m³ Bauabfall gemäß GewAbfV oder mehr an "]
["(2.)  Bei der Baumaßnahme fallen weniger als 10m³ Bauabfall gemäß GewAbfV an\n        (Falls 2. (+), sind keine weiteren Angaben zu machen)"]
[]
["2.1 Getrennte Erfassung - Anfall und Entsorgung"]
[]
["Getrennt zu sammelnde Fraktionen nach § 8 GewAbfV\nListe ist abschließend! \nNachweise, gefährliche Abfälle sind hier nicht zu dokumentieren",null,"Entsorgung der getrennt erfassten Fraktionen mit dem Vorrang der Wiederverwednung oder dem Recycling \nNachweis des Verbleibs erforderlich!"]
[null,null,"Vorbereitung \nzur Wiederverwendung",null,"Recycling",null,"sonstige Verwertung\n(energetisch/Verfüllung","Beseitigung","Name und Anschrift \nEntsorgungsanlage","Annahmeerklärung/Wiegeschein etc. liegen vor"]
["Abfallschlüsselnummer nach AVV",null,"(t)",null,"(t)",null,"(t)","(t)"]
["170101 Beton ",null,{"$f":"IF(SUMIFS(Scheine!$L$3:$L$800,Scheine!$A$3:$A$800,LEFT($A21,6)*1,Scheine!$C$3:$C$800,$M$11,Scheine!$J$3:$J$800,\"<>ja\",Scheine!$G$3:$G$800,$M$12)<>0,SUMIFS(Scheine!$L$3:$L$800,Scheine!$A$3:$A$800,LEFT($A21,6)*1,Scheine!$C$3:$C$800,$M$11,Scheine!$J$3:$J$800,\"<>ja\",Scheine!$G$3:$G$800,$M$12),\"\")","v":""},null,{"$f":"IF(SUMIFS(Scheine!$M$3:$M$800,Scheine!$A$3:$A$800,LEFT($A21,6)*1,Scheine!$C$3:$C$800,$M$11,Scheine!$J$3:$J$800,\"<>ja\",Scheine!$G$3:$G$800,$M$12)<>0,SUMIFS(Scheine!$M$3:$M$800,Scheine!$A$3:$A$800,LEFT($A21,6)*1,Scheine!$C$3:$C$800,$M$11,Scheine!$J$3:$J$800,\"<>ja\",Scheine!$G$3:$G$800,$M$12),\"\")","v":""},null,{"$f":"IF(SUMIFS(Scheine!$N$3:$N$800,Scheine!$A$3:$A$800,LEFT($A21,6)*1,Scheine!$C$3:$C$800,$M$11,Scheine!$J$3:$J$800,\"<>ja\",Scheine!$G$3:$G$800,$M$12)<>0,SUMIFS(Scheine!$N$3:$N$800,Scheine!$A$3:$A$800,LEFT($A21,6)*1,Scheine!$C$3:$C$800,$M$11,Scheine!$J$3:$J$800,\"<>ja\",Scheine!$G$3:$G$800,$M$12),\"\")","v":""},{"$f":"IF(SUMIFS(Scheine!$K$3:$K$800,Scheine!$A$3:$A$800,LEFT($A21,6)*1,Scheine!$C$3:$C$800,$M$11,Scheine!$J$3:$J$800,\"<>ja\",Scheine!$G$3:$G$800,$M$12)<>0,SUMIFS(Scheine!$K$3:$K$800,Scheine!$A$3:$A$800,LEFT($A21,6)*1,Scheine!$C$3:$C$800,$M$11,Scheine!$J$3:$J$800,\"<>ja\",Scheine!$G$3:$G$800,$M$12)-SUM(C21:G21),\"\")","v":""},{"$f":"IF(SUM(C21:H21)<>0,$M$12,\"\")","v":""}]
["170102 Ziegel",null,{"$f":"IF(SUMIFS(Scheine!$L$3:$L$800,Scheine!$A$3:$A$800,LEFT($A22,6)*1,Scheine!$C$3:$C$800,$M$11,Scheine!$J$3:$J$800,\"<>ja\",Scheine!$G$3:$G$800,$M$12)<>0,SUMIFS(Scheine!$L$3:$L$800,Scheine!$A$3:$A$800,LEFT($A22,6)*1,Scheine!$C$3:$C$800,$M$11,Scheine!$J$3:$J$800,\"<>ja\",Scheine!$G$3:$G$800,$M$12),\"\")","v":""},null,{"$f":"IF(SUMIFS(Scheine!$M$3:$M$800,Scheine!$A$3:$A$800,LEFT($A22,6)*1,Scheine!$C$3:$C$800,$M$11,Scheine!$J$3:$J$800,\"<>ja\",Scheine!$G$3:$G$800,$M$12)<>0,SUMIFS(Scheine!$M$3:$M$800,Scheine!$A$3:$A$800,LEFT($A22,6)*1,Scheine!$C$3:$C$800,$M$11,Scheine!$J$3:$J$800,\"<>ja\",Scheine!$G$3:$G$800,$M$12),\"\")","v":""},null,{"$f":"IF(SUMIFS(Scheine!$N$3:$N$800,Scheine!$A$3:$A$800,LEFT($A22,6)*1,Scheine!$C$3:$C$800,$M$11,Scheine!$J$3:$J$800,\"<>ja\",Scheine!$G$3:$G$800,$M$12)<>0,SUMIFS(Scheine!$N$3:$N$800,Scheine!$A$3:$A$800,LEFT($A22,6)*1,Scheine!$C$3:$C$800,$M$11,Scheine!$J$3:$J$800,\"<>ja\",Scheine!$G$3:$G$800,$M$12),\"\")","v":""},{"$f":"IF(SUMIFS(Scheine!$K$3:$K$800,Scheine!$A$3:$A$800,LEFT($A22,6)*1,Scheine!$C$3:$C$800,$M$11,Scheine!$J$3:$J$800,\"<>ja\",Scheine!$G$3:$G$800,$M$12)<>0,SUMIFS(Scheine!$K$3:$K$800,Scheine!$A$3:$A$800,LEFT($A22,6)*1,Scheine!$C$3:$C$800,$M$11,Scheine!$J$3:$J$800,\"<>ja\",Scheine!$G$3:$G$800,$M$12)-SUM(C22:G22),\"\")","v":""},{"$f":"IF(SUM(C22:H22)<>0,$M$12,\"\")","v":""}]
["170103 Fliesen und Kreamik",null,{"$f":"IF(SUMIFS(Scheine!$L$3:$L$800,Scheine!$A$3:$A$800,LEFT($A23,6)*1,Scheine!$C$3:$C$800,$M$11,Scheine!$J$3:$J$800,\"<>ja\",Scheine!$G$3:$G$800,$M$12)<>0,SUMIFS(Scheine!$L$3:$L$800,Scheine!$A$3:$A$800,LEFT($A23,6)*1,Scheine!$C$3:$C$800,$M$11,Scheine!$J$3:$J$800,\"<>ja\",Scheine!$G$3:$G$800,$M$12),\"\")","v":""},null,{"$f":"IF(SUMIFS(Scheine!$M$3:$M$800,Scheine!$A$3:$A$800,LEFT($A23,6)*1,Scheine!$C$3:$C$800,$M$11,Scheine!$J$3:$J$800,\"<>ja\",Scheine!$G$3:$G$800,$M$12)<>0,SUMIFS(Scheine!$M$3:$M$800,Scheine!$A$3:$A$800,LEFT($A23,6)*1,Scheine!$C$3:$C$800,$M$11,Scheine!$J$3:$J$800,\"<>ja\",Scheine!$G$3:$G$800,$M$12),\"\")","v":""},null,{"$f":"IF(SUMIFS(Scheine!$N$3:$N$800,Scheine!$A$3:$A$800,LEFT($A23,6)*1,Scheine!$C$3:$C$800,$M$11,Scheine!$J$3:$J$800,\"<>ja\",Scheine!$G$3:$G$800,$M$12)<>0,SUMIFS(Scheine!$N$3:$N$800,Scheine!$A$3:$A$800,LEFT($A23,6)*1,Scheine!$C$3:$C$800,$M$11,Scheine!$J$3:$J$800,\"<>ja\",Scheine!$G$3:$G$800,$M$12),\"\")","v":""},{"$f":"IF(SUMIFS(Scheine!$K$3:$K$800,Scheine!$A$3:$A$800,LEFT($A23,6)*1,Scheine!$C$3:$C$800,$M$11,Scheine!$J$3:$J$800,\"<>ja\",Scheine!$G$3:$G$800,$M$12)<>0,SUMIFS(Scheine!$K$3:$K$800,Scheine!$A$3:$A$800,LEFT($A23,6)*1,Scheine!$C$3:$C$800,$M$11,Scheine!$J$3:$J$800,\"<>ja\",Scheine!$G$3:$G$800,$M$12)-SUM(C23:G23),\"\")","v":""},""]
["170201 Holz",null,{"$f":"IF(SUMIFS(Scheine!$L$3:$L$800,Scheine!$A$3:$A$800,LEFT($A24,6)*1,Scheine!$C$3:$C$800,$M$11,Scheine!$J$3:$J$800,\"<>ja\",Scheine!$G$3:$G$800,$M$12)<>0,SUMIFS(Scheine!$L$3:$L$800,Scheine!$A$3:$A$800,LEFT($A24,6)*1,Scheine!$C$3:$C$800,$M$11,Scheine!$J$3:$J$800,\"<>ja\",Scheine!$G$3:$G$800,$M$12),\"\")","v":""},null,{"$f":"IF(SUMIFS(Scheine!$M$3:$M$800,Scheine!$A$3:$A$800,LEFT($A24,6)*1,Scheine!$C$3:$C$800,$M$11,Scheine!$J$3:$J$800,\"<>ja\",Scheine!$G$3:$G$800,$M$12)<>0,SUMIFS(Scheine!$M$3:$M$800,Scheine!$A$3:$A$800,LEFT($A24,6)*1,Scheine!$C$3:$C$800,$M$11,Scheine!$J$3:$J$800,\"<>ja\",Scheine!$G$3:$G$800,$M$12),\"\")","v":""},null,{"$f":"IF(SUMIFS(Scheine!$N$3:$N$800,Scheine!$A$3:$A$800,LEFT($A24,6)*1,Scheine!$C$3:$C$800,$M$11,Scheine!$J$3:$J$800,\"<>ja\",Scheine!$G$3:$G$800,$M$12)<>0,SUMIFS(Scheine!$N$3:$N$800,Scheine!$A$3:$A$800,LEFT($A24,6)*1,Scheine!$C$3:$C$800,$M$11,Scheine!$J$3:$J$800,\"<>ja\",Scheine!$G$3:$G$800,$M$12),\"\")","v":""},{"$f":"IF(SUMIFS(Scheine!$K$3:$K$800,Scheine!$A$3:$A$800,LEFT($A24,6)*1,Scheine!$C$3:$C$800,$M$11,Scheine!$J$3:$J$800,\"<>ja\",Scheine!$G$3:$G$800,$M$12)<>0,SUMIFS(Scheine!$K$3:$K$800,Scheine!$A$3:$A$800,LEFT($A24,6)*1,Scheine!$C$3:$C$800,$M$11,Scheine!$J$3:$J$800,\"<>ja\",Scheine!$G$3:$G$800,$M$12)-SUM(C24:G24),\"\")","v":""},""]
["170202 Glas",null,{"$f":"IF(SUMIFS(Scheine!$L$3:$L$800,Scheine!$A$3:$A$800,LEFT($A25,6)*1,Scheine!$C$3:$C$800,$M$11,Scheine!$J$3:$J$800,\"<>ja\",Scheine!$G$3:$G$800,$M$12)<>0,SUMIFS(Scheine!$L$3:$L$800,Scheine!$A$3:$A$800,LEFT($A25,6)*1,Scheine!$C$3:$C$800,$M$11,Scheine!$J$3:$J$800,\"<>ja\",Scheine!$G$3:$G$800,$M$12),\"\")","v":""},null,{"$f":"IF(SUMIFS(Scheine!$M$3:$M$800,Scheine!$A$3:$A$800,LEFT($A25,6)*1,Scheine!$C$3:$C$800,$M$11,Scheine!$J$3:$J$800,\"<>ja\",Scheine!$G$3:$G$800,$M$12)<>0,SUMIFS(Scheine!$M$3:$M$800,Scheine!$A$3:$A$800,LEFT($A25,6)*1,Scheine!$C$3:$C$800,$M$11,Scheine!$J$3:$J$800,\"<>ja\",Scheine!$G$3:$G$800,$M$12),\"\")","v":""},null,{"$f":"IF(SUMIFS(Scheine!$N$3:$N$800,Scheine!$A$3:$A$800,LEFT($A25,6)*1,Scheine!$C$3:$C$800,$M$11,Scheine!$J$3:$J$800,\"<>ja\",Scheine!$G$3:$G$800,$M$12)<>0,SUMIFS(Scheine!$N$3:$N$800,Scheine!$A$3:$A$800,LEFT($A25,6)*1,Scheine!$C$3:$C$800,$M$11,Scheine!$J$3:$J$800,\"<>ja\",Scheine!$G$3:$G$800,$M$12),\"\")","v":""},{"$f":"IF(SUMIFS(Scheine!$K$3:$K$800,Scheine!$A$3:$A$800,LEFT($A25,6)*1,Scheine!$C$3:$C$800,$M$11,Scheine!$J$3:$J$800,\"<>ja\",Scheine!$G$3:$G$800,$M$12)<>0,SUMIFS(Scheine!$K$3:$K$800,Scheine!$A$3:$A$800,LEFT($A25,6)*1,Scheine!$C$3:$C$800,$M$11,Scheine!$J$3:$J$800,\"<>ja\",Scheine!$G$3:$G$800,$M$12)-SUM(C25:G25),\"\")","v":""},""]
["170203 Kunststoff",null,{"$f":"IF(SUMIFS(Scheine!$L$3:$L$800,Scheine!$A$3:$A$800,LEFT($A26,6)*1,Scheine!$C$3:$C$800,$M$11,Scheine!$J$3:$J$800,\"<>ja\",Scheine!$G$3:$G$800,$M$12)<>0,SUMIFS(Scheine!$L$3:$L$800,Scheine!$A$3:$A$800,LEFT($A26,6)*1,Scheine!$C$3:$C$800,$M$11,Scheine!$J$3:$J$800,\"<>ja\",Scheine!$G$3:$G$800,$M$12),\"\")","v":""},null,{"$f":"IF(SUMIFS(Scheine!$M$3:$M$800,Scheine!$A$3:$A$800,LEFT($A26,6)*1,Scheine!$C$3:$C$800,$M$11,Scheine!$J$3:$J$800,\"<>ja\",Scheine!$G$3:$G$800,$M$12)<>0,SUMIFS(Scheine!$M$3:$M$800,Scheine!$A$3:$A$800,LEFT($A26,6)*1,Scheine!$C$3:$C$800,$M$11,Scheine!$J$3:$J$800,\"<>ja\",Scheine!$G$3:$G$800,$M$12),\"\")","v":""},null,{"$f":"IF(SUMIFS(Scheine!$N$3:$N$800,Scheine!$A$3:$A$800,LEFT($A26,6)*1,Scheine!$C$3:$C$800,$M$11,Scheine!$J$3:$J$800,\"<>ja\",Scheine!$G$3:$G$800,$M$12)<>0,SUMIFS(Scheine!$N$3:$N$800,Scheine!$A$3:$A$800,LEFT($A26,6)*1,Scheine!$C$3:$C$800,$M$11,Scheine!$J$3:$J$800,\"<>ja\",Scheine!$G$3:$G$800,$M$12),\"\")","v":""},{"$f":"IF(SUMIFS(Scheine!$K$3:$K$800,Scheine!$A$3:$A$800,LEFT($A26,6)*1,Scheine!$C$3:$C$800,$M$11,Scheine!$J$3:$J$800,\"<>ja\",Scheine!$G$3:$G$800,$M$12)<>0,SUMIFS(Scheine!$K$3:$K$800,Scheine!$A$3:$A$800,LEFT($A26,6)*1,Scheine!$C$3:$C$800,$M$11,Scheine!$J$3:$J$800,\"<>ja\",Scheine!$G$3:$G$800,$M$12)-SUM(C26:G26),\"\")","v":""},""]
["170302 Bitumengemische",null,{"$f":"IF(SUMIFS(Scheine!$L$3:$L$800,Scheine!$A$3:$A$800,LEFT($A27,6)*1,Scheine!$C$3:$C$800,$M$11,Scheine!$J$3:$J$800,\"<>ja\",Scheine!$G$3:$G$800,$M$12)<>0,SUMIFS(Scheine!$L$3:$L$800,Scheine!$A$3:$A$800,LEFT($A27,6)*1,Scheine!$C$3:$C$800,$M$11,Scheine!$J$3:$J$800,\"<>ja\",Scheine!$G$3:$G$800,$M$12),\"\")","v":""},null,{"$f":"IF(SUMIFS(Scheine!$M$3:$M$800,Scheine!$A$3:$A$800,LEFT($A27,6)*1,Scheine!$C$3:$C$800,$M$11,Scheine!$J$3:$J$800,\"<>ja\",Scheine!$G$3:$G$800,$M$12)<>0,SUMIFS(Scheine!$M$3:$M$800,Scheine!$A$3:$A$800,LEFT($A27,6)*1,Scheine!$C$3:$C$800,$M$11,Scheine!$J$3:$J$800,\"<>ja\",Scheine!$G$3:$G$800,$M$12),\"\")","v":""},null,{"$f":"IF(SUMIFS(Scheine!$N$3:$N$800,Scheine!$A$3:$A$800,LEFT($A27,6)*1,Scheine!$C$3:$C$800,$M$11,Scheine!$J$3:$J$800,\"<>ja\",Scheine!$G$3:$G$800,$M$12)<>0,SUMIFS(Scheine!$N$3:$N$800,Scheine!$A$3:$A$800,LEFT($A27,6)*1,Scheine!$C$3:$C$800,$M$11,Scheine!$J$3:$J$800,\"<>ja\",Scheine!$G$3:$G$800,$M$12),\"\")","v":""},{"$f":"IF(SUMIFS(Scheine!$K$3:$K$800,Scheine!$A$3:$A$800,LEFT($A27,6)*1,Scheine!$C$3:$C$800,$M$11,Scheine!$J$3:$J$800,\"<>ja\",Scheine!$G$3:$G$800,$M$12)<>0,SUMIFS(Scheine!$K$3:$K$800,Scheine!$A$3:$A$800,LEFT($A27,6)*1,Scheine!$C$3:$C$800,$M$11,Scheine!$J$3:$J$800,\"<>ja\",Scheine!$G$3:$G$800,$M$12)-SUM(C27:G27),\"\")","v":""},""]
["170401 Metalle, einschließl. Legierung",null,{"$f":"IF(SUMIFS(Scheine!$L$3:$L$800,Scheine!$A$3:$A$800,LEFT($A28,6)*1,Scheine!$C$3:$C$800,$M$11,Scheine!$J$3:$J$800,\"<>ja\",Scheine!$G$3:$G$800,$M$12)<>0,SUMIFS(Scheine!$L$3:$L$800,Scheine!$A$3:$A$800,LEFT($A28,6)*1,Scheine!$C$3:$C$800,$M$11,Scheine!$J$3:$J$800,\"<>ja\",Scheine!$G$3:$G$800,$M$12),\"\")","v":""},null,{"$f":"IF(SUMIFS(Scheine!$M$3:$M$800,Scheine!$A$3:$A$800,LEFT($A28,6)*1,Scheine!$C$3:$C$800,$M$11,Scheine!$J$3:$J$800,\"<>ja\",Scheine!$G$3:$G$800,$M$12)<>0,SUMIFS(Scheine!$M$3:$M$800,Scheine!$A$3:$A$800,LEFT($A28,6)*1,Scheine!$C$3:$C$800,$M$11,Scheine!$J$3:$J$800,\"<>ja\",Scheine!$G$3:$G$800,$M$12),\"\")","v":""},null,{"$f":"IF(SUMIFS(Scheine!$N$3:$N$800,Scheine!$A$3:$A$800,LEFT($A28,6)*1,Scheine!$C$3:$C$800,$M$11,Scheine!$J$3:$J$800,\"<>ja\",Scheine!$G$3:$G$800,$M$12)<>0,SUMIFS(Scheine!$N$3:$N$800,Scheine!$A$3:$A$800,LEFT($A28,6)*1,Scheine!$C$3:$C$800,$M$11,Scheine!$J$3:$J$800,\"<>ja\",Scheine!$G$3:$G$800,$M$12),\"\")","v":""},{"$f":"IF(SUMIFS(Scheine!$K$3:$K$800,Scheine!$A$3:$A$800,LEFT($A28,6)*1,Scheine!$C$3:$C$800,$M$11,Scheine!$J$3:$J$800,\"<>ja\",Scheine!$G$3:$G$800,$M$12)<>0,SUMIFS(Scheine!$K$3:$K$800,Scheine!$A$3:$A$800,LEFT($A28,6)*1,Scheine!$C$3:$C$800,$M$11,Scheine!$J$3:$J$800,\"<>ja\",Scheine!$G$3:$G$800,$M$12)-SUM(C28:G28),\"\")","v":""},""]
["170604 Dämmmaterial",null,{"$f":"IF(SUMIFS(Scheine!$L$3:$L$800,Scheine!$A$3:$A$800,LEFT($A29,6)*1,Scheine!$C$3:$C$800,$M$11,Scheine!$J$3:$J$800,\"<>ja\",Scheine!$G$3:$G$800,$M$12)<>0,SUMIFS(Scheine!$L$3:$L$800,Scheine!$A$3:$A$800,LEFT($A29,6)*1,Scheine!$C$3:$C$800,$M$11,Scheine!$J$3:$J$800,\"<>ja\",Scheine!$G$3:$G$800,$M$12),\"\")","v":""},null,{"$f":"IF(SUMIFS(Scheine!$M$3:$M$800,Scheine!$A$3:$A$800,LEFT($A29,6)*1,Scheine!$C$3:$C$800,$M$11,Scheine!$J$3:$J$800,\"<>ja\",Scheine!$G$3:$G$800,$M$12)<>0,SUMIFS(Scheine!$M$3:$M$800,Scheine!$A$3:$A$800,LEFT($A29,6)*1,Scheine!$C$3:$C$800,$M$11,Scheine!$J$3:$J$800,\"<>ja\",Scheine!$G$3:$G$800,$M$12),\"\")","v":""},null,{"$f":"IF(SUMIFS(Scheine!$N$3:$N$800,Scheine!$A$3:$A$800,LEFT($A29,6)*1,Scheine!$C$3:$C$800,$M$11,Scheine!$J$3:$J$800,\"<>ja\",Scheine!$G$3:$G$800,$M$12)<>0,SUMIFS(Scheine!$N$3:$N$800,Scheine!$A$3:$A$800,LEFT($A29,6)*1,Scheine!$C$3:$C$800,$M$11,Scheine!$J$3:$J$800,\"<>ja\",Scheine!$G$3:$G$800,$M$12),\"\")","v":""},{"$f":"IF(SUMIFS(Scheine!$K$3:$K$800,Scheine!$A$3:$A$800,LEFT($A29,6)*1,Scheine!$C$3:$C$800,$M$11,Scheine!$J$3:$J$800,\"<>ja\",Scheine!$G$3:$G$800,$M$12)<>0,SUMIFS(Scheine!$K$3:$K$800,Scheine!$A$3:$A$800,LEFT($A29,6)*1,Scheine!$C$3:$C$800,$M$11,Scheine!$J$3:$J$800,\"<>ja\",Scheine!$G$3:$G$800,$M$12)-SUM(C29:G29),\"\")","v":""},""]
["170802 Baustoffe auf Gipsbasis",null,{"$f":"IF(SUMIFS(Scheine!$L$3:$L$800,Scheine!$A$3:$A$800,LEFT($A30,6)*1,Scheine!$C$3:$C$800,$M$11,Scheine!$J$3:$J$800,\"<>ja\",Scheine!$G$3:$G$800,$M$12)<>0,SUMIFS(Scheine!$L$3:$L$800,Scheine!$A$3:$A$800,LEFT($A30,6)*1,Scheine!$C$3:$C$800,$M$11,Scheine!$J$3:$J$800,\"<>ja\",Scheine!$G$3:$G$800,$M$12),\"\")","v":""},null,{"$f":"IF(SUMIFS(Scheine!$M$3:$M$800,Scheine!$A$3:$A$800,LEFT($A30,6)*1,Scheine!$C$3:$C$800,$M$11,Scheine!$J$3:$J$800,\"<>ja\",Scheine!$G$3:$G$800,$M$12)<>0,SUMIFS(Scheine!$M$3:$M$800,Scheine!$A$3:$A$800,LEFT($A30,6)*1,Scheine!$C$3:$C$800,$M$11,Scheine!$J$3:$J$800,\"<>ja\",Scheine!$G$3:$G$800,$M$12),\"\")","v":""},null,{"$f":"IF(SUMIFS(Scheine!$N$3:$N$800,Scheine!$A$3:$A$800,LEFT($A30,6)*1,Scheine!$C$3:$C$800,$M$11,Scheine!$J$3:$J$800,\"<>ja\",Scheine!$G$3:$G$800,$M$12)<>0,SUMIFS(Scheine!$N$3:$N$800,Scheine!$A$3:$A$800,LEFT($A30,6)*1,Scheine!$C$3:$C$800,$M$11,Scheine!$J$3:$J$800,\"<>ja\",Scheine!$G$3:$G$800,$M$12),\"\")","v":""},{"$f":"IF(SUMIFS(Scheine!$K$3:$K$800,Scheine!$A$3:$A$800,LEFT($A30,6)*1,Scheine!$C$3:$C$800,$M$11,Scheine!$J$3:$J$800,\"<>ja\",Scheine!$G$3:$G$800,$M$12)<>0,SUMIFS(Scheine!$K$3:$K$800,Scheine!$A$3:$A$800,LEFT($A30,6)*1,Scheine!$C$3:$C$800,$M$11,Scheine!$J$3:$J$800,\"<>ja\",Scheine!$G$3:$G$800,$M$12)-SUM(C30:G30),\"\")","v":""},""]
[]
[]
["*Die Fraktionen AVV 1705 (Bodenaushub, Sand und Steine) und gefährliche Abfälle sind nicht zu berücksichtigen, da diese Abfälle nicht über die GewAbfV erfasst werden."]

{"sheet":"Blatt 2 Gemische und Erfassung","index":6,"n_rows":27,"n_cols":13,"rows_kept":27,"cut":false,"hidden":false,"merged":[[7,3,7,4],[8,3,8,4],[11,0,11,9],[13,0,13,2],[3,0,3,9],[4,7,4,9],[5,0,6,0],[5,1,6,1],[5,2,6,2],[5,3,6,4],[5,6,6,6]]}
[]
[null,null,null,null,null,null,null,null,null,null,null,null,{"$f":"\"Firma: \"&'Blatt 1 Maßnahme und Erfassung'!M11","v":"Firma: "}]
[null,null,null,null,null,null,null,null,null,null,null,null,{"$f":"\"Entsorger: \"&'Blatt 1 Maßnahme und Erfassung'!M12","v":"Entsorger: "}]
["2.2. Gemische Fraktionen, Anfall und Entsorgung nach § 9 GewAbfV"]
[null,null,null,null,null,null,null,"Wie wurde das Gemisch entsorgt\nNachweis des Verbleibs erforderlich!"]
["AVV-Nr.","Nachweis der\n Zusammensetzung","Begründung für Ausnahme\nnach § 8 Abs. 2 GewAbfV","Name und Adresse\nder Aufbereitungs- oder Vorbehandlungsanlage\n (inkl. Bestätigung\nnach § 9 Abs. 2 GewAbfV)",null,"Masse","Falls Ausnahmetatbestand nach § 9 Abs. 4 GewAbfV einschlägig ist \n","sonstige Verwertung\n(energ. oder Verfüllung) ","Beseitigung","Name und\n Adresse der Entsorgungsanlage"]
[null,null,null,null,null,"(t)",null,"(t)","(t)","Bitte angeben"]
["170107\nGemisch nach \n§ 9 (1) Nr. 2"," - Lichtbild -  oder Verweis auf Anlage","Begründung einfügen",{"$f":"IF(F8<>0,'Blatt 1 Maßnahme und Erfassung'!$M$12,\"\")","v":""},null,{"$f":"SUMIFS(Scheine!$K$3:$K$800,Scheine!$A$3:$A$800,LEFT($A8,6)*1,Scheine!$C$3:$C$800,'Blatt 1 Maßnahme und Erfassung'!$M$11,Scheine!$G$3:$G$800,'Blatt 1 Maßnahme und Erfassung'!$M$12,Scheine!$J$3:$J$800,\"<>ja\")","v":0},"Begründung einfügen",{"$f":"IF(F8<>0,SUMIFS(Scheine!$N$3:$N$800,Scheine!$A$3:$A$800,LEFT($A8,6)*1,Scheine!$C$3:$C$800,'Blatt 1 Maßnahme und Erfassung'!$M$11,Scheine!$G$3:$G$800,'Blatt 1 Maßnahme und Erfassung'!$M$12,Scheine!$J$3:$J$800,\"<>ja\"),\"\")","v":""},{"$f":"IF(F8<>0,F8-H8,\"\")","v":""},{"$f":"IF(F8<>0,'Blatt 1 Maßnahme und Erfassung'!$M$12,\"\")","v":""}]
["170904\nGemisch nach \n§ 9 (1) Nr. 1"," - Lichtbild -  oder Verweis auf Anlage","Begründung einfügen",{"$f":"IF(F9<>0,'Blatt 1 Maßnahme und Erfassung'!$M$12,\"\")","v":""},null,{"$f":"SUMIFS(Scheine!$K$3:$K$800,Scheine!$A$3:$A$800,LEFT($A9,6)*1,Scheine!$C$3:$C$800,'Blatt 1 Maßnahme und Erfassung'!$M$11,Scheine!$G$3:$G$800,'Blatt 1 Maßnahme und Erfassung'!$M$12,Scheine!$J$3:$J$800,\"<>ja\")","v":0},"Begründung einfügen",{"$f":"IF(F9<>0,SUMIFS(Scheine!$N$3:$N$800,Scheine!$A$3:$A$800,LEFT($A9,6)*1,Scheine!$C$3:$C$800,'Blatt 1 Maßnahme und Erfassung'!$M$11,Scheine!$G$3:$G$800,'Blatt 1 Maßnahme und Erfassung'!$M$12,Scheine!$J$3:$J$800,\"<>ja\"),\"\")","v":""},{"$f":"IF(F9<>0,F9-H9,\"\")","v":""},{"$f":"IF(F9<>0,'Blatt 1 Maßnahme und Erfassung'!$M$12,\"\")","v":""}]
[]
[]
[{"$f":"\"Hiermit bestätigt der AN \" &'Blatt 1 Maßnahme und Erfassung'!M11&\" dass die vorstehenden Angaben vollständig und korrekt sind sowie, dass alle unter die GewAbfV fallenden Abfallfraktionen und Abfälle ordnungsgemäß entsorgt worden sind.\"","v":"Hiermit bestätigt der AN  dass die vorstehenden Angaben vollständig und korrekt sind sowie, dass alle unter die GewAbfV fallenden Abfallfraktionen und Abfälle ordnungsgemäß entsorgt worden sind."}]
[]
["_________________________________________"]
[]
["Ort, Datum, AN-Unterschrift (Stempel)"]
[]
[]
[]
[]
[]
[]
["Der Auftraggeber hat die vorstehende Dokumention durch _______________________ auf Plausibilität prüfen lassen. "]
[]
["_________________________________________"]
[]
["Ort, Datum, AG-Unterschrift (Stempel)"]

{"sheet":"Abfall","index":7,"n_rows":31,"n_cols":8,"rows_kept":31,"cut":false,"hidden":false,"merged":[[14,1,14,2],[16,0,25,0],[26,0,27,0]]}
[]
[]
[]
[]
[]
[]
[]
[]
[null,"Kumulative Erfassung des nicht gefährlichen Abfalls"]
[]
[null,"1. Angaben zur Baumaßnahme"]
[]
[null,{"$f":"\"Grundstück/Adresse: \"&'Blatt 1 Maßnahme und Erfassung'!B4","v":"Grundstück/Adresse: "}]
[]
[null,"Abfallschlüsselnummer nach AVV",null,"Vorbereitung \nzur Wiederverwendung","Recycling","sonstige Verwertung\n(energetisch/Verfüllung)","Beseitigung","Gesamt:"]
[null,null,null,"[t]","[t]","[t]","[t]","[t]"]
["Getrennt",170101,"Beton",{"$f":"IF(SUMIF(Scheine!$A$3:$A$800,Abfall!$B17,Scheine!L$3:L$800)>0,SUMIF(Scheine!$A$3:$A$800,Abfall!$B17,Scheine!L$3:L$800),\"\")","v":""},{"$f":"IF(SUMIF(Scheine!$A$3:$A$800,Abfall!$B17,Scheine!M$3:M$800)>0,SUMIF(Scheine!$A$3:$A$800,Abfall!$B17,Scheine!M$3:M$800),\"\")","v":""},{"$f":"IF(SUMIF(Scheine!$A$3:$A$800,Abfall!$B17,Scheine!N$3:N$800)>0,SUMIF(Scheine!$A$3:$A$800,Abfall!$B17,Scheine!N$3:N$800),\"\")","v":""},{"$f":"IF(SUMIF(Scheine!$A$3:$A$800,Abfall!$B17,Scheine!K$3:K$800)-SUM(D17:F17)>0,SUMIF(Scheine!$A$3:$A$800,Abfall!$B17,Scheine!K$3:K$800)-SUM(D17:F17),\"\")","v":""},{"$f":"IF(SUM(D17:G17)>0,SUM(D17:G17),\"\")","v":""}]
[null,170102,"Ziegel",{"$f":"IF(SUMIF(Scheine!$A$3:$A$800,Abfall!$B18,Scheine!L$3:L$800)>0,SUMIF(Scheine!$A$3:$A$800,Abfall!$B18,Scheine!L$3:L$800),\"\")","v":""},{"$f":"IF(SUMIF(Scheine!$A$3:$A$800,Abfall!$B18,Scheine!M$3:M$800)>0,SUMIF(Scheine!$A$3:$A$800,Abfall!$B18,Scheine!M$3:M$800),\"\")","v":""},{"$f":"IF(SUMIF(Scheine!$A$3:$A$800,Abfall!$B18,Scheine!N$3:N$800)>0,SUMIF(Scheine!$A$3:$A$800,Abfall!$B18,Scheine!N$3:N$800),\"\")","v":""},{"$f":"IF(SUMIF(Scheine!$A$3:$A$800,Abfall!$B18,Scheine!K$3:K$800)-SUM(D18:F18)>0,SUMIF(Scheine!$A$3:$A$800,Abfall!$B18,Scheine!K$3:K$800)-SUM(D18:F18),\"\")","v":""},{"$f":"IF(SUM(D18:G18)>0,SUM(D18:G18),\"\")","v":""}]
[null,170103,"Fliesen und Kreamik",{"$f":"IF(SUMIF(Scheine!$A$3:$A$800,Abfall!$B19,Scheine!L$3:L$800)>0,SUMIF(Scheine!$A$3:$A$800,Abfall!$B19,Scheine!L$3:L$800),\"\")","v":""},{"$f":"IF(SUMIF(Scheine!$A$3:$A$800,Abfall!$B19,Scheine!M$3:M$800)>0,SUMIF(Scheine!$A$3:$A$800,Abfall!$B19,Scheine!M$3:M$800),\"\")","v":""},{"$f":"IF(SUMIF(Scheine!$A$3:$A$800,Abfall!$B19,Scheine!N$3:N$800)>0,SUMIF(Scheine!$A$3:$A$800,Abfall!$B19,Scheine!N$3:N$800),\"\")","v":""},{"$f":"IF(SUMIF(Scheine!$A$3:$A$800,Abfall!$B19,Scheine!K$3:K$800)-SUM(D19:F19)>0,SUMIF(Scheine!$A$3:$A$800,Abfall!$B19,Scheine!K$3:K$800)-SUM(D19:F19),\"\")","v":""},""]
[null,170201,"Holz",{"$f":"IF(SUMIF(Scheine!$A$3:$A$800,Abfall!$B20,Scheine!L$3:L$800)>0,SUMIF(Scheine!$A$3:$A$800,Abfall!$B20,Scheine!L$3:L$800),\"\")","v":""},{"$f":"IF(SUMIF(Scheine!$A$3:$A$800,Abfall!$B20,Scheine!M$3:M$800)>0,SUMIF(Scheine!$A$3:$A$800,Abfall!$B20,Scheine!M$3:M$800),\"\")","v":""},{"$f":"IF(SUMIF(Scheine!$A$3:$A$800,Abfall!$B20,Scheine!N$3:N$800)>0,SUMIF(Scheine!$A$3:$A$800,Abfall!$B20,Scheine!N$3:N$800),\"\")","v":""},{"$f":"IF(SUMIF(Scheine!$A$3:$A$800,Abfall!$B20,Scheine!K$3:K$800)-SUM(D20:F20)>0,SUMIF(Scheine!$A$3:$A$800,Abfall!$B20,Scheine!K$3:K$800)-SUM(D20:F20),\"\")","v":""},""]
[null,170202,"Glas",{"$f":"IF(SUMIF(Scheine!$A$3:$A$800,Abfall!$B21,Scheine!L$3:L$800)>0,SUMIF(Scheine!$A$3:$A$800,Abfall!$B21,Scheine!L$3:L$800),\"\")","v":""},{"$f":"IF(SUMIF(Scheine!$A$3:$A$800,Abfall!$B21,Scheine!M$3:M$800)>0,SUMIF(Scheine!$A$3:$A$800,Abfall!$B21,Scheine!M$3:M$800),\"\")","v":""},{"$f":"IF(SUMIF(Scheine!$A$3:$A$800,Abfall!$B21,Scheine!N$3:N$800)>0,SUMIF(Scheine!$A$3:$A$800,Abfall!$B21,Scheine!N$3:N$800),\"\")","v":""},{"$f":"IF(SUMIF(Scheine!$A$3:$A$800,Abfall!$B21,Scheine!K$3:K$800)-SUM(D21:F21)>0,SUMIF(Scheine!$A$3:$A$800,Abfall!$B21,Scheine!K$3:K$800)-SUM(D21:F21),\"\")","v":""},""]
[null,170203,"Kunststoff",{"$f":"IF(SUMIF(Scheine!$A$3:$A$800,Abfall!$B22,Scheine!L$3:L$800)>0,SUMIF(Scheine!$A$3:$A$800,Abfall!$B22,Scheine!L$3:L$800),\"\")","v":""},{"$f":"IF(SUMIF(Scheine!$A$3:$A$800,Abfall!$B22,Scheine!M$3:M$800)>0,SUMIF(Scheine!$A$3:$A$800,Abfall!$B22,Scheine!M$3:M$800),\"\")","v":""},{"$f":"IF(SUMIF(Scheine!$A$3:$A$800,Abfall!$B22,Scheine!N$3:N$800)>0,SUMIF(Scheine!$A$3:$A$800,Abfall!$B22,Scheine!N$3:N$800),\"\")","v":""},{"$f":"IF(SUMIF(Scheine!$A$3:$A$800,Abfall!$B22,Scheine!K$3:K$800)-SUM(D22:F22)>0,SUMIF(Scheine!$A$3:$A$800,Abfall!$B22,Scheine!K$3:K$800)-SUM(D22:F22),\"\")","v":""},""]
[null,170302,"Bitumengemische",{"$f":"IF(SUMIF(Scheine!$A$3:$A$800,Abfall!$B23,Scheine!L$3:L$800)>0,SUMIF(Scheine!$A$3:$A$800,Abfall!$B23,Scheine!L$3:L$800),\"\")","v":""},{"$f":"IF(SUMIF(Scheine!$A$3:$A$800,Abfall!$B23,Scheine!M$3:M$800)>0,SUMIF(Scheine!$A$3:$A$800,Abfall!$B23,Scheine!M$3:M$800),\"\")","v":""},{"$f":"IF(SUMIF(Scheine!$A$3:$A$800,Abfall!$B23,Scheine!N$3:N$800)>0,SUMIF(Scheine!$A$3:$A$800,Abfall!$B23,Scheine!N$3:N$800),\"\")","v":""},{"$f":"IF(SUMIF(Scheine!$A$3:$A$800,Abfall!$B23,Scheine!K$3:K$800)-SUM(D23:F23)>0,SUMIF(Scheine!$A$3:$A$800,Abfall!$B23,Scheine!K$3:K$800)-SUM(D23:F23),\"\")","v":""},""]
[null,170401,"Metalle, einschließl. Legierung",{"$f":"IF(SUMIF(Scheine!$A$3:$A$800,Abfall!$B24,Scheine!L$3:L$800)>0,SUMIF(Scheine!$A$3:$A$800,Abfall!$B24,Scheine!L$3:L$800),\"\")","v":""},{"$f":"IF(SUMIF(Scheine!$A$3:$A$800,Abfall!$B24,Scheine!M$3:M$800)>0,SUMIF(Scheine!$A$3:$A$800,Abfall!$B24,Scheine!M$3:M$800),\"\")","v":""},{"$f":"IF(SUMIF(Scheine!$A$3:$A$800,Abfall!$B24,Scheine!N$3:N$800)>0,SUMIF(Scheine!$A$3:$A$800,Abfall!$B24,Scheine!N$3:N$800),\"\")","v":""},{"$f":"IF(SUMIF(Scheine!$A$3:$A$800,Abfall!$B24,Scheine!K$3:K$800)-SUM(D24:F24)>0,SUMIF(Scheine!$A$3:$A$800,Abfall!$B24,Scheine!K$3:K$800)-SUM(D24:F24),\"\")","v":""},""]
[null,170604,"Dämmmaterial",{"$f":"IF(SUMIF(Scheine!$A$3:$A$800,Abfall!$B25,Scheine!L$3:L$800)>0,SUMIF(Scheine!$A$3:$A$800,Abfall!$B25,Scheine!L$3:L$800),\"\")","v":""},{"$f":"IF(SUMIF(Scheine!$A$3:$A$800,Abfall!$B25,Scheine!M$3:M$800)>0,SUMIF(Scheine!$A$3:$A$800,Abfall!$B25,Scheine!M$3:M$800),\"\")","v":""},{"$f":"IF(SUMIF(Scheine!$A$3:$A$800,Abfall!$B25,Scheine!N$3:N$800)>0,SUMIF(Scheine!$A$3:$A$800,Abfall!$B25,Scheine!N$3:N$800),\"\")","v":""},{"$f":"IF(SUMIF(Scheine!$A$3:$A$800,Abfall!$B25,Scheine!K$3:K$800)-SUM(D25:F25)>0,SUMIF(Scheine!$A$3:$A$800,Abfall!$B25,Scheine!K$3:K$800)-SUM(D25:F25),\"\")","v":""},""]
[null,170802,"Baustoffe auf Gipsbasis",{"$f":"IF(SUMIF(Scheine!$A$3:$A$800,Abfall!$B26,Scheine!L$3:L$800)>0,SUMIF(Scheine!$A$3:$A$800,Abfall!$B26,Scheine!L$3:L$800),\"\")","v":""},{"$f":"IF(SUMIF(Scheine!$A$3:$A$800,Abfall!$B26,Scheine!M$3:M$800)>0,SUMIF(Scheine!$A$3:$A$800,Abfall!$B26,Scheine!M$3:M$800),\"\")","v":""},{"$f":"IF(SUMIF(Scheine!$A$3:$A$800,Abfall!$B26,Scheine!N$3:N$800)>0,SUMIF(Scheine!$A$3:$A$800,Abfall!$B26,Scheine!N$3:N$800),\"\")","v":""},{"$f":"IF(SUMIF(Scheine!$A$3:$A$800,Abfall!$B26,Scheine!K$3:K$800)-SUM(D26:F26)>0,SUMIF(Scheine!$A$3:$A$800,Abfall!$B26,Scheine!K$3:K$800)-SUM(D26:F26),\"\")","v":""},""]
["Gemische",170107,"Gemisch nach § 9 (1) Nr. 2",{"$f":"IF(SUMIF(Scheine!$A$3:$A$800,Abfall!$B27,Scheine!L$3:L$800)>0,SUMIF(Scheine!$A$3:$A$800,Abfall!$B27,Scheine!L$3:L$800),\"\")","v":""},{"$f":"IF(SUMIF(Scheine!$A$3:$A$800,Abfall!$B27,Scheine!M$3:M$800)>0,SUMIF(Scheine!$A$3:$A$800,Abfall!$B27,Scheine!M$3:M$800),\"\")","v":""},{"$f":"IF(SUMIF(Scheine!$A$3:$A$800,Abfall!$B27,Scheine!N$3:N$800)>0,SUMIF(Scheine!$A$3:$A$800,Abfall!$B27,Scheine!N$3:N$800),\"\")","v":""},{"$f":"IF(SUMIF(Scheine!$A$3:$A$800,Abfall!$B27,Scheine!K$3:K$800)-SUM(D27:F27)>0,SUMIF(Scheine!$A$3:$A$800,Abfall!$B27,Scheine!K$3:K$800)-SUM(D27:F27),\"\")","v":""},{"$f":"IF(SUM(D27:G27)>0,SUM(D27:G27),\"\")","v":""}]
[null,170904,"Gemisch nach § 9 (1) Nr. 1",{"$f":"IF(SUMIF(Scheine!$A$3:$A$800,Abfall!$B28,Scheine!L$3:L$800)>0,SUMIF(Scheine!$A$3:$A$800,Abfall!$B28,Scheine!L$3:L$800),\"\")","v":""},{"$f":"IF(SUMIF(Scheine!$A$3:$A$800,Abfall!$B28,Scheine!M$3:M$800)>0,SUMIF(Scheine!$A$3:$A$800,Abfall!$B28,Scheine!M$3:M$800),\"\")","v":""},{"$f":"IF(SUMIF(Scheine!$A$3:$A$800,Abfall!$B28,Scheine!N$3:N$800)>0,SUMIF(Scheine!$A$3:$A$800,Abfall!$B28,Scheine!N$3:N$800),\"\")","v":""},{"$f":"IF(SUMIF(Scheine!$A$3:$A$800,Abfall!$B28,Scheine!K$3:K$800)-SUM(D28:F28)>0,SUMIF(Scheine!$A$3:$A$800,Abfall!$B28,Scheine!K$3:K$800)-SUM(D28:F28),\"\")","v":""},{"$f":"IF(SUM(D28:G28)>0,SUM(D28:G28),\"\")","v":""}]
[]
[]
[null,null,{"$f":"IF(COUNTA(Scheine!B3:B800)=COUNT(Scheine!A3:A800),\"\",\"Tabelle ist fehlerhaft, \"&COUNTA(Scheine!B3:B800)-COUNT(Scheine!A3:A800)&\" falsche Eingaben im Register 'Scheine'\")","v":""}]

{"sheet":"Table 0","index":8,"n_rows":843,"n_cols":5,"rows_kept":843,"cut":false,"hidden":true,"merged":[]}
["Column1","Column2","Column3","Column4","Column5"]
["Europäisches Abfallartenverzeichnis (AVV)","Europäisches Abfallartenverzeichnis (AVV)","Europäisches Abfallartenverzeichnis (AVV)","Europäisches Abfallartenverzeichnis (AVV)","Europäisches Abfallartenverzeichnis (AVV)"]
["2-Steller\r\n(AVV-Kapitel)","4-Steller\r\n(AVV-Gruppe)","6-Steller (Abfallart)","6-Steller (Abfallart)","6-Steller (Abfallart)"]
["2-Steller\r\n(AVV-Kapitel)","4-Steller\r\n(AVV-Gruppe)","Faktor","AVV-Schlüssel","AVV-Bezeichnung"]
["01","01 01","-","01 01 01","Abfälle aus dem Abbau von metallhaltigen Bodenschätzen"]
["01","01 01","1,3","01 01 02","Abfälle aus dem Abbau von nichtmetallhaltigen Bodenschätzen"]
["01","01 03","-","01 03 04*","Säure bildende Aufbereitungsrückstände aus der Verarbeitung von sulfidischem Erz"]
["01","01 03","-","01 03 05*","andere Aufbereitungsrückstände, die gefährliche Stoffe enthalten"]
["01","01 03","-","01 03 06","Aufbereitungsrückstände mit Ausnahme derjenigen, die unter 01 03 04 und 01 03 05 fallen"]
["01","01 03","-","01 03 07*","andere, gefährliche Stoffe enthaltende Abfälle aus der physikalischen und chemischen Verarbeitung von metallhaltigen Bodenschätzen"]
["01","01 03","-","01 03 08","staubende und pulvrige Abfälle mit Ausnahme derjenigen, die unter 01 03 07 fallen"]
["01","01 03","1,5","01 03 09","Rotschlamm aus der Aluminiumoxidherstellung mit Ausnahme von Rotschlamm, der unter 01 03 07 fällt"]
["01","01 03","-","01 03 99","Abfälle a.n.g."]
["01","01 04","1,40-1,80","01 04 07*","gefährliche Stoffe enthaltende Abfälle aus der physikalischen und chemischen Weiterverarbeitung von nichtmetallhaltigen Bodenschätzen"]
["01","01 04","1,4","01 04 08","Abfälle von Kies- und Gesteinsbruch mit Ausnahme derjenigen, die unter 01 04 07 fallen"]
["01","01 04","1,4","01 04 09","Abfälle von Sand und Ton"]
["01","01 04","1,8","01 04 10","staubende und pulvrige Abfälle mit Ausnahme derjenigen, die unter 01 04 07 fallen"]
["01","01 04","1,8","01 04 11","Abfälle aus der Verarbeitung von Kali- und Steinsalz mit Ausnahme derjenigen, die unter 01 04 07 fallen"]
["01","01 04","1,8","01 04 12","Aufbereitungsrückstände und andere Abfälle aus der Wäsche und Reinigung von Bodenschätzen mit Ausnahme derjenigen, die unter 01 04 07 und 01 04 11 fallen"]
["01","01 04","1,7","01 04 13","Abfälle aus Steinmetz- und -sägearbeiten mit Ausnahme derjenigen, die unter 01 04 07 fallen"]
["01","01 04","-","01 04 99","Abfälle a.n.g."]
["01","01 05","1,4","01 05 04","Schlämme und Abfälle aus Süßwasserbohrungen"]
["01","01 05","1,4","01 05 05*","ölhaltige Bohrschlämme und -abfälle"]
["01","01 05","-","01 05 06*","Bohrschlämme und andere Bohrabfälle, die gefährliche Stoffe enthalten"]
["01","01 05","1,4","01 05 07","barythaltige Bohrschlämme und -abfälle mit Ausnahme derjenigen, die unter 01 05 05 und 01 05 06 fallen"]
["01","01 05","1,4","01 05 08","chloridhaltige Bohrschlämme und -abfälle mit Ausnahme derjenigen, die unter 01 05 05 und 01 05 06 fallen"]
["01","01 05","-","01 05 99","Abfälle a.n.g."]
["02","02 01","-","02 01 01","Schlämme von Wasch- und Reinigungsvorgängen"]
["02","02 01","1,1","02 01 02","Abfälle aus tierischem Gewebe"]
["02","02 01","1,15","02 01 03","Abfälle aus pflanzlichem Gewebe"]
["02","02 01","0,4","02 01 04","Kunststoffabfälle (ohne Verpackungen)"]
["02","02 01","1,03","02 01 06","tierische Ausscheidungen, Gülle/Jauche und Stallmist (einschliesslich verdorbenes Stroh), Abwässer, getrennt gesammelt und extern behandelt"]
["02","02 01","-","02 01 07","Abfälle aus der Forstwirtschaft"]
["02","02 01","1,3","02 01 08*","Abfälle von Chemikalien für die Landwirtschaft, die gefährliche Stoffe enthalten"]
["02","02 01","1,3","02 01 09","Abfälle von Chemikalien für die Landwirtschaft mit Ausnahme derjenigen, die unter 02 01 08 fallen"]
["02","02 01","-","02 01 10","Metallabfälle"]
["02","02 01","-","02 01 99","Abfälle a.n.g."]
["02","02 02","1","02 02 01","Schlämme von Wasch- und Reinigungsvorgängen"]
["02","02 02","0,9","02 02 02","Abfälle aus tierischem Gewebe"]
["02","02 02","1,12","02 02 03","für Verzehr oder Verarbeitung ungeeignete Stoffe"]
["02","02 02","0,93","02 02 04","Schlämme aus der betriebseigenen Abwasserbehandlung"]
["02","02 02","-","02 02 99","Abfälle a.n.g."]
["02","02 03","0,95","02 03 01","Schlämme aus Wasch-, Reinigungs-, Schäl-, Zentrifugier- und Abtrennprozessen"]
["02","02 03","1,35","02 03 02","Abfälle von Konservierungsstoffen"]
["02","02 03","1,05","02 03 03","Abfälle aus der Extraktion mit Lösemitteln"]
["02","02 03","1,15","02 03 04","für Verzehr oder Verarbeitung ungeeignete Stoffe"]
["02","02 03","-","02 03 05","Schlämme aus der betriebseigenen Abwasserbehandlung"]
["02","02 03","-","02 03 99","Abfälle a.n.g."]
["02","02 04","1,5","02 04 01","Rübenerde"]
["02","02 04","1,28","02 04 02","nicht spezifikationsgerechter Calciumcarbonatschlamm"]
["02","02 04","-","02 04 03","Schlämme aus der betriebseigenen Abwasserbehandlung"]
["02","02 04","-","02 04 99","Abfälle a.n.g."]
["02","02 05","1","02 05 01","für Verzehr oder Verarbeitung ungeeignete Stoffe"]
["02","02 05","-","02 05 02","Schlämme aus der betriebseigenen Abwasserbehandlung"]
["02","02 05","-","02 05 99","Abfälle a.n.g."]
["02","02 06","0,9","02 06 01","für Verzehr oder Verarbeitung ungeeignete Stoffe"]
["02","02 06","0,90-1,35","02 06 02","Abfälle von Konservierungsstoffen"]
["02","02 06","-","02 06 03","Schlämme aus der betriebseigenen Abwasserbehandlung"]
["02","02 06","-","02 06 99","Abfälle a.n.g."]
["02","02 07","0,55-0,80","02 07 01","Abfälle aus der Wäsche, Reinigung und mechanischen Zerkleinerung des Rohmaterials"]
["02","02 07","1","02 07 02","Abfälle aus der Alkoholdestillation"]
["02","02 07","0,9","02 07 03","Abfälle aus der chemischen Behandlung"]
["02","02 07","0,6","02 07 04","für Verzehr oder Verarbeitung ungeeignete Stoffe"]
["02","02 07","-","02 07 05","Schlämme aus der betriebseigenen Abwasserbehandlung"]
["02","02 07","-","02 07 99","Abfälle a.n.g."]
["03","03 01","0,5","03 01 01","Rinden und Korkabfälle"]
["03","03 01","0,40-0,65","03 01 04*","Sägemehl, Späne, Abschnitte, Holz, Spanplatten und Furniere, die gefährliche Stoffe enthalten"]
["03","03 01","0,40-0,65","03 01 05","Sägemehl, Späne, Abschnitte, Holz, Spanplatten und Furniere mit Ausnahme derjenigen, die unter 03 01 04 fallen"]
["03","03 01","-","03 01 99","Abfälle a.n.g."]
["03","03 02","0,76","03 02 01*","halogenfreie organische Holzschutzmittel"]
["03","03 02","0,76","03 02 02*","chlororganische Holzschutzmittel"]
["03","03 02","0,76","03 02 03*","metallorganische Holzschutzmittel"]
["03","03 02","1,2","03 02 04*","anorganische Holzschutzmittel"]
["03","03 02","0,76","03 02 05*","andere Holzschutzmittel, die gefährliche Stoffe enthalten"]
["03","03 02","-","03 02 99","Holzschutzmittel a. n. g."]
["03","03 03","0,5","03 03 01","Rinden- und Holzabfälle"]
["03","03 03","1","03 03 02","Sulfitschlämme (aus der Rückgewinnung von Kochlaugen)"]
["03","03 03","1,10-1,30","03 03 05","De-inking-Schlämme aus dem Papierrecycling"]
["03","03 03","0,95","03 03 07","mechanisch abgetrennte Abfälle aus der Auflösung von Papier- und Pappabfällen"]
["03","03 03","0,95","03 03 08","Abfälle aus dem Sortieren von Papier und Pappe für das Recycling"]
["03","03 03","-","03 03 09","Kalkschlammabfälle"]
["03","03 03","1,1","03 03 10","Faserabfälle, Faser-, Füller- und Überzugsschlämme aus der mechanischen Abtrennung"]
["03","03 03","1,1","03 03 11","Schlämme aus der betriebseigenen Abwasserbehandlung mit Ausnahme derjenigen, die unter 03 03 10 fallen"]
["03","03 03","-","03 03 99","Abfälle a. n. g."]
["04","04 01","1","04 01 01","Fleischabschabungen und Häuteabfälle"]
["04","04 01","1,2","04 01 02","geäschertes Leimleder"]
["04","04 01","1,05","04 01 03*","Entfettungsabfälle, lösemittelhaltig, ohne flüssige Phase"]
["04","04 01","1","04 01 04","chromhaltige Gerbereibrühe"]
["04","04 01","1","04 01 05","chromfreie Gerbereibrühe"]
["04","04 01","1,2","04 01 06","chromhaltige Schlämme, insbesondere aus der betriebseigenen Abwasserbehandlung"]
["04","04 01","0,95","04 01 07","chromfreie Schlämme, insbesondere aus der betriebseigenen Abwasserbehandlung"]
["04","04 01","0,5","04 01 08","chromhaltige Abfälle aus gegerbtem Leder (Abschnitte, Schleifstaub, Falzspäne)"]
["04","04 01","0,50-0,75","04 01 09","Abfälle aus der Zurichtung und dem Finish"]
["04","04 01","-","04 01 99","Abfälle a.n.g."]
["04","04 02","0,4","04 02 09","Abfälle aus Verbundmaterialien (imprägnierte Textilien, Elastomer, Plastomer)"]
["04","04 02","0,9","04 02 10","organische Stoffe aus Naturstoffen (z.B. Fette, Wachse)"]
["04","04 02","0,90-1,00","04 02 14*","Abfälle aus dem Finish, die organische Lösungsmittel enthalten"]
["04","04 02","0,90-1,00","04 02 15","Abfälle aus dem Finish mit Ausnahme derjenigen, die unter 04 02 14 fallen"]
["04","04 02","1,17","04 02 16*","Farbstoffe und Pigmente, die gefährliche Stoffe enthalten"]
["04","04 02","1,17","04 02 17","Farbstoffe und Pigmente mit Ausnahme derjenigen, die unter 04 02 16 fallen"]
["04","04 02","-","04 02 19*","Schlämme aus der betriebseigenen Abwasserbehandlung, die gefährliche Stoffe enthalten"]
["04","04 02","-","04 02 20","Schlämme aus der betriebseigenen Abwasserbehandlung mit Ausnahme derjenigen, die unter 04 02 19 fallen"]
["04","04 02","0,4","04 02 21","Abfälle aus unbehandelten Textilfasern"]
["04","04 02","0,4","04 02 22","Abfälle aus verarbeiteten Textilfasern"]
["04","04 02","-","04 02 99","Abfälle a.n.g."]
["05","05 01","-","05 01 02*","Entsalzungsschlämme"]
["05","05 01","1,03","05 01 03*","Bodenschlämme aus Tanks"]
["05","05 01","1","05 01 04*","saure Alkylschlämme"]
["05","05 01","-","05 01 05*","verschüttetes Öl"]
["05","05 01","1,2","05 01 06*","ölhaltige Schlämme aus Betriebsvorgängen und Instandhaltung"]
["05","05 01","1,2","05 01 07*","Säureteere"]
["05","05 01","1,10-1,30","05 01 08*","andere Teere"]
["05","05 01","-","05 01 09*","Schlämme aus der betriebseigenen Abwasserbehandlung, die gefährliche Stoffe enthalten"]
["05","05 01","-","05 01 10","Schlämme aus der betriebseigenen Abwasserbehandlung mit Ausnahme derjenigen, die unter 05 01 09 fallen"]
["05","05 01","-","05 01 11*","Abfälle aus der Brennstoffreinigung mit Basen"]
["05","05 01","0,9","05 01 12*","säurehaltige Öle"]
["05","05 01","1,3","05 01 13","Schlämme aus der Kesselspeisewasseraufbereitung"]
["05","05 01","-","05 01 14","Abfälle aus Kühlkolonnen"]
["05","05 01","1,6","05 01 15*","gebrauchte Filtertone"]
["05","05 01","1,05","05 01 16","schwefelhaltige Abfälle aus der Ölentschwefelung"]
["05","05 01","1,3","05 01 17","Bitumen"]
["05","05 01","-","05 01 99","Abfälle a.n.g."]
["05","05 06","1,2","05 06 01*","Säureteere"]
["05","05 06","1,3","05 06 03*","andere Teere"]
["05","05 06","-","05 06 04","Abfälle aus Kühlkolonnen"]
["05","05 06","-","05 06 99","Abfälle a.n.g."]
["05","05 07","1,2","05 07 01*","quecksilberhaltige Abfälle"]
["05","05 07","1","05 07 02","schwefelhaltige Abfälle"]
["05","05 07","-","05 07 99","Abfälle a.n.g."]
["06","06 01","1,05-1,10","06 01 01*","Schwefelsäure und schweflige Säure"]
["06","06 01","1,05","06 01 02*","Salzsäure"]
["06","06 01","1,05","06 01 03*","Flusssäure"]
["06","06 01","1,05","06 01 04*","Phosphorsäure und phosphorige Säure"]
["06","06 01","1,05","06 01 05*","Salpetersäure und salpetrige Säure"]
["06","06 01","-","06 01 06*","andere Säuren"]
["06","06 01","-","06 01 99","Abfälle a.n.g."]
["06","06 02","1,05","06 02 01*","Calciumhydroxid"]
["06","06 02","0,8","06 02 03*","Ammoniumhydroxid"]
["06","06 02","-","06 02 04*","Natrium- und Kaliumhydroxid"]
["06","06 02","1,00-1,03","06 02 05*","andere Basen"]
["06","06 02","-","06 02 99","Abfälle a.n.g."]
["06","06 03","1,3","06 03 11*","feste Salze und Lösungen, die Cyanid enthalten"]
["06","06 03","0,98-1,50","06 03 13*","feste Salze und Lösungen, die Schwermetalle enthalten"]
["06","06 03","0,98-1,50","06 03 14","feste Salze und Lösungen mit Ausnahme derjenigen, die unter 06 03 11 und 06 03 13 fallen"]
["06","06 03","1,26","06 03 15*","Metalloxide, die Schwermetalle enthalten"]
["06","06 03","1,26","06 03 16","Metalloxide mit Ausnahme derjenigen, die unter 06 03 15 fallen"]
["06","06 03","-","06 03 99","Abfälle a.n.g."]
["06","06 04","1,3","06 04 03*","arsenhaltige Abfälle"]
["06","06 04","1,5","06 04 04*","quecksilberhaltige Abfälle"]
["06","06 04","0,98-1,30","06 04 05*","Abfälle, die andere Schwermetalle enthalten"]
["06","06 04","-","06 04 99","Abfälle a.n.g."]
["06","06 05","-","06 05 02*","Schlämme aus der betriebseigenen Abwasserbehandlung, die gefährliche Stoffe enthalten"]
["06","06 05","-","06 05 03","Schlämme aus der betriebseigenen Abwasserbehandlung mit Ausnahme derjenigen, die unter 06 05 02 fallen"]
["06","06 06","1,05","06 06 02*","Abfälle, die gefährliche Sulfide enthalten"]
["06","06 06","1,05","06 06 03","sulfidhaltige Abfälle mit Ausnahme derjenigen, die unter 06 06 02 fallen"]
["06","06 06","-","06 06 99","Abfälle a.n.g."]
["06","06 07","1,30-1,50","06 07 01*","asbesthaltige Abfälle aus der Elektrolyse"]
["06","06 07","0,7","06 07 02*","Aktivkohle aus der Chlorherstellung"]
["06","06 07","1,5","06 07 03*","quecksilberhaltige Bariumsulfatschlämme"]
["06","06 07","-","06 07 04*","Lösungen und Säuren, z. B. Kontaktsäure"]
["06","06 07","-","06 07 99","Abfälle a.n.g."]
["06","06 08","-","06 08 02*","gefährliche Chlorsilane enthaltende Abfälle"]
["06","06 08","-","06 08 99","Abfälle a. n. g."]
["06","06 09","1,5","06 09 02","phosphorhaltige Schlacke"]
["06","06 09","1,5","06 09 03*","Reaktionsabfälle auf Kalziumbasis, die gefährliche Stoffe enthalten"]
["06","06 09","1,5","06 09 04","Reaktionsabfälle auf Kalziumbasis mit Ausnahme derjenigen, die unter 06 09 03 fallen"]
["06","06 09","-","06 09 99","Abfälle a.n.g."]
["06","06 10","1,3","06 10 02*","Abfälle, die gefährliche Stoffe enthalten"]
["06","06 10","-","06 10 99","Abfälle a. n. g."]
["06","06 11","1,17","06 11 01","Reaktionsabfälle auf Kalziumbasis aus der Titandioxidherstellung"]
["06","06 11","-","06 11 99","Abfälle a.n.g."]
["06","06 13","1,17","06 13 01*","anorganische Pflanzenschutzmittel, Holzschutzmittel und andere Biozide"]
["06","06 13","0,70-0,80","06 13 02*","gebrauchte Aktivkohle (ausser 06 07 02)"]
["06","06 13","0,6","06 13 03","Industrieruß"]
["06","06 13","1,5","06 13 04*","Abfälle aus der Asbestverarbeitung"]
["06","06 13","-","06 13 05*","Ofen- und Kaminruß"]
["06","06 13","-","06 13 99","Abfälle a.n.g."]
["07","07 01","1,07","07 01 01*","wässrige Waschflüssigkeiten und Mutterlaugen"]
["07","07 01","0,95","07 01 03*","halogenorganische Lösemittel, Waschflüssigkeiten und Mutterlaugen"]
["07","07 01","0,89","07 01 04*","andere organische Lösemittel, Waschflüssigkeiten und Mutterlaugen"]
["07","07 01","0,95-0,96","07 01 07*","halogenierte Reaktions- und Destillationsrückstände"]
["07","07 01","0,90-0,95","07 01 08*","andere Reaktions- und Destillationsrückstände"]
["07","07 01","0,50-0,70","07 01 09*","halogenierte Filterkuchen, gebrauchte Aufsaugmaterialien"]
["07","07 01","0,50-0,70","07 01 10*","andere Filterkuchen, gebrauchte Aufsaugmaterialien"]
["07","07 01","-","07 01 11*","Schlämme aus der betriebseigenen Abwasserbehandlung, die gefährliche Stoffe enthalten"]
["07","07 01","-","07 01 12","Schlämme aus der betriebseigenen Abwasserbehandlung mit Ausnahme derjenigen, die unter 07 01 11 fallen"]
["07","07 01","-","07 01 99","Abfälle a.n.g."]
["07","07 02","1,1","07 02 01*","wässrige Waschflüssigkeiten und Mutterlaugen"]
["07","07 02","0,95","07 02 03*","halogenorganische Lösemittel, Waschflüssigkeiten und Mutterlaugen"]
["07","07 02","0,89","07 02 04*","andere organische Lösemittel, Waschflüssigkeiten und Mutterlaugen"]
["07","07 02","0,95-0,96","07 02 07*","halogenierte Reaktions- und Destillationsrückstände"]
["07","07 02","0,90-0,96","07 02 08*","andere Reaktions- und Destillationsrückstände"]
["07","07 02","0,50-0,70","07 02 09*","halogenierte Filterkuchen, gebrauchte Aufsaugmaterialien"]
["07","07 02","0,50-0,70","07 02 10*","andere Filterkuchen, gebrauchte Aufsaugmaterialien"]
["07","07 02","-","07 02 11*","Schlämme aus der betriebseigenen Abwasserbehandlung, die gefährliche Stoffe enthalten"]
["07","07 02","-","07 02 12","Schlämme aus der betriebseigenen Abwasserbehandlung mit Ausnahme derjenigen, die unter 07 02 11 fallen"]
["07","07 02","0,20-0,90","07 02 13","Kunststoffabfälle"]
["07","07 02","-","07 02 14*","Abfälle von Zusatzstoffen, die gefährliche Stoffe enthalten"]
["07","07 02","-","07 02 15","Abfälle von Zusatzstoffen mit Ausnahme derjenigen, die unter 07 02 14 fallen"]
["07","07 02","-","07 02 16*","gefährliche Silicone enthaltende Abfälle"]
["07","07 02","-","07 02 17","siliconhaltige Abfälle, andere als die in 07 02 16 genannten"]
["07","07 02","0,95","07 02 99","Abfälle a.n.g."]
["07","07 03","1,1","07 03 01*","wässrige Waschflüssigkeiten und Mutterlaugen"]
["07","07 03","0,95","07 03 03*","halogenorganische Lösemittel, Waschflüssigkeiten und Mutterlaugen"]
["07","07 03","0,89","07 03 04*","andere organische Lösemittel, Waschflüssigkeiten und Mutterlaugen"]
["07","07 03","0,95-0,96","07 03 07*","halogenierte Reaktions- und Destillationsrückstände"]
["07","07 03","0,90-0,95","07 03 08*","andere Reaktions- und Destillationsrückstände"]
["07","07 03","0,50-0,70","07 03 09*","halogenierte Filterkuchen, gebrauchte Aufsaugmaterialien"]
["07","07 03","0,50-0,70","07 03 10*","andere Filterkuchen, gebrauchte Aufsaugmaterialien"]
["07","07 03","-","07 03 11*","Schlämme aus der betriebseigenen Abwasserbehandlung, die gefährliche Stoffe enthalten"]
["07","07 03","-","07 03 12","Schlämme aus der betriebseigenen Abwasserbehandlung mit Ausnahme derjenigen, die unter 07 03 11 fallen"]
["07","07 03","1,17","07 03 99","Abfälle a.n.g."]
["07","07 04","1,1","07 04 01*","wässrige Waschflüssigkeiten und Mutterlaugen"]
["07","07 04","0,95","07 04 03*","halogenorganische Lösemittel, Waschflüssigkeiten und Mutterlaugen"]
["07","07 04","0,89","07 04 04*","andere organische Lösemittel, Waschflüssigkeiten und Mutterlaugen"]
["07","07 04","0,95-0,96","07 04 07*","halogenierte Reaktions- und Destillationsrückstände"]
["07","07 04","0,90-0,95","07 04 08*","andere Reaktions- und Destillationsrückstände"]
["07","07 04","0,50-0,70","07 04 09*","halogenierte Filterkuchen, gebrauchte Aufsaugmaterialien"]
["07","07 04","0,50-0,70","07 04 10*","andere Filterkuchen, gebrauchte Aufsaugmaterialien"]
["07","07 04","-","07 04 11*","Schlämme aus der betriebseigenen Abwasserbehandlung, die gefährliche Stoffe enthalten"]
["07","07 04","-","07 04 12","Schlämme aus der betriebseigenen Abwasserbehandlung mit Ausnahme derjenigen, die unter 07 04 11 fallen"]
["07","07 04","-","07 04 13*","feste Abfälle, die gefährliche Stoffe enthalten"]
["07","07 04","0,76","07 04 99","Abfälle a.n.g."]
["07","07 05","1,1","07 05 01*","wässrige Waschflüssigkeiten und Mutterlaugen"]
["07","07 05","0,95","07 05 03*","halogenorganische Lösemittel, Waschflüssigkeiten und Mutterlaugen"]
["07","07 05","0,89","07 05 04*","andere organische Lösemittel, Waschflüssigkeiten und Mutterlaugen"]
["07","07 05","0,95-0,96","07 05 07*","halogenierte Reaktions- und Destillationsrückstände"]
["07","07 05","0,90-0,95","07 05 08*","andere Reaktions- und Destillationsrückstände"]
["07","07 05","0,50-0,70","07 05 09*","halogenierte Filterkuchen, gebrauchte Aufsaugmaterialien"]
["07","07 05","0,50-0,70","07 05 10*","andere Filterkuchen, gebrauchte Aufsaugmaterialien"]
["07","07 05","-","07 05 11*","Schlämme aus der betriebseigenen Abwasserbehandlung, die gefährliche Stoffe enthalten"]
["07","07 05","-","07 05 12","Schlämme aus der betriebseigenen Abwasserbehandlung mit Ausnahme derjenigen, die unter 07 05 11 fallen"]
["07","07 05","-","07 05 13*","feste Abfälle, die gefährliche Stoffe enthalten"]
["07","07 05","-","07 05 14","feste Abfälle mit Ausnahme derjenigen, die unter 07 05 13 fallen"]
["07","07 05","0,5","07 05 99","Abfälle a.n.g."]
["07","07 06","1","07 06 01*","wässrige Waschflüssigkeiten und Mutterlaugen"]
["07","07 06","0,95","07 06 03*","halogenorganische Lösemittel, Waschflüssigkeiten und Mutterlaugen"]
["07","07 06","0,89","07 06 04*","andere organische Lösemittel, Waschflüssigkeiten und Mutterlaugen"]
["07","07 06","0,95-0,96","07 06 07*","halogenierte Reaktions- und Destillationsrückstände"]
["07","07 06","0,90-0,95","07 06 08*","andere Reaktions- und Destillationsrückstände"]
["07","07 06","0,50-0,70","07 06 09*","halogen. Filterkuchen, gebrauchte Aufsaugmaterialien"]
["07","07 06","0,50-0,70","07 06 10*","andere Filterkuchen, gebrauchte Aufsaugmaterialien"]
["07","07 06","-","07 06 11*","Schlämme aus der betriebseigenen Abwasserbehandlung, die gefährliche Stoffe enthalten"]
["07","07 06","-","07 06 12","Schlämme aus der betriebseigenen Abwasserbehandlung mit Ausnahme derjenigen, die unter 07 06 11 fallen"]
["07","07 06","0,77","07 06 99","Abfälle a.n.g."]
["07","07 07","1,1","07 07 01*","wässrige Waschflüssigkeiten und Mutterlaugen"]
["07","07 07","0,95","07 07 03*","halogenorganische Lösemittel, Waschflüssigkeiten und Mutterlaugen"]
["07","07 07","0,89","07 07 04*","andere organische Lösemittel, Waschflüssigkeiten und Mutterlaugen"]
["07","07 07","0,95-0,96","07 07 07*","halogenierte Reaktions- und Destillationsrückstände"]
["07","07 07","0,90-0,95","07 07 08*","andere Reaktions- und Destillationsrückstände"]
["07","07 07","0,50-0,70","07 07 09*","halogenierte Filterkuchen, gebrauchte Aufsaugmaterialien"]
["07","07 07","0,50-0,70","07 07 10*","andere Filterkuchen, gebrauchte Aufsaugmaterialien"]
["07","07 07","-","07 07 11*","Schlämme aus der betriebseigenen Abwasserbehandlung, die gefährliche Stoffe enthalten"]
["07","07 07","-","07 07 12","Schlämme aus der betriebseigenen Abwasserbehandlung mit Ausnahme derjenigen, die unter 07 07 11 fallen"]
["07","07 07","0,80-1,00","07 07 99","Abfälle a.n.g."]
["08","08 01","0,7","08 01 11*","Farb- und Lackabfälle, die organische Lösemittel oder andere gefährliche Stoffe enthalten"]
["08","08 01","0,7","08 01 12","Farb- und Lackabfälle mit Ausnahme derjenigen, die unter 08 01 11 fallen"]
["08","08 01","1,2","08 01 13*","Farb- oder Lackschlämme, die organische Lösemittel oder andere gefährliche Stoffe enthalten"]
["08","08 01","1,2","08 01 14","Farb- oder Lackschlämme mit Ausnahme derjenigen, die unter 08 01 13 fallen"]
["08","08 01","1,2","08 01 15*","wässrige Schlämme, die Farben oder Lacke mit organischen Lösemitteln oder anderen gefährlichen Stoffen enthalten"]
["08","08 01","1,2","08 01 16","wässrige Schlämme, die Farben oder Lacke enthalten, mit Ausnahme derjenigen, die unter 08 01 15 fallen"]
["08","08 01","1,2","08 01 17*","Abfälle aus der Farb- oder Lackentfernung, die organische Lösemittel oder andere gefährliche Stoffe enthalten"]
["08","08 01","0,70-1,20","08 01 18","Abfälle aus der Farb- oder Lackentfernung mit Ausnahme derjenigen, die unter 08 01 17 fallen"]
["08","08 01","0,70-1,10","08 01 19*","wässrige Suspensionen, die Farben oder Lacke mit organischen Lösemitteln oder anderen gefährlichen Stoffen enthalten"]
["08","08 01","0,70-1,10","08 01 20","wässrige Suspensionen, die Farben oder Lacke enthalten, mit Ausnahme derjenigen, die unter 08 01 19 fallen"]
["08","08 01","-","08 01 21*","Farb- oder Lackentfernerabfälle"]
["08","08 01","0,8","08 01 99","Abfälle a.n.g."]
["08","08 02","1,17-1,45","08 02 01","Abfälle von Beschichtungspulver"]
["08","08 02","1,5","08 02 02","wässrige Schlämme, die keramische Werkstoffe enthalten"]
["08","08 02","1,75","08 02 03","wässrige Suspensionen, die keramische Werkstoffe enthalten"]
["08","08 02","-","08 02 99","Abfälle a.n.g."]
["08","08 03","1,15","08 03 07","wässrige Schlämme, die Druckfarben enthalten"]
["08","08 03","1,15","08 03 08","wässrige flüssige Abfälle, die Druckfarben enthalten"]
["08","08 03","1,15","08 03 12*","Druckfarbenabfälle, die gefährliche Stoffe enthalten"]
["08","08 03","1,15","08 03 13","Druckfarbenabfälle mit Ausnahme derjenigen, die unter 08 03 12 fallen"]
["08","08 03","1,15","08 03 14*","Druckfarbenschlämme, die gefährliche Stoffe enthalten"]
["08","08 03","1,15","08 03 15","Druckfarbenschlämme mit Ausnahme derjenigen, die unter 08 03 14 fallen"]
["08","08 03","-","08 03 16*","Abfälle von Ätzlösungen"]
["08","08 03","0,3","08 03 17*","Tonerabfälle, die gefährliche Stoffe enthalten"]
["08","08 03","0,3","08 03 18","Tonerabfälle mit Ausnahme derjenigen, die unter 08 03 17 fallen"]
["08","08 03","-","08 03 19*","Dispersionsöl"]
["08","08 03","1","08 03 99","Abfälle a.n.g."]
["08","08 04","1","08 04 09*","Klebstoff- und Dichtmassenabfälle, die organische Lösemittel oder andere gefährliche Stoffe enthalten"]
["08","08 04","1,00-1,10","08 04 10","Klebstoff- und Dichtmassenabfälle mit Ausnahme derjenigen, die unter 08 04 09 fallen"]
["08","08 04","1","08 04 11*","Klebstoff- und dichtmassenhaltige Schlämme, die organische Lösemittel oder andere gefährliche Stoffe enthalten"]
["08","08 04","1,1","08 04 12","Klebstoff- und dichtmassenhaltige Schlämme mit Ausnahme derjenigen, die unter 08 04 11 fallen"]
["08","08 04","1","08 04 13*","wässrige Schlämme, die Klebstoffe oder Dichtmassen mit organischen Lösemitteln oder anderen gefährlichen Stoffen enthalten"]
["08","08 04","1","08 04 14","wässrige Schlämme, die Klebstoffe oder Dichtmassen enthalten, mit Ausnahme derjenigen, die unter 08 01 13 fallen"]
["08","08 04","1,1","08 04 15*","wässrige flüssige Abfälle, die Klebstoffe oder Dichtmassen mit organischen Lösemitteln oder anderen gefährlichen Stoffen enthalten"]
["08","08 04","1,1","08 04 16","wässrige flüssige Abfälle, die Klebstoffe oder Dichtmassen enthalten, mit Ausnahme derjenigen, die unter 08 04 15 fallen"]
["08","08 04","-","08 04 17*","Harzöle"]
["08","08 04","-","08 04 99","Abfälle a.n.g."]
["08","08 05","-","08 05 01*","Isocyanatabfälle"]
["09","09 01","0,97","09 01 01*","Entwickler und Aktivatorenlösungen auf Wasserbasis"]
["09","09 01","0,97","09 01 02*","Offsetdruckplatten-Entwicklerlösungen auf Wasserbasis"]
["09","09 01","0,97","09 01 03*","Entwicklerlösungen auf Lösemittelbasis"]
["09","09 01","0,97","09 01 04*","Fixierbäder"]
["09","09 01","0,97","09 01 05*","Bleichlösungen und Bleich-Fixier-Bäder"]
["09","09 01","-","09 01 06*","silberhaltige Abfälle aus der betriebseigenen Behandlung fotografischer Abfälle"]
["09","09 01","0,55","09 01 07","Filme und fotografische Papiere, die Silber oder Silberverbindungen enthalten"]
["09","09 01","0,55","09 01 08","Filme und fotografische Papiere, die kein Silber und keine Silberverbindungen enthalten"]
["09","09 01","-","09 01 10","Einwegkameras ohne Batterien"]
["09","09 01","-","09 01 11*","Einwegkameras mit Batterien, die unter 16 06 01, 16 06 02 oder16 06 03 fallen"]
["09","09 01","1,1","09 01 12","Einwegkameras mit Batterien mit Ausnahme derjenigen, die unter 09 01 11 fallen"]
["09","09 01","-","09 01 13*","wässrige flüssige Abfälle aus der betriebseigenen Silber-rückgewinnung mit Ausnahme derjenigen, die unter 09 01 06 fallen"]
["09","09 01","0,5","09 01 99","Abfälle a.n.g."]
["10","10 01","0,7","10 01 01","Rost- und Kesselasche, Schlacken und Kesselstaub mit Ausnahme von Kesselstaub, der unter 10 01 04 fällt"]
["10","10 01","1","10 01 02","Filterstäube aus Kohlefeuerung"]
["10","10 01","1","10 01 03","Filterstäube aus Torffeuerung u. Feuerung mit (unbehandeltem) Holz"]
["10","10 01","1","10 01 04*","Filterstäube und Kesselstaub aus Ölfeuerung"]
["10","10 01","1,02","10 01 05","Reaktionsabfälle auf Kalziumbasis aus der Rauchgasentschwefelung in fester Form"]
["10","10 01","1,1","10 01 07","Reaktionsabfälle auf Calciumbasis aus der Rauchgasentschwefelung in Form von Schlämmen"]
["10","10 01","1,05","10 01 09*","Schwefelsäure"]
["10","10 01","-","10 01 13*","Filterstäube aus emulgierten, als Brennstoffe verwendeten Kohlenwasserstoffen"]
["10","10 01","0,7","10 01 14*","Rost- und Kesselasche, Schlacken und Kesselstaub aus der Abfallmitverbrennung, die gefährliche Stoffe enthalten"]
["10","10 01","0,7","10 01 15","Rost- und Kesselasche, Schlacken und Kesselstaub aus der Abfall-mitverbrennung mit Ausnahme derjenigen, die unter 10 01 14 fallen"]
["10","10 01","1","10 01 16*","Filterstäube aus der Abfallmitverbrennung, die gefährliche Stoffe enthalten"]
["10","10 01","1","10 01 17","Filterstäube aus der Abfallmitverbrennung mit Ausnahme derjenigen, die unter 10 01 16 fallen"]
["10","10 01","1,16","10 01 18*","Abfälle aus der Abgasbehandlung, die gefährliche Stoffe enthalten"]
["10","10 01","1,16","10 01 19","Abfälle aus der Abgasbehandlung mit Ausnahme derjenigen, die unter 10 01 05, 10 01 07 und 10 01 18 fallen"]
["10","10 01","1","10 01 20*","Schlämme aus der betriebseigenen Abwasserbehandlung, die gefährliche Stoffe enthalten"]
["10","10 01","1","10 01 21","Schlämme aus der betriebseigenen Abwasserbehandlung mit Ausnahme derjenigen, die unter 10 01 20 fallen"]
["10","10 01","1,3","10 01 22*","wässrige Schlämme aus der Kesselreinigung, die gefährliche Stoffe enthalten"]
["10","10 01","1,3","10 01 23","wässrige Schlämme aus der Kesselreinigung mit Ausnahme derjenigen, die unter 10 01 22 fallen"]
["10","10 01","-","10 01 24","Sande aus der Wirbelschichtfeuerung"]
["10","10 01","-","10 01 25","Abfälle aus der Lagerung und Vorbereitung von Brennstoffen für Kohlekraftwerke"]
["10","10 01","-","10 01 26","Abfälle aus der Kühlwasserbehandlung"]
["10","10 01","0,50-1,00","10 01 99","Abfälle a.n.g."]
["10","10 02","1,21","10 02 01","Abfälle aus der Verarbeitung von Schlacke"]
["10","10 02","1,8","10 02 02","unverarbeitete Schlacke"]
["10","10 02","4,13","10 02 07*","feste Abfälle aus der Abgasbehandlung, die gefährliche Stoffe enthalten"]
["10","10 02","4,13","10 02 08","Abfälle aus der Abgasbehandlung mit Ausnahme derjenigen, die unter 10 02 07 fallen"]
["10","10 02","1,26-4,13","10 02 10","Walzzunder"]
["10","10 02","-","10 02 11*","ölhaltige Abfälle aus der Kühlwasserbehandlung"]
["10","10 02","-","10 02 12","Abfälle aus der Kühlwasserbehandlung mit Ausnahme derjenigen, die unter 10 02 11 fallen"]
["10","10 02","1,6","10 02 13*","Schlämme und Filterkuchen aus der Abgasbehandlung, die gefährliche Stoffe enthalten"]
["10","10 02","1,6","10 02 14","Schlämme und Filterkuchen aus der Abgasbehandlung mit Ausnahme derjenigen, die unter 10 02 13 fallen"]
["10","10 02","1,75","10 02 15","andere Schlämme und Filterkuchen"]
["10","10 02","1,8","10 02 99","Abfälle a.n.g."]
["10","10 03","1,05","10 03 02","Anodenschrott"]
["10","10 03","1,8","10 03 04*","Schlacken aus der Erstschmelze"]
["10","10 03","1,1","10 03 05","Aluminiumoxidabfälle"]
["10","10 03","1,8","10 03 08*","Salzschlacken aus der Zweitschmelze"]
["10","10 03","1,8","10 03 09*","schwarze Krätzen aus der Zweitschmelze"]
["10","10 03","1,8","10 03 15*","Abschaum, der entzündlich ist oder in Kontakt mit Wasser entzündliche Gase in gefährlicher Menge abgibt"]
["10","10 03","1,8","10 03 16","Abschaum mit Ausnahme desjenigen, der unter 10 03 15 fällt"]
["10","10 03","1,00-1,80","10 03 17*","teerhaltige Abfälle aus der Anodenherstellung"]
["10","10 03","1,00-1,80","10 03 18","Abfälle aus der Anodenherstellung die Kohlenstoffe enthalten, mit Ausnahme derjenigen, die unter 10 03 17 fallen"]
["10","10 03","1,4","10 03 19*","Filterstaub, der gefährliche Stoffe enthält"]
["10","10 03","1,4","10 03 20","Filterstaub mit Ausnahme von Filterstaub, der unter 10 03 19 fällt"]
["10","10 03","-","10 03 21*","andere Teilchen und Staub (einschliesslich Kugelmühlenstaub), die gefährliche Stoffe enthalten"]
["10","10 03","-","10 03 22","Teilchen und Staub (einschliesslich Kugelmühlenstaub) mit Ausnahme derjenigen, die unter 10 03 21 fallen"]
["10","10 03","1,4","10 03 23*","feste Abfälle aus der Abgasbehandlung, die gefährliche Stoffe enthalten"]
["10","10 03","1,4","10 03 24","feste Abfälle aus der Abgasbehandlung mit Ausnahme derjenigen, die unter 10 03 23 fallen"]
["10","10 03","1,8","10 03 25*","Schlämme und Filterkuchen aus der Abgasbehandlung, die gefährliche Stoffe enthalten"]
["10","10 03","1,8","10 03 26","Schlämme und Filterkuchen aus der Abgasbehandlung mit Ausnahme derjenigen, die unter 10 03 25 fallen"]
["10","10 03","0,9","10 03 27*","ölhaltige Abfälle aus der Kühlwasserbehandlung"]
["10","10 03","-","10 03 28","Abfälle aus der Kühlwasserbehandlung mit Ausnahme derjenigen, die unter 10 03 27 fallen"]
["10","10 03","1,3","10 03 29*","gefährliche Stoffe enthaltende Abfälle aus der Behandlung von Salzschlacken und schwarzen Krätzen"]
["10","10 03","1,3","10 03 30","Abfälle aus der Behandlung von Salzschlacken und schwarzen Krätzen mit Ausnahme derjenigen, die unter 10 03 29 fallen"]
["10","10 03","1,60-1,73","10 03 99","Abfälle a. n.g."]
["10","10 04","1,8","10 04 01*","Schlacken (Erst- und Zweitschmelze)"]
["10","10 04","1,8","10 04 02*","Krätzen und Abschaum (Erst- und Zweitschmelze)"]
["10","10 04","0,9","10 04 03*","Calciumarsenat"]
["10","10 04","1,4","10 04 04*","Filterstaub"]
["10","10 04","2,9","10 04 05*","andere Teilchen und Staub"]
["10","10 04","1,4","10 04 06*","feste Abfälle aus der Abgasbehandlung"]
["10","10 04","1,8","10 04 07*","Schlämme und Filterkuchen aus der Abgasbehandlung"]
["10","10 04","0,9","10 04 09*","ölhaltige Abfälle aus der Kühlwasserbehandlung"]
["10","10 04","-","10 04 10","Abfälle aus der Kühlwasserbehandlung mit Ausnahme derjenigen, die unter 10 04 09 fallen"]
["10","10 04","1,05-2,90","10 04 99","Abfälle a. n.g."]
["10","10 05","1,8","10 05 01","Schlacken (Erst- und Zweitschmelze)"]
["10","10 05","1,4","10 05 03*","Filterstaub"]
["10","10 05","3,43","10 05 04","andere Teilchen und Staub"]
["10","10 05","1,4","10 05 05*","feste Abfälle aus der Abgasbehandlung"]
["10","10 05","1,8","10 05 06*","Schlämme und Filterkuchen aus der Abgasbehandlung"]
["10","10 05","0,9","10 05 08*","ölhaltige Abfälle aus der Kühlwasserbehandlung"]
["10","10 05","-","10 05 09","Abfälle aus der Kühlwasserbehandlung mit Ausnahme derjenigen, die unter 10 05 08 fallen"]
["10","10 05","-","10 05 10*","Krätzen und Abschaum, die entzündlich sind oder in Kontakt mit Wasser entzündliche Gase in gefährlicher Menge abgeben"]
["10","10 05","-","10 05 11","Krätzen und Abschaum mit Ausnahme derjenigen, die unter 10 05 10 fallen"]
["10","10 05","1,20-3,43","10 05 99","Abfälle a. n.g."]
["10","10 06","1,8","10 06 01","Schlacken (Erst- und Zweitschmelze)"]
["10","10 06","-","10 06 02","Krätzen und Abschaum (Erst- und Zweitschmelze)"]
["10","10 06","1,4","10 06 03*","Filterstaub"]
["10","10 06","-","10 06 04","andere Teilchen und Staub"]
["10","10 06","1,8","10 06 06*","feste Abfälle aus der Abgasbehandlung"]
["10","10 06","1,4","10 06 07*","Schlämme und Filterkuchen aus der Abgasbehandlung"]
["10","10 06","-","10 06 09*","ölhaltige Abfälle aus der Kühlwasserbehandlung"]
["10","10 06","-","10 06 10","Abfälle aus der Kühlwasserbehandlung mit Ausnahme derjenigen, die unter 10 06 09 fallen"]
["10","10 06","1,40-2,67","10 06 99","Abfälle a. n.g."]
["10","10 07","1,8","10 07 01","Schlacken (Erst- und Zweitschmelze)"]
["10","10 07","-","10 07 02","Krätzen und Abschaum (Erst- und Zweitschmelze)"]
["10","10 07","1,4","10 07 03","feste Abfälle aus der Abgasbehandlung"]
["10","10 07","-","10 07 04","andere Teilchen und Staub"]
["10","10 07","1,8","10 07 05","Schlämme und Filterkuchen aus der Abgasbehandlung"]
["10","10 07","0,9","10 07 07*","ölhaltige Abfälle aus der Kühlwasserbehandlung"]
["10","10 07","-","10 07 08","Abfälle aus der Kühlwasserbehandlung mit Ausnahme derjenigen, die unter 10 07 07 fallen"]
["10","10 07","1,05-2,67","10 07 99","Abfälle a. n.g."]
["10","10 08","1,3","10 08 04","Teilchen und Staub"]
["10","10 08","1,8","10 08 08*","Salzschlacken (Erst- und Zweitschmelze)"]
["10","10 08","1,8","10 08 09","andere Schlacken"]
["10","10 08","1,8","10 08 10*","Krätzen und Abschaum, die entzündlich sind oder in Kontakt mit Wasser entzündliche Gase in gefährlicher Menge abgeben"]
["10","10 08","1,8","10 08 11","Krätzen und Abschaum mit Ausnahme derjenigen, die unter 10 08 10 fallen"]
["10","10 08","-","10 08 12*","teerhaltige Abfälle aus der Anodenherstellung"]
["10","10 08","-","10 08 13","kohlenstoffhaltige Abfälle aus der Anodenherstellung, mit Ausnahme derjenigen, die unter 10 08 12 fallen"]
["10","10 08","-","10 08 14","Anodenschrott"]
["10","10 08","1,4","10 08 15*","Filterstaub, der gefährliche Stoffe enthält"]
["10","10 08","1,4","10 08 16","Filterstaub mit Ausnahme desjenigen, der unter 10 08 15 fällt"]
["10","10 08","1,8","10 08 17*","Schlämme und Filterkuchen aus der Abgasbehandlung, die gefährliche Stoffe enthalten"]
["10","10 08","1,8","10 08 18","Schlämme und Filterkuchen aus der Abgasbehandlung mit Ausnahme derjenigen, die unter 10 08 17 fallen"]
["10","10 08","0,9","10 08 19*","ölhaltige Abfälle aus der Kühlwasserbehandlung"]
["10","10 08","-","10 08 20","Abfälle aus der Kühlwasserbehandlung mit Ausnahme derjenigen, die unter 10 08 19 fallen"]
["10","10 08","1,05-2,67","10 08 99","Abfälle a.n.g."]
["10","10 09","1,8","10 09 03","Ofenschlacke"]
["10","10 09","1,8","10 09 05*","gefährliche Stoffe enthaltende Gießformen und -sande vor dem Gießen"]
["10","10 09","1,8","10 09 06","Gießformen und -sande vor dem Gießen mit Ausnahme derjenigen, die unter 10 09 05 fallen"]
["10","10 09","1,8","10 09 07*","gefährliche Stoffe enthaltende Gießformen und -sande nach dem Gießen"]
["10","10 09","1,8","10 09 08","Gießformen und -sande nach dem Gießen mit Ausnahme derjenigen, die unter 10 09 07 fallen"]
["10","10 09","1,25","10 09 09*","Filterstaub, der gefährliche Stoffe enthält"]
["10","10 09","1,25","10 09 10","Filterstaub mit Ausnahme desjenigen, der unter 10 09 09 fällt"]
["10","10 09","-","10 09 11*","andere Teilchen, die gefährliche Stoffe enthalten"]
["10","10 09","-","10 09 12","Teilchen mit Ausnahme derjenigen, die unter 10 09 11 fallen"]
["10","10 09","-","10 09 13*","Abfälle von Bindemitteln, die gefährliche Stoffe enthalten"]
["10","10 09","-","10 09 14","Abfälle von Bindemitteln mit Ausnahme derjenigen, die unter 10 09 13 fallen"]
["10","10 09","-","10 09 15*","Abfälle aus rissanzeigenden Substanzen, die gefährliche Stoffe enthalten"]
["10","10 09","-","10 09 16","Abfälle aus rissanzeigenden Substanzen mit Ausnahme derjenigen, die unter 10 09 15 fallen"]
["10","10 09","1,50-4,13","10 09 99","Abfälle a.n.g."]
["10","10 10","1,8","10 10 03","Ofenschlacke"]
["10","10 10","1,8","10 10 05*","gefährliche Stoffe enthaltende Gießformen und -sande vor dem Gießen"]
["10","10 10","1,8","10 10 06","Gießformen und -sande vor dem Gießen mit Ausnahme derjenigen, die unter 10 10 05 fallen"]
["10","10 10","1,8","10 10 07*","gefährliche Stoffe enthaltende Gießformen und -sande nach dem Gießen"]
["10","10 10","1,8","10 10 08","Gießformen und -sande nach dem Gießen mit Ausnahme derjenigen, die unter 10 10 07 fallen"]
["10","10 10","1,4","10 10 09*","Filterstaub, der gefährliche Stoffe enthält"]
["10","10 10","-","10 10 10","Filterstaub mit Ausnahme desjenigen, der unter 10 10 09 fällt"]
["10","10 10","-","10 10 11*","andere Teilchen, die gefährliche Stoffe enthalten"]
["10","10 10","-","10 10 12","Teilchen mit Ausnahme derjenigen, die unter 10 10 11 fallen"]
["10","10 10","-","10 10 13*","Abfälle von Bindemitteln, die gefährliche Stoffe enthalten"]
["10","10 10","-","10 10 14","Abfälle von Bindemitteln mit Ausnahme derjenigen, die unter 10 10 13 fallen"]
["10","10 10","-","10 10 15*","Abfälle aus rissanzeigenden Substanzen, die gefährliche Stoffe enthalten"]
["10","10 10","-","10 10 16","Abfälle aus rissanzeigenden Substanzen mit Ausnahme derjenigen, die unter 10 10 15 fallen"]
["10","10 10","1,5","10 10 99","Abfälle a.n.g."]
["10","10 11","0,9","10 11 03","Glasfaserabfall"]
["10","10 11","-","10 11 05","Teilchen und Staub"]
["10","10 11","1,48","10 11 09*","Gemengeabfall mit gefährlichen Stoffen vor dem Schmelzen"]
["10","10 11","1,48","10 11 10","Gemengeabfall vor dem Schmelzen mit Ausnahme desjenigen, der unter 10 11 09 fällt"]
["10","10 11","1,20-1,27","10 11 11*","Glasabfall in kleinen Teilchen und Glasstaub, die Schwermetalle enthalten z.B.aus Elektronenstrahlröhren)"]
["10","10 11","1,20-1,27","10 11 12","Glasabfall mit Ausnahme desjenigen, der unter 10 11 11 fällt"]
["10","10 11","0,95-1,15","10 11 13*","Glaspolier- und Glasschleifschlämme, die gefährliche Stoffe enthalten"]
["10","10 11","0,95-1,15","10 11 14","Glaspolier- und Glasschleifschlämme mit Ausnahme derjenigen, die unter 10 11 13 fallen"]
["10","10 11","1,5","10 11 15*","feste Abfälle aus der Abgasbehandlung, die gefährliche Stoffe enthalten"]
["10","10 11","1,5","10 11 16","feste Abfälle aus der Abgasbehandlung mit Ausnahme derjenigen, die unter 10 11 15 fallen"]
["10","10 11","-","10 11 17*","Schlämme und Filterkuchen aus der Abgasbehandlung, die gefährliche Stoffe enthalten"]
["10","10 11","-","10 11 18","Schlämme und Filterkuchen aus der Abgasbehandlung mit Ausnahme derjenigen, die unter 10 11 17 fallen"]
["10","10 11","-","10 11 19*","feste Abfälle aus der betriebseigenen Abwasserbehandlung, die gefährliche Stoffe enthalten"]
["10","10 11","-","10 11 20","feste Abfälle aus der betriebseigenen Abwasserbehandlung mit Ausnahme derjenigen, die unter 10 11 19 fallen"]
["10","10 11","1,50-1,80","10 11 99","Abfälle a.n.g."]
["10","10 12","1,5","10 12 01","Rohmischungen vor dem Brennen"]
["10","10 12","1,25","10 12 03","Teilchen und Staub"]
["10","10 12","-","10 12 05","Schlämme und Filterkuchen aus der Abgasbehandlung"]
["10","10 12","1,5","10 12 06","verworfene Formen"]
["10","10 12","1,8","10 12 08","Abfälle aus Keramikerzeugnissen, Ziegeln, Fliesen und Steinzeug (nach dem Brennen)"]
["10","10 12","1,5","10 12 09*","feste Abfälle aus der Abgasbehandlung, die gefährliche Stoffe enthalten"]
["10","10 12","1,5","10 12 10","feste Abfälle aus der Abgasbehandlung mit Ausnahme derjenigen, die unter 10 12 09 fallen"]
["10","10 12","1,17-1,45","10 12 11*","Glasurabfälle, die Schwermetalle enthalten"]
["10","10 12","1,17-1,45","10 12 12","Glasurabfälle mit Ausnahme derjenigen, die unter 10 12 11 fallen"]
["10","10 12","-","10 12 13","Schlämme aus der betriebseigenen Abwasserbehandlung"]
["10","10 12","0,40-1,80","10 12 99","Abfälle a.n.g."]
["10","10 13","-","10 13 01","Abfälle von Rohgemenge vor dem Brennen"]
["10","10 13","1,64","10 13 04","Abfälle aus der Kalzinierung und Hydratisierung von Branntkalk"]
["10","10 13","0,34-1,46","10 13 06","Teilchen und Staub (ausser 10 13 12 und 10 13 13)"]
["10","10 13","-","10 13 07","Schlämme und Filterkuchen aus der Abgasbehandlung"]
["10","10 13","1,5","10 13 09*","asbesthaltige Abfälle aus der Herstellung von Asbestzement"]
["10","10 13","1,5","10 13 10","Abfälle aus der Herstellung von Asbestzement mit Ausnahme derjenigen, die unter 10 13 09 fallen"]
["10","10 13","1,7","10 13 11","Abfälle aus der Herstellung anderer Verbundstoffe auf Zementbasis mit Ausnahme derjenigen, die unter 10 13 09 und 10 13 10 fallen"]
["10","10 13","1,5","10 13 12*","feste Abfälle aus der Abgasbehandlung, die gefährliche Stoffe enthalten"]
["10","10 13","1,5","10 13 13","feste Abfälle aus der Abgasbehandlung mit Ausnahme derjenigen, die unter 10 13 12 fallen"]
["10","10 13","1,8","10 13 14","Betonabfälle und Betonschlämme"]
["10","10 13","1,5","10 13 99","Abfälle a.n.g."]
["10","10 14","1,5","10 14 01*","quecksilberhaltige Abfälle aus der Gasreinigung"]
["11","11 01","0,98","11 01 05*","saure Beizlösungen"]
["11","11 01","-","11 01 06*","Säuren a.n.g."]
["11","11 01","1,25","11 01 07*","alkalische Beizlösungen"]
["11","11 01","1,3","11 01 08*","Phosphatierschlämme"]
["11","11 01","1,3","11 01 09*","Schlämme und Filterkuchen, die gefährliche Stoffe enthalten"]
["11","11 01","1,3","11 01 10","Schlämme und Filterkuchen mit Ausnahme derjenigen, die unter 11 01 09 fallen"]
["11","11 01","1,3","11 01 11*","wässrige Spülflüssigkeiten, die gefährliche Stoffe enthalten"]
["11","11 01","1,3","11 01 12","wässrige Spülflüssigkeiten mit Ausnahme derjenigen, die unter 1 01 11 fallen"]
["11","11 01","1,3","11 01 13*","Abfälle aus der Entfettung, die gefährliche Stoffe enthalten"]
["11","11 01","1,3","11 01 14","Abfälle aus der Entfettung mit Ausnahme derjenigen, die unter 11 01 13 fallen"]
["11","11 01","1,10-1,30","11 01 15*","Eluate und Schlämme aus Membransystemen oder Ionenaustauschsystemen, die gefährliche Stoffe enthalten"]
["11","11 01","0,9","11 01 16*","gesättigte oder verbrauchte Ionenaustauscherharze"]
["11","11 01","1,10-1,80","11 01 98*","andere Abfälle, die gefährliche Stoffe enthalten"]
["11","11 01","1,10-1,80","11 01 99","Abfälle a. n. g."]
["11","11 02","1,87","11 02 02*","Schlämme aus der Zink-Hydrometallurgie (einschliesslich Jarosit, Goethit)"]
["11","11 02","1,00-1,20","11 02 03","Abfälle aus der Herstellung von Anoden für wässrige elektrolytische Prozesse"]
["11","11 02","1,05-1,87","11 02 05*","Abfälle aus Prozessen der Kupfer-Hydrometallurgie, die gefährliche Stoffe enthalten"]
["11","11 02","1,05-1,87","11 02 06","Abfälle aus Prozessen der Kupfer-Hydrometallurgie mit Ausnahme derjenigen, die unter 11 02 05 fallen"]
["11","11 02","1,26-2,07","11 02 07*","andere Abfälle, die gefährliche Stoffe enthalten"]
["11","11 02","1,05-1,30","11 02 99","Abfälle a. n. g."]
["11","11 03","1,67","11 03 01*","cyanidhaltige Abfälle"]
["11","11 03","1,67","11 03 02*","andere Abfälle"]
["11","11 05","1,1","11 05 01","Hartzink"]
["11","11 05","1,26","11 05 02","Zinkasche"]
["11","11 05","1,4","11 05 03*","feste Abfälle aus der Abgasbehandlung"]
["11","11 05","-","11 05 04*","gebrauchte Flussmittel"]
["11","11 05","-","11 05 99","Abfälle a. n. g."]
["12","12 01","2","12 01 01","Eisenfeil- und -drehspäne"]
["12","12 01","4,13","12 01 02","Eisenstaub und -teile"]
["12","12 01","2,9","12 01 03","NE-Metallfeil- und -drehspäne"]
["12","12 01","1,1","12 01 04","NE-Metallstaub und -teilchen"]
["12","12 01","0,9","12 01 05","Kunststoffspäne und -drehspäne"]
["12","12 01","0,98","12 01 06*","halogenhaltige Bearbeitungsöle auf Mineralölbasis (ausser Emulsionen und Lösungen)"]
["12","12 01","0,98","12 01 07*","halogenfreie Bearbeitungsöle auf Mineralölbasis (ausser Emulsionen und Lösungen)"]
["12","12 01","0,98","12 01 08*","halogenhaltige Bearbeitungsemulsionen und -lösungen"]
["12","12 01","0,98","12 01 09*","halogenfreie Bearbeitungsemulsionen und -lösungen"]
["12","12 01","0,98-0,99","12 01 10*","synthetische Bearbeitungsöle"]
["12","12 01","0,95","12 01 12*","gebrauchte Wachse und Fette"]
["12","12 01","1,30-3,43","12 01 13","Schweißabfälle"]
["12","12 01","0,95-1,50","12 01 14*","Bearbeitungsschlämme, die gefährliche Stoffe enthalten"]
["12","12 01","0,95-1,50","12 01 15","Bearbeitungsschlämme mit Ausnahme derjenigen, die unter 12 01 14 fallen"]
["12","12 01","1,7","12 01 16*","Strahlmittelabfälle, die gefährliche Stoffe enthalten"]
["12","12 01","1,7","12 01 17","Strahlmittelabfälle mit Ausnahme derjenigen, die unter 12 01 16 fallen"]
["12","12 01","1,10-1,15","12 01 18*","ölhaltige Metallschlämme (Schleif-, Hon- und Läppschlämme)"]
["12","12 01","0,98","12 01 19*","biologisch leicht abbaubare Bearbeitungsöle"]
["12","12 01","1,10-1,15","12 01 20*","gebrauchte Hon- und Schleifmittel, die gefährliche Stoffe enthalten"]
["12","12 01","1,10-1,15","12 01 21","gebrauchte Hon- und Schleifmittel mit Ausnahme derjenigen, die unter 12 01 20 fallen"]
["12","12 01","0,35-4,68","12 01 99","Abfälle a.n.g."]
["12","12 03","1,1","12 03 01*","wässrige Waschflüssigkeiten"]
["12","12 03","0,92","12 03 02*","Abfälle aus der Dampfentfettung"]
["13","13 01","1,2","13 01 01*","Hydrauliköle, die PCB enthalten"]
["13","13 01","0,95","13 01 04*","chlorierte Emulsionen"]
["13","13 01","0,95","13 01 05*","nichtchlorierte Emulsionen"]
["13","13 01","0,95","13 01 09*","chlorierte Hydrauliköle auf Mineralölbasis"]
["13","13 01","0,95","13 01 10*","nichtchlorierte Hydrauliköle auf Mineralölbasis"]
["13","13 01","-","13 01 11*","synthetische Hydrauliköle"]
["13","13 01","-","13 01 12*","biologisch leicht abbaubare Hydrauliköle"]
["13","13 01","0,9","13 01 13*","andere Hydrauliköle"]
["13","13 02","0,96","13 02 04*","chlorierte Maschinen-, Getriebe- und Schmieröle auf Mineralölbasis"]
["13","13 02","0,95","13 02 05*","nichtchlorierte Maschinen-, Getriebe- und Schmieröle auf Mineralölbasis"]
["13","13 02","0,99","13 02 06*","synthetische Maschinen-, Getriebe- und Schmieröle"]
["13","13 02","0,99","13 02 07*","biologisch leicht abbaubare Maschinen-, Getriebe- und Schmieröle"]
["13","13 02","0,90-0,99","13 02 08*","andere Maschinen-, Getriebe- und Schmieröle"]
["13","13 03","1,2","13 03 01*","Isolier- und Wärmeübertragungsöle, die PCB enthalten"]
["13","13 03","0,95","13 03 06*","chlorierte Isolier- und Wärmeübertragungsöle auf Mineralölbasis mit Ausnahme derjenigen, die unter 13 03 01 fallen"]
["13","13 03","0,95","13 03 07*","nichtchlorierte Isolier- und Wärmeübertragungsöle auf Mineralölbasis"]
["13","13 03","0,95","13 03 08*","synthetische Isolier- und Wärmeübertragungsöle"]
["13","13 03","0,95","13 03 09*","biologisch leicht abbaubare Isolier- und Wärmeübertragungsöle"]
["13","13 03","0,90-0,95","13 03 10*","andere Isolier- und Wärmeübertragungsöle"]
["13","13 04","0,95","13 04 01*","Bilgenöle aus der Binnenschifffahrt"]
["13","13 04","0,95","13 04 02*","Bilgenöle aus Molenablaufkanälen"]
["13","13 04","0,95","13 04 03*","Bilgenöle aus der übrigen Schifffahrt"]
["13","13 05","1,2","13 05 01*","feste Abfälle aus Sandfanganlagen und Öl- /Wasserabscheidern"]
["13","13 05","1,2","13 05 02*","Schlämme aus Öl/Wasserabscheidern"]
["13","13 05","1,2","13 05 03*","Schlämme aus Einlaufschächten"]
["13","13 05","0,9","13 05 06*","Öle aus Öl-/Wasserabscheidern"]
["13","13 05","0,9","13 05 07*","öliges Wasser aus Öl-/Wasserabscheidern"]
["13","13 05","0,9-1,2","13 05 08*","Abfallgemische aus Sandfanganlagen und Öl- /Wasserabscheidern"]
["13","13 07","0,9","13 07 01*","Heizöl und Diesel"]
["13","13 07","0,9","13 07 02*","Benzin"]
["13","13 07","0,9","13 07 03*","andere Brennstoffe (einschliesslich Gemische)"]
["13","13 08","-","13 08 01*","Schlämme oder Emulsionen aus Entsalzern"]
["13","13 08","0,95-1,00","13 08 02*","andere Emulsionen"]
["13","13 08","-","13 08 99*","Abfälle a. n. g."]
["14","14 06","0,9","14 06 01*","Fluorchlorkohlenwasserstoffe, H-FCKW, H-FKW"]
["14","14 06","0,90-1,51","14 06 02*","andere halogenierte Lösemittel und Lösemittelgemische"]
["14","14 06","0,79-1,20","14 06 03*","andere Lösemittel und Lösemittelgemische"]
["14","14 06","1,05-1,14","14 06 04*","Schlämme oder feste Abfälle, die halogenierte Lösemittel enthalten"]
["14","14 06","1,05-1,14","14 06 05*","Schlämme oder feste Abfälle, die andere Lösemittel enthalten"]
["15","15 01","0,13-0,17","15 01 01","Verpackungen aus Papier und Pappe"]
["15","15 01","0,11","15 01 02","Verpackungen aus Kunststoff"]
["15","15 01","0,58","15 01 03","Verpackungen aus Holz"]
["15","15 01","0,70-1,50","15 01 04","Verpackungen aus Metall"]
["15","15 01","0,40-0,50","15 01 05","Verbundverpackungen"]
["15","15 01","0,11-0,18","15 01 06","gemischte Verpackungen"]
["15","15 01","0,3","15 01 07","Verpackungen aus Glas"]
["15","15 01","-","15 01 09","Verpackungen aus Textilien"]
["15","15 01","0,58-0,70","15 01 10*","Verpackungen, die Rückstände gefährlicher Stoffe enthalten oder durch gefährliche Stoffe verunreinigt sind"]
["15","15 01","-","15 01 11*","Verpackungen aus Metall, die eine gefährliche feste poröse Matrix (z. B. Asbest) enthalten, einschliesslich geleerter Druckbehältnisse"]
["15","15 02","0,95","15 02 02*","Aufsaug- und Filtermaterialien (einschliesslich Ölfilter a. n. g.), Wischtücher und Schutzkleidung, die durch gefährliche Stoffe verunreinigt sind"]
["15","15 02","0,40-0,95","15 02 03","Aufsaug- und Filtermaterialien, Wischtücher und Schutzkleidung mit Ausnahme derjenigen, die unter 15 02 02 fallen"]
["16","16 01","0,2","16 01 03","Altreifen"]
["16","16 01","-","16 01 04*","Altfahrzeuge"]
["16","16 01","1","16 01 06","Altfahrzeuge, die weder Flüssigkeiten noch andere gefährliche Bestandteile enthalten"]
["16","16 01","0,95","16 01 07*","Ölfilter"]
["16","16 01","1,5","16 01 08*","quecksilberhaltige Bestandteile"]
["16","16 01","-","16 01 09*","Bestandteile, die PCB enthalten"]
["16","16 01","-","16 01 10*","explosive Bauteile (z. B. aus Airbags)"]
["16","16 01","-","16 01 11*","asbesthaltige Bremsbeläge"]
["16","16 01","-","16 01 12","Bremsbeläge mit Ausnahme derjenigen, die unter 16 01 11 fallen"]
["16","16 01","0,8","16 01 13*","Bremsflüssigkeiten"]
["16","16 01","-","16 01 14*","Frostschutzmittel, die gefährliche Stoffe enthalten"]
["16","16 01","-","16 01 15","Frostschutzmittel mit Ausnahme derjenigen, die unter 16 01 14 fallen"]
["16","16 01","0,7","16 01 16","Flüssiggasbehälter"]
["16","16 01","-","16 01 17","Eisenmetalle"]
["16","16 01","-","16 01 18","Nichteisenmetalle"]
["16","16 01","-","16 01 19","Kunststoffe"]
["16","16 01","-","16 01 20","Glas"]
["16","16 01","-","16 01 21*","gefährliche Bauteile mit Ausnahme derjenigen, die unter 16 01 07 bis 16 01 11, 16 01 13 und 16 01 14 fallen"]
["16","16 01","-","16 01 22","Bauteile a.n.g."]
["16","16 01","0,6","16 01 99","Abfälle a.n.g."]
["16","16 02","0,95","16 02 09*","Transformatoren und Kondensatoren, die PCB enthalten"]
["16","16 02","-","16 02 10*","gebrauchte Geräte, die PCB enthalten oder damit verunreinigt sind, mit Ausnahme derjenigen, die unter 16 02 09 fallen"]
["16","16 02","-","16 02 11*","gebrauchte Geräte, die teil- und vollhalogenierte Fluorchlorkohlenwasserstoffe enthalten"]
["16","16 02","-","16 02 12*","gebrauchte Geräte, die freies Asbest enthalten"]
["16","16 02","-","16 02 13*","gefährliche Bestandteile enthaltende gebrauchte Geräte mit Ausnahme derjenigen, die unter 16 02 09 bis 16 02 12 fallen"]
["16","16 02","-","16 02 14","gebrauchte Geräte mit Ausnahme derjenigen, die unter 16 02 09 bis 16 02 13 fallen"]
["16","16 02","-","16 02 15*","aus gebrauchten Geräten entfernte gefährliche Bestandteile"]
["16","16 02","-","16 02 16","aus gebrauchten Geräten entfernte Bestandteile mit Ausnahme derjenigen, die unter 16 02 15 fallen"]
["16","16 03","-","16 03 03*","anorganische Abfälle, die gefährliche Stoffe enthalten"]
["16","16 03","-","16 03 04","anorganische Abfälle mit Ausnahme derjenigen, die unter 16 03 03 fallen"]
["16","16 03","-","16 03 05*","organische Abfälle, die gefährliche Stoffe enthalten"]
["16","16 03","-","16 03 06","organische Abfälle mit Ausnahme derjenigen, die unter 16 03 05 fallen"]
["16","16 04","0,6","16 04 01*","Munition"]
["16","16 04","0,4","16 04 02*","Feuerwerkskörperabfälle"]
["16","16 04","0,9","16 04 03*","andere Explosivabfälle"]
["16","16 05","0,7","16 05 04*","gefährliche Stoffe enthaltende Gase in Druckbehältern (einschliesslich Halonen)"]
["16","16 05","0,7","16 05 05","Gase in Druckbehältern mit Ausnahme derjenigen, die unter 16 05 04 fallen"]
["16","16 05","0,90-1,30","16 05 06*","Laborchemikalien, die aus gefährlichen Stoffen bestehen oder solche enthalten, einschliesslich Gemische von Laborchemikalien"]
["16","16 05","1,3","16 05 07*","gebrauchte anorganische Chemikalien, die aus gefährlichen Stoffen bestehen oder solche enthalten"]
["16","16 05","0,9","16 05 08*","gebrauchte organische Chemikalien, die aus gefährlichen Stoffen bestehen oder solche enthalten"]
["16","16 05","0,90-1,30","16 05 09","gebrauchte Chemikalien mit Ausnahme derjenigen, die unter 16 05 06, 16 05 07 oder 16 05 08 fallen"]
["16","16 06","4,3","16 06 01*","Bleibatterien"]
["16","16 06","4","16 06 02*","Ni-Cd-Batterien"]
["16","16 06","4","16 06 03*","Quecksilber enthaltende Batterien"]
["16","16 06","4","16 06 04","Alkalibatterien (ausser 16 06 03)"]
["16","16 06","-","16 06 05","andere Batterien und Akkumulatoren"]
["16","16 06","1,1","16 06 06*","getrennt gesammelte Elektrolyte aus Batterien und Akkumulatoren"]
["16","16 07","0,9-1,2","16 07 08*","ölhaltige Abfälle"]
["16","16 07","1,03-1,05","16 07 09*","Abfälle, die sonstige gefährliche Stoffe enthalten"]
["16","16 07","-","16 07 99","Abfälle a.n.g."]
["16","16 08","1","16 08 01","gebrauchte Katalysatoren, die Gold, Silber, Rhenium, Rhodium, Palladium, Iridium oder Platin enthalten (ausser 16 08 07)"]
["16","16 08","1","16 08 02*","gebrauchte Katalysatoren, die gefährliche Übergangsmetalle oder deren Verbindungen enthalten"]
["16","16 08","1","16 08 03","gebrauchte Katalysatoren, die Übergangsmetalle oder deren Verbindungen enthalten, a.n.g."]
["16","16 08","1","16 08 04","gebrauchte Katalysatoren von Crackprozessen (ausser 16 08 07)"]
["16","16 08","1","16 08 05*","gebrauchte Katalysatoren, die Phosphorsäure enthalten"]
["16","16 08","1","16 08 06*","gebrauchte Flüssigkeiten, die als Katalysatoren verwendet wurden"]
["16","16 08","1","16 08 07*","gebrauchte Katalysatoren, die durch gefährliche Stoffe verunreinigt sind"]
["16","16 09","-","16 09 01*","Permanganate, z. B. Kaliumpermanganat"]
["16","16 09","-","16 09 02*","Chromate, z. B. Kaliumchromat, Kalium- oder Natriumdichromat"]
["16","16 09","-","16 09 03*","Peroxide, z. B. Wasserstoffperoxid"]
["16","16 09","1,03","16 09 04*","oxidierende Stoffe a. n. g."]
["16","16 10","1,00-1,03","16 10 01*","wässrige flüssige Abfälle, die gefährliche Stoffe enthalten"]
["16","16 10","1,00-1,03","16 10 02","wässrige flüssige Abfälle mit Ausnahme derjenigen, die unter 16 10 01 fallen"]
["16","16 10","1,00-1,03","16 10 03*","wässrige Konzentrate, die gefährliche Stoffe enthalten"]
["16","16 10","1,00-1,03","16 10 04","wässrige Konzentrate mit Ausnahme derjenigen, die unter 16 10 03 fallen"]
["16","16 11","1,8","16 11 01*","Auskleidungen und feuerfeste Materialien auf Kohlenstoffbasis aus metallurgischen Prozessen, die gefährliche Stoffe enthalten"]
["16","16 11","1,8","16 11 02","Auskleidungen und feuerfeste Materialien auf Kohlenstoffbasis aus metallurgischen Prozessen mit Ausnahme derjenigen, die unter 16 11 01 fallen"]
["16","16 11","1,8","16 11 03*","andere Auskleidungen und feuerfeste Materialien aus metallurgischen Prozessen, die gefährliche Stoffe enthalten"]
["16","16 11","1,8","16 11 04","Auskleidungen und feuerfeste Materialien aus metallurgischen Prozessen mit Ausnahme derjenigen, die unter 16 11 03 fallen"]
["16","16 11","1,8","16 11 05*","Auskleidungen und feuerfeste Materialien aus nichtmetallurgischen Prozessen, die gefährliche Stoffe enthalten"]
["16","16 11","1,8","16 11 06","Auskleidungen und feuerfeste Materialien aus nichtmetallurgischen Prozessen mit Ausnahme derjenigen, die unter 16 11 05 fallen"]
["17","17 01","1,3","17 01 01","Beton"]
["17","17 01","1,3","17 01 02","Ziegel"]
["17","17 01","1,3","17 01 03","Fliesen, Ziegel und Keramik"]
["17","17 01","1,3","17 01 06*","Gemische aus oder getrennte Fraktionen von Beton, Ziegeln, Fliesen und Keramik, die gefährliche Stoffe enthalten"]
["17","17 01","1,3","17 01 07","Gemische aus Beton, Ziegeln, Fliesen und Keramik mit Ausnahme derjenigen, die unter 17 01 06 fallen(Bauschutt)"]
["17","17 02","0,5","17 02 01","Holz"]
["17","17 02","1,2","17 02 02","Glas"]
["17","17 02","0,6","17 02 03","Kunststoff"]
["17","17 02","-","17 02 04*","Glas, Kunststoff und Holz, die gefährliche Stoffe enthalten oder durch gefährliche Stoffe verunreinigt sind"]
["17","17 03","1,8","17 03 01*","kohlenteerhaltige Bitumengemische (Asphalt"]
["17","17 03","1,8","17 03 02","Bitumengemische mit Ausnahme derjenigen, die unter 17 03 01 fallen (Asphalt)"]
["17","17 03","0,70-0,92","17 03 03*","Kohlenteer und teerhaltige Produkte"]
["17","17 04","2,67","17 04 01","Kupfer, Bronze, Messing"]
["17","17 04","1,73","17 04 02","Aluminium"]
["17","17 04","2,9","17 04 03","Blei"]
["17","17 04","3,43","17 04 04","Zink"]
["17","17 04","2","17 04 05","Eisen und Stahl"]
["17","17 04","2,67","17 04 06","Zinn"]
["17","17 04","-","17 04 07","gemischte Metalle"]
["17","17 04","1,73-3,43","17 04 09*","Metallabfälle, die durch gefährliche Stoffe verunreinigt sind"]
["17","17 04","3,4","17 04 10*","Kabel, die Öl, Kohlenteer oder andere gefährliche Stoffe enthalten"]
["17","17 04","3,4","17 04 11","Kabel mit Ausnahme derjenigen, die unter 17 04 10 fallen"]
["17","17 05","1,8","17 05 03*","Boden und Steine, die gefährliche Stoffe enthalten"]
["17","17 05","1,8","17 05 04","Boden und Steine mit Ausnahme derjenigen, die unter 17 05 03 fallen"]
["17","17 05","1,8","17 05 05*","Baggergut, das gefährliche Stoffe enthält"]
["17","17 05","1,8","17 05 06","Baggergut mit Ausnahme desjenigen, das unter 17 05 05 fällt"]
["17","17 05","1,8","17 05 07*","Gleisschotter, der gefährliche Stoffe enthält"]
["17","17 05","1,8","17 05 08","Gleisschotter mit Ausnahme desjenigen, der unter 17 05 07 fällt"]
["17","17 06","1,5","17 06 01*","Dämmmaterial, das Asbest enthält"]
["17","17 06","0,035- 0,1","17 06 03*","anderes Dämmmaterial, das aus gefährlichen Stoffen besteht oder solche Stoffe enthält"]
["17","17 06","0,25-1,4","17 06 04","Dämmmaterial mit Ausnahme desjenigen, das unter 17 06 01 und 17 06 03 fällt"]
["17","17 06","1,5","17 06 05*","asbesthaltige Baustoffe"]
["17","17 08","0,34","17 08 01*","Baustoffe auf Gipsbasis, die durch gefährliche Stoffe verunreinigt sind"]
["17","17 08","0,34","17 08 02","Baustoffe auf Gipsbasis mit Ausnahme derjenigen, die unter 17 08 01 fallen"]
["17","17 09","-","17 09 01*","Bau- und Abbruchabfälle, die Quecksilber enthalten"]
["17","17 09","-","17 09 02*","Bau- und Abbruchabfälle, die PCB enthalten (z. B. PCB-haltige Dichtungsmassen, PCB-haltige Bodenbeläge auf Harzbasis, PCB-haltige Isolierverglasungen, PCB-haltige Kondensatoren)"]
["17","17 09","-","17 09 03*","sonstige Bau- und Abbruchabfälle (einschliesslich gemischte Abfälle), die gefährliche Stoffe enthalten"]
["17","17 09","0,6","17 09 04","gemischte Bau- und Abbruchabfälle mit Ausnahme derjenigen, die unter 17 09 01, 17 09 02 und 17 09 03 fallen"]
["18","18 01","0,5","18 01 01","spitze oder scharfe Gegenstände (ausser 18 01 03)"]
["18","18 01","0,55","18 01 02","Körperteile und Organe, einschliesslich Blutbeutel und Blutkonserven (ausser 18 01 03)"]
["18","18 01","0,5","18 01 03*","Abfälle, an deren Sammlung und Entsorgung aus infektionspräventiver Sicht besondere Anforderungen gestellt werden"]
["18","18 01","0,5","18 01 04","Abfälle, an deren Sammlung und Entsorgung aus infektionsprä-ventiver Sicht keine besonderen Anforderungen gestellt werden (z. B. Wund- und Gipsverbände, Wäsche, Einwegkleidung, Windeln)"]
["18","18 01","0,5","18 01 06*","Chemikalien, die aus gefährlichen Stoffen bestehen oder solche enthalten"]
["18","18 01","0,5","18 01 07","Chemikalien mit Ausnahme derjenigen, die unter 18 01 06 fallen"]
["18","18 01","0,5","18 01 08*","zytotoxische und zytostatische Arzneimittel"]
["18","18 01","0,5","18 01 09","Arzneimittel mit Ausnahme derjenigen, die unter 18 01 08 fallen"]
["18","18 01","0,50-1,50","18 01 10*","Amalgamabfälle aus der Zahnmedizin"]
["18","18 02","0,5","18 02 01","spitze oder scharfe Gegenstände mit Ausnahme derjenigen, die unter 18 02 02 fallen"]
["18","18 02","1,2","18 02 02*","Abfälle, an deren Sammlung und Entsorgung aus infektionspräventiver Sicht besondere Anforderungen gestellt werden"]
["18","18 02","1,1","18 02 03","Abfälle, an deren Sammlung und Entsorgung aus infektions-präventiver Sicht keine besonderen Anforderungen gestellt werden"]
["18","18 02","0,5","18 02 05*","Chemikalien, die aus gefährlichen Stoffen bestehen oder solche enthalten"]
["18","18 02","0,5","18 02 06","Chemikalien mit Ausnahme derjenigen, die unter 18 02 05 fallen"]
["18","18 02","-","18 02 07*","zytotoxische und zytostatische Arzneimittel"]
["18","18 02","-","18 02 08","Arzneimittel mit Ausnahme derjenigen, die unter 18 02 07 fallen"]
["19","19 01","2","19 01 02","Eisenteile, aus der Rost- und Kesselasche entfernt"]
["19","19 01","1,1","19 01 05*","Filterkuchen aus der Abgasbehandlung"]
["19","19 01","1","19 01 06*","wässrige flüssige Abfälle aus der Abgasbehandlung und andere wässrige flüssige Abfälle"]
["19","19 01","1,1","19 01 07*","feste Abfälle aus der Abgasbehandlung"]
["19","19 01","1,1","19 01 10*","gebrauchte Aktivkohle aus der Abgasbehandlung"]
["19","19 01","0,9","19 01 11*","Rost- und Kesselaschen sowie Schlacken, die gefährliche Stoffe enthalten"]
["19","19 01","0,9","19 01 12","Rost- und Kesselaschen sowie Schlacken mit Ausnahme derjenigen, die unter 19 01 11 fallen"]
["19","19 01","0,9","19 01 13*","Filterstaub, der gefährliche Stoffe enthält"]
["19","19 01","0,9","19 01 14","Filterstaub mit Ausnahme desjenigen, der unter 19 01 13 fällt"]
["19","19 01","0,9","19 01 15*","Kesselstaub, der gefährliche Stoffe enthält"]
["19","19 01","0,9","19 01 16","Kesselstaub mit Ausnahme desjenigen, der unter 19 01 15 fällt"]
["19","19 01","1,1","19 01 17*","Pyrolyseabfälle, die gefährliche Stoffe enthalten"]
["19","19 01","-","19 01 18","Pyrolyseabfälle mit Ausnahme derjenigen, die unter 19 01 17 fallen"]
["19","19 01","-","19 01 19","Sande aus der Wirbelschichtfeuerung"]
["19","19 01","-","19 01 99","Abfälle a.n.g."]
["19","19 02","1,5","19 02 03","vorgemischte Abfälle, die ausschliesslich aus nichtgefährlichen Abfällen bestehen"]
["19","19 02","-","19 02 04*","vorgemischte Abfälle, die wenigstens einen gefährlichen Abfall enthalten"]
["19","19 02","1,2","19 02 05*","Schlämme aus der physikalisch-chemischen Behandlung, die gefährliche Stoffe enthalten"]
["19","19 02","1,2","19 02 06","Schlämme aus der physikalisch-chemischen Behandlung mit Ausnahme derjenigen, die unter 19 02 05 fallen"]
["19","19 02","0,9","19 02 07*","Öl und Konzentrate aus Abtrennprozessen"]
["19","19 02","-","19 02 08*","flüssige brennbare Abfälle, die gefährliche Stoffe enthalten"]
["19","19 02","-","19 02 09*","feste brennbare Abfälle, die gefährliche Stoffe enthalten"]
["19","19 02","-","19 02 10","brennbare Abfälle mit Ausnahme derjenigen, die unter 19 02 08 und 19 02 09 fallen"]
["19","19 02","-","19 02 11*","sonstige Abfälle, die gefährliche Stoffe enthalten"]
["19","19 02","-","19 02 99","Abfälle a. n. g."]
["19","19 03","-","19 03 04*","als gefährlich eingestufte teilweise stabilisierte Abfälle"]
["19","19 03","-","19 03 05","stabilisierte Abfälle mit Ausnahme derjenigen, die unter 19 03 04 fallen"]
["19","19 03","-","19 03 06*","als gefährlich eingestufte verfestigte Abfälle"]
["19","19 03","-","19 03 07","verfestigte Abfälle mit Ausnahme derjenigen, die unter 19 03 06 fallen"]
["19","19 04","-","19 04 01","verglaste Abfälle"]
["19","19 04","1,5","19 04 02*","Filterstaub und andere Abfälle aus der Abgasbehandlung"]
["19","19 04","-","19 04 03*","nicht verglaste Festphase"]
["19","19 04","-","19 04 04","wässrige flüssige Abfälle aus dem Tempern"]
["19","19 05","-","19 05 01","nicht kompostierte Fraktion von Siedlungs- und ähnlichen Abfällen"]
["19","19 05","-","19 05 02","nicht kompostierte Fraktion von tierischen und pflanzlichen Abfällen"]
["19","19 05","-","19 05 03","nicht spezifikationsgerechter Kompost"]
["19","19 05","-","19 05 99","Abfälle a.n.g."]
["19","19 06","-","19 06 03","Flüssigkeiten aus der anaeroben Behandlung von Siedlungsabfällen"]
["19","19 06","-","19 06 04","Gärrückstand/-schlamm aus der anaeroben Behandlung von Siedlungsabfällen"]
["19","19 06","1","19 06 05","Flüssigkeiten aus der anaeroben Behandlung von tierischen und pflanzlichen Abfällen"]
["19","19 06","-","19 06 06","Gärrückstand/-schlamm aus der anaeroben Behandlung von tierischen und pflanzlichen Abfällen"]
["19","19 06","-","19 06 99","Abfälle a.n.g."]
["19","19 07","1","19 07 02*","Deponiesickerwasser, das gefährliche Stoffe enthält"]
["19","19 07","1","19 07 03","Deponiesickerwasser mit Ausnahme desjenigen, das unter 19 07 02 fällt"]
["19","19 08","0,8","19 08 01","Sieb- und Rechenrückstände"]
["19","19 08","1,4","19 08 02","Sandfangrückstände"]
["19","19 08","1,2","19 08 05","Schlämme aus der Behandlung von kommunalem Abwasser"]
["19","19 08","0,9","19 08 06*","gesättigte oder verbrauchte Ionenaustauscherharze"]
["19","19 08","1,10-1,30","19 08 07*","Lösungen und Schlämme aus der Regeneration von Ionenaustauschern"]
["19","19 08","-","19 08 08*","schwermetallhaltige Abfälle aus Membransystemen"]
["19","19 08","0,93","19 08 09*","Fett- und Ölmischungen aus Ölabscheidern, die ausschliesslich Speiseöle und -fette enthalten"]
["19","19 08","0,93-1,52","19 08 10*","Fett- und Ölmischungen aus Ölabscheidern mit Ausnahme derjenigen, die unter 19 08 09 fallen"]
["19","19 08","1,52","19 08 11*","Schlämme aus der biologischen Behandlung von industriellem Abwasser, die gefährliche Stoffe enthalten"]
["19","19 08","1,52","19 08 12","Schlämme aus der biologischen Behandlung von industriellem Abwasser mit Ausnahme derjenigen, die unter 19 08 11 fallen"]
["19","19 08","1,52","19 08 13*","Schlämme, die gefährliche Stoffe aus einer anderen Behandlung von industriellem Abwasser enthalten"]
["19","19 08","1,52","19 08 14","Schlämme aus einer anderen Behandlung von industriellem Abwasser mit Ausnahme derjenigen, die unter 19 08 13 fallen"]
["19","19 08","1,1","19 08 99","Abfälle a.n.g."]
["19","19 09","0,5","19 09 01","feste Abfälle aus der Erstfiltration und Siebrückstände"]
["19","19 09","1,12","19 09 02","Schlämme aus der Wasserklärung"]
["19","19 09","1,1","19 09 03","Schlämme aus der Dekarbonatisierung"]
["19","19 09","0,8","19 09 04","gebrauchte Aktivkohle"]
["19","19 09","0,8","19 09 05","gesättigte oder gebrauchte Ionenaustauscherharze"]
["19","19 09","1,10-1,30","19 09 06","Lösungen und Schlämme aus der Regeneration von Ionenaustauschern"]
["19","19 09","1,3","19 09 99","Abfälle a.n.g."]
["19","19 10","0,3","19 10 01","Eisen und Stahlabfälle"]
["19","19 10","0,3","19 10 02","NE-Metall-Abfälle"]
["19","19 10","0,3","19 10 03*","Schredderleichtfraktionen und Staub, die gefährliche Stoffe enthalten"]
["19","19 10","0,3","19 10 04","Schredderleichtfraktionen und Staub mit Ausnahme derjenigen, die unter 19 10 03 fallen"]
["19","19 10","0,3","19 10 05*","andere Fraktionen, die gefährliche Stoffe enthalten"]
["19","19 10","0,3","19 10 06","andere Fraktionen mit Ausnahme derjenigen, die unter 19 10 05 fallen"]
["19","19 11","0,70-1,60","19 11 01*","gebrauchte Filtertone"]
["19","19 11","1,2","19 11 02*","Säureteere"]
["19","19 11","1","19 11 03*","wässrige flüssige Abfälle"]
["19","19 11","-","19 11 04*","Abfälle aus der Brennstoffreinigung mit Basen"]
["19","19 11","-","19 11 05*","Schlämme aus der betriebseigenen Abwasserbehandlung, die gefährliche Stoffe enthalten"]
["19","19 11","-","19 11 06","Schlämme aus der betriebseigenen Abwasserbehandlung mit Ausnahme derjenigen, die unter 19 11 05 fallen"]
["19","19 11","-","19 11 07*","Abfälle aus der Abgasreinigung"]
["19","19 11","1,15","19 11 99","Abfälle a. n. g."]
["19","19 12","0,3","19 12 01","Papier und Pappe"]
["19","19 12","0,58","19 12 02","Eisenmetalle"]
["19","19 12","0,58","19 12 03","Nichteisenmetalle"]
["19","19 12","0,3","19 12 04","Kunststoff und Gummi"]
["19","19 12","-","19 12 05","Glas"]
["19","19 12","0,58","19 12 06*","Holz, das gefährliche Stoffe enthält"]
["19","19 12","0,58","19 12 07","Holz mit Ausnahme desjenigen, das unter 19 12 06 fällt"]
["19","19 12","-","19 12 08","Textilien"]
["19","19 12","1,8","19 12 09","Mineralien (z. B. Sand, Steine)"]
["19","19 12","","19 12 10","brennbare Abfälle (Brennstoffe aus Abfällen)"]
["19","19 12","0,58","19 12 11*","sonstige Abfälle (einschliesslich Materialmischungen) aus der mechanischen Behandlung von Abfällen, die gefährliche Stoffe enthalten"]
["19","19 12","0,40-0,50","19 12 12","sonstige Abfälle (einschliesslich Materialmischungen) aus der mechanischen Behandlung von Abfällen mit Ausnahme derjenigen, die unter 19 12 11 fallen"]
["19","19 13","1,8","19 13 01*","feste Abfälle aus der Sanierung von Böden, die gefährliche Stoffe enthalten"]
["19","19 13","1,8","19 13 02","feste Abfälle aus der Sanierung von Böden mit Ausnahme derjenigen, die unter 19 13 01 fallen"]
["19","19 13","1,8","19 13 03*","Schlämme aus der Sanierung von Böden, die gefährliche Stoffe enthalten"]
["19","19 13","-","19 13 04","Schlämme aus der Sanierung von Böden mit Ausnahme derjenigen, die unter 19 13 03 fallen"]
["19","19 13","-","19 13 05*","Schlämme aus der Sanierung von Grundwasser, die gefährliche Stoffe enthalten"]
["19","19 13","-","19 13 06","Schlämme aus der Sanierung von Grundwasser mit Ausnahme derjenigen, die unter 19 13 05 fallen"]
["19","19 13","-","19 13 07*","wässrige flüssige Abfälle und wässrige Konzentrate aus der Sanierung von Grundwasser, die gefährliche Stoffe enthalten"]
["19","19 13","-","19 13 08","wässrige flüssige Abfälle und wässrige Konzentrate aus der Sanierung von Grundwasser mit Ausnahme derjenigen, die unter 19 13 07 fallen"]
["20","20 01","0,13-0,17","20 01 01","Papier und Pappe"]
["20","20 01","1,2","20 01 02","Glas"]
["20","20 01","0,6","20 01 08","biologisch abbaubare Küchen- und Kantinenabfälle"]
["20","20 01","0,4","20 01 10","Bekleidung"]
["20","20 01","0,4","20 01 11","Textilien"]
["20","20 01","0,90-1,07","20 01 13*","Lösemittel"]
["20","20 01","-","20 01 14*","Säuren"]
["20","20 01","-","20 01 15*","Laugen"]
["20","20 01","0,97","20 01 17*","Fotochemikalien"]
["20","20 01","0,76","20 01 19*","Pestizide"]
["20","20 01","0,63-1,27j","20 01 21*","Leuchtstoffröhren und andere quecksilberhaltige Abfälle"]
["20","20 01","-","20 01 23*","gebrauchte Geräte, die Fluorchlorkohlenwasserstoffe enthalten"]
["20","20 01","0,60-0,95","20 01 25","Speiseöle und -fette"]
["20","20 01","0,95","20 01 26*","Öle und Fette mit Ausnahme derjenigen, die unter 20 01 25 fallen"]
["20","20 01","1,15","20 01 27*","Farben, Druckfarben, Klebstoffe und Kunstharze, die gefährliche Stoffe enthalten"]
["20","20 01","1,15","20 01 28","Farben, Druckfarben, Klebstoffe und Kunstharze mit Ausnahme derjenigen, die unter 20 01 27 fallen"]
["20","20 01","1,05","20 01 29*","Reinigungsmittel, die gefährliche Stoffe enthalten"]
["20","20 01","1,05","20 01 30","Reinigungsmittel mit Ausnahme derjenigen, die unter 20 01 29 fallen"]
["20","20 01","0,5","20 01 31*","zytotoxische und zytostatische Arzneimittel"]
["20","20 01","0,5","20 01 32","Arzneimittel mit Ausnahme derjenigen, die unter 20 01 31 fallen"]
["20","20 01","4,3","20 01 33*","Batterien und Akkumulatoren, die unter 16 06 01, 16 06 02 oder 16 06 03 fallen, sowie gemischte Batterien und Akkumulatoren, die solche Batterien enthalten"]
["20","20 01","4,3","20 01 34","Batterien und Akkumulatoren mit Ausnahme derjenigen, die unter 20 01 33 fallen"]
["20","20 01","-","20 01 35*","gebrauchte elektrische und elektronische Geräte, die gefährliche Bauteile enthalten, mit Ausnahme derjenigen, die unter 20 01 21 und 20 01 23 fallen"]
["20","20 01","-","20 01 36","gebrauchte elektrische und elektronische Geräte mit Ausnahme derjenigen, die unter 20 01 21, 20 01 23 und 20 01 35 fallen"]
["20","20 01","0,48","20 01 37*","Holz, das gefährliche Stoffe enthält"]
["20","20 01","0,48","20 01 38","Holz mit Ausnahme desjenigen, das unter 20 01 37 fällt"]
["20","20 01","0,58-2,00","20 01 39","Kunststoffe"]
["20","20 01","0,006-2,0","20 01 40","Metalle"]
["20","20 01","-","20 01 41","Abfälle aus der Reinigung von Schornsteinen"]
["20","20 01","-","20 01 99","sonstige Fraktionen a. n. g."]
["20","20 02","0,4","20 02 01","biologisch abbaubare Abfälle"]
["20","20 02","1,8","20 02 02","Boden und Steine"]
["20","20 02","-","20 02 03","andere nicht biologisch abbaubare Abfälle"]
["20","20 03","0,1","20 03 01","gemischte Siedlungsabfälle"]
["20","20 03","0,6","20 03 02","Marktabfälle"]
["20","20 03","0,8","20 03 03","Straßenkehricht"]
["20","20 03","1,09","20 03 04","Fäkalschlamm"]
["20","20 03","0,8","20 03 06","Abfälle aus der Kanalreinigung"]
["20","20 03","0,10-0,91","20 03 07","Sperrmüll"]
["20","20 03","-","20 03 99","Siedlungsabfälle a.n.g."]